Ref No,Fund Type,Dept,Cost Centre Description    ,Description    ,Creditor Name    ,GL Code Net Amount,Payment date        
2,Revenue,CCHD,Breakthrough and Inclusion Work,Other Supplies & Services,121Turnaround Ltd,6284.88, 19-Dec-2013
3,Revenue,CCHD,Supporting People Programme,Grants to Voluntary Bodies,1625 Independent People,17380, 30-Dec-2013
4,Revenue,CCHD,Home Care - Elderly - South,Other Small Contracts,3 Trees Community Support Ltd,95.52, 03-Dec-2013
5,Revenue,CCHD,Home Care - Elderly - North,Other Small Contracts,3 Trees Community Support Ltd,1910.4, 03-Dec-2013
6,Revenue,CCHD,Day Care - North,Private & Voluntary Day Care,3 Trees Community Support Ltd,47.76, 03-Dec-2013
7,Revenue,CCHD,Home Care - Elderly - South,Other Small Contracts,3 Trees Community Support Ltd,95.52, 03-Dec-2013
8,Revenue,CCHD,Home Care - Elderly - North,Other Small Contracts,3 Trees Community Support Ltd,1886.52, 03-Dec-2013
9,Revenue,CCHD,Day Care - North,Private & Voluntary Day Care,3 Trees Community Support Ltd,47.76, 03-Dec-2013
10,Revenue,CCHD,Home Care - Elderly - South,Other Small Contracts,3 Trees Community Support Ltd,95.52, 10-Dec-2013
11,Revenue,CCHD,Home Care - Elderly - North,Other Small Contracts,3 Trees Community Support Ltd,1914.38, 10-Dec-2013
12,Revenue,CCHD,Day Care - North,Private & Voluntary Day Care,3 Trees Community Support Ltd,47.76, 10-Dec-2013
13,Revenue,CCHD,Home Care - Elderly - North,Other Small Contracts,3 Trees Community Support Ltd,704.25, 11-Dec-2013
14,Revenue,CCHD,Supported Living - South,Private & Voluntary Home Care,3 Trees Community Support Ltd,1958.94, 13-Dec-2013
15,Revenue,CCHD,Purchase of Non-Res Care - North,Private & Voluntary Day Care,3 Trees Community Support Ltd,2148, 16-Dec-2013
16,Revenue,CCHD,Purchase of Non-Res Care - North,Private & Voluntary Day Care,3 Trees Community Support Ltd,2132.95, 13-Dec-2013
17,Revenue,CCHD,Purchase of Non-Res Care - North,Private & Voluntary Day Care,3 Trees Community Support Ltd,1677.2, 17-Dec-2013
18,Revenue,CCHD,Purchase of Non-Res Care - North,Private & Voluntary Day Care,3 Trees Community Support Ltd,7994.69, 16-Dec-2013
19,Revenue,CCHD,Purchase of Non-Res Care - South,Private & Voluntary Day Care,3 Trees Community Support Ltd,3942.75, 17-Dec-2013
20,Revenue,CCHD,Supported Living - South,Private & Voluntary Home Care,3 Trees Community Support Ltd,7598.48, 13-Dec-2013
21,Revenue,CCHD,Supported Living - North,Private & Voluntary Home Care,3 Trees Community Support Ltd,7632.8, 11-Dec-2013
22,Revenue,CCHD,Supported Living - North,Private & Voluntary Home Care,3 Trees Community Support Ltd,8158.84, 13-Dec-2013
23,Revenue,CCHD,Purchase of Non-Res Care - North,Private & Voluntary Day Care,3 Trees Community Support Ltd,5679.47, 18-Dec-2013
24,Revenue,CCHD,Bed Purchasing - Under 65s PWLD - South,Residential Permanent,5Th Floor Harlech Court,15828.36, 24-Dec-2013
25,Revenue,CCHD,Bed purchasing - Under 65s PWLD - North,Residential Permanent,5Th Floor Harlech Court,83029.44, 24-Dec-2013
26,Revenue,CCHD,Bed purchasing - Under 65s PWLD - North,Residential Permanent,5Th Floor Harlech Court,13758.48, 24-Dec-2013
27,Revenue,CCHD,Bed purchasing - Under 65s PWLD - North,Residential Permanent,5Th Floor Harlech Court,16352.68, 24-Dec-2013
28,Revenue,CCHD,Bed purchasing - Under 65s PWLD - North,Residential Permanent,5Th Floor Harlech Court,17698.64, 24-Dec-2013
29,Revenue,CCHD,Alexandra Way,Premises Maintenance by Contractor,A E Horder (Contracting) Limited,1848.28, 04-Dec-2013
30,Revenue,CCHD,Direct Payments - Phys Dis - North,Grants to Voluntary Bodies,A4E Management Limited,23434.92, 24-Dec-2013
31,Revenue,CCHD,MH Purchasing - Younger,Residential Permanent,Abbey Grange,1510.08, 24-Dec-2013
32,Revenue,CCHD,Bed Purchasing - Frenchay Hospital,Residential Permanent,Abbey Grange,1869, 24-Dec-2013
33,Revenue,CCHD,Bed purchasing - Phys Dis - North,Nursing Permanent,ABI Development Limited,6874.36, 24-Dec-2013
34,Revenue,CCHD,Bed purchasing - Under 65s PWLD - North,Residential Permanent,Acorn Care Providers,5744.4, 24-Dec-2013
35,Revenue,CCHD,Older People's Commissioned Se,Grants to Voluntary Bodies,Action for Blind People,24242.25, 30-Dec-2013
36,Revenue,CCHD,Day Care - North,Private & Voluntary Day Care,Action on Hearing Loss,650.56, 24-Dec-2013
37,Revenue,CCHD,SLA Grants - Support Serv,Grants to Voluntary Bodies,Age UK South Gloucestershire,5437.75, 30-Dec-2013
38,Revenue,CCHD,Home Care - Elderly - South,Other Small Contracts,Agincare Chippenham,1517.08, 10-Dec-2013
39,Revenue,CCHD,Home Care - Elderly - South,Other Small Contracts,Agincare Chippenham,1321.58, 10-Dec-2013
40,Revenue,CCHD,Home Care - Elderly - South,Other Small Contracts,Agincare Chippenham,1364.59, 17-Dec-2013
41,Revenue,CCHD,Home Care - Elderly - South,Other Small Contracts,Agincare Chippenham,1368.5, 10-Dec-2013
42,Revenue,CCHD,Home Care - Elderly - South,Other Small Contracts,Agincare Chippenham,1415.42, 17-Dec-2013
43,Revenue,CCHD,Home Care - Elderly - South,Other Small Contracts,Agincare Chippenham,1157.36, 17-Dec-2013
44,Revenue,CCHD,Home Care - Elderly - South,Other Small Contracts,Agincare UK Limited,778.09, 10-Dec-2013
45,Revenue,CCHD,Home Care - Elderly - North,Other Small Contracts,Agincare UK Limited,78.2, 10-Dec-2013
46,Revenue,CCHD,Day Care - South,Private & Voluntary Day Care,Agincare UK Limited,93.84, 10-Dec-2013
47,Revenue,CCHD,Elderly MH Day Care North,Private & Voluntary Day Care,Agincare UK Limited,117.3, 10-Dec-2013
48,Revenue,CCHD,Home Care - Elderly - South,Other Small Contracts,Agincare UK Limited,477.02, 10-Dec-2013
49,Revenue,CCHD,Home Care - Elderly - North,Other Small Contracts,Agincare UK Limited,86.02, 10-Dec-2013
50,Revenue,CCHD,Day Care - South,Private & Voluntary Day Care,Agincare UK Limited,23.46, 10-Dec-2013
51,Revenue,CCHD,Elderly MH Day Care North,Private & Voluntary Day Care,Agincare UK Limited,109.48, 10-Dec-2013
52,Revenue,CCHD,Home Care - Elderly - South,Other Small Contracts,Agincare UK Limited,555.22, 10-Dec-2013
53,Revenue,CCHD,Home Care - Elderly - North,Other Small Contracts,Agincare UK Limited,78.2, 10-Dec-2013
54,Revenue,CCHD,Day Care - South,Private & Voluntary Day Care,Agincare UK Limited,23.46, 10-Dec-2013
55,Revenue,CCHD,Elderly MH Day Care North,Private & Voluntary Day Care,Agincare UK Limited,117.3, 10-Dec-2013
56,Revenue,CCHD,Home Care - Elderly - South,Other Small Contracts,Agincare UK Limited,531.76, 10-Dec-2013
57,Revenue,CCHD,Home Care - Elderly - North,Other Small Contracts,Agincare UK Limited,66.47, 10-Dec-2013
58,Revenue,CCHD,Day Care - South,Private & Voluntary Day Care,Agincare UK Limited,23.46, 10-Dec-2013
59,Revenue,CCHD,Elderly MH Day Care North,Private & Voluntary Day Care,Agincare UK Limited,105.57, 10-Dec-2013
60,Revenue,CCHD,Home Care - Elderly - South,Other Small Contracts,Agincare UK Limited,570.86, 17-Dec-2013
61,Revenue,CCHD,Home Care - Elderly - North,Other Small Contracts,Agincare UK Limited,93.84, 17-Dec-2013
62,Revenue,CCHD,Day Care - South,Private & Voluntary Day Care,Agincare UK Limited,23.46, 17-Dec-2013
63,Revenue,CCHD,Elderly MH Day Care North,Private & Voluntary Day Care,Agincare UK Limited,109.48, 17-Dec-2013
64,Revenue,CCHD,Home Care - Elderly - South,Other Small Contracts,Agincare UK Limited,363.63, 18-Dec-2013
65,Revenue,CCHD,Home Care - Elderly - North,Other Small Contracts,Agincare UK Limited,86.02, 18-Dec-2013
66,Revenue,CCHD,Day Care - South,Private & Voluntary Day Care,Agincare UK Limited,23.46, 18-Dec-2013
67,Revenue,CCHD,Elderly MH Day Care North,Private & Voluntary Day Care,Agincare UK Limited,117.3, 18-Dec-2013
68,Revenue,CCHD,S117 Placements PCT,Residential Permanent,Alexandra House,6875.64, 24-Dec-2013
69,Revenue,CCHD,Bed Purchasing - Under 65s PWLD - South,Residential Permanent,Alexandra House,6069, 24-Dec-2013
70,Revenue,CCHD,Section 117 Placements MH Younger,Residential Permanent,Alexandra House,6400.88, 24-Dec-2013
71,Revenue,CCHD,Home Care - Elderly - South,Other Small Contracts,AliMo Care Ltd,1065.54, 06-Dec-2013
72,Revenue,CCHD,Home Care - Elderly - North,Other Small Contracts,AliMo Care Ltd,995.25, 06-Dec-2013
73,Revenue,CCHD,Home Care - Elderly - South,Other Small Contracts,AliMo Care Ltd,1044.89, 20-Dec-2013
74,Revenue,CCHD,Home Care - Elderly - North,Other Small Contracts,AliMo Care Ltd,995.25, 20-Dec-2013
75,Revenue,CCHD,Home Care - Elderly - South,Other Small Contracts,AliMo Care Ltd,826, 06-Dec-2013
76,Revenue,CCHD,Home Care - Elderly - North,Other Small Contracts,AliMo Care Ltd,995.26, 06-Dec-2013
77,Revenue,CCHD,Home Care - Elderly - South,Other Small Contracts,AliMo Care Ltd,644.28, 27-Dec-2013
78,Revenue,CCHD,Home Care - Elderly - North,Other Small Contracts,AliMo Care Ltd,995.26, 27-Dec-2013
79,Revenue,CCHD,Home Care - Elderly - South,Other Small Contracts,AliMo Care Ltd,656.67, 20-Dec-2013
80,Revenue,CCHD,Home Care - Elderly - North,Other Small Contracts,AliMo Care Ltd,995.26, 20-Dec-2013
81,Revenue,CCHD,Home Care - Elderly - South,Other Small Contracts,AliMo Care Ltd,640.15, 20-Dec-2013
82,Revenue,CCHD,Home Care - Elderly - North,Other Small Contracts,AliMo Care Ltd,995.26, 20-Dec-2013
83,Revenue,CCHD,Stop Smoking Services and Interventions,Other Supplies & Services,Almondsbury Surgery,530, 09-Dec-2013
84,Revenue,CCHD,Bed Purchasing - Southmead Hospital,Nursing Permanent,Ambleside Nusing Ho!,1425.36, 24-Dec-2013
85,Revenue,CCHD,Bed purchasing - Under 65s PWLD - North,Residential Permanent,Ark Care Homes Ltd,10163.76, 24-Dec-2013
86,Revenue,CCHD,Public Health - Admin,Grants to Voluntary Bodies,Armadillo Youth Venue & Cafe,800, 24-Dec-2013
87,Revenue,CCHD,Bed Purchasing - Elderly - South,Residential Permanent,Ashbourne House Care Home Limited,1107.96, 24-Dec-2013
88,Revenue,CCHD,Home Care - Elderly - South,Other Small Contracts,Ashley Commercial Finance Ltd,875.7, 05-Dec-2013
89,Revenue,CCHD,Home Care - Elderly - North,Other Small Contracts,Ashley Commercial Finance Ltd,4249.23, 05-Dec-2013
90,Revenue,CCHD,Home Care - Elderly - South,Other Small Contracts,Ashley Commercial Finance Ltd,984.12, 05-Dec-2013
91,Revenue,CCHD,Home Care - Elderly - North,Other Small Contracts,Ashley Commercial Finance Ltd,4457.73, 05-Dec-2013
92,Revenue,CCHD,Home Care - Elderly - South,Other Small Contracts,Ashley Commercial Finance Ltd,1063.35, 05-Dec-2013
93,Revenue,CCHD,Home Care - Elderly - North,Other Small Contracts,Ashley Commercial Finance Ltd,4386.84, 05-Dec-2013
94,Revenue,CCHD,Home Care - Elderly - South,Other Small Contracts,Ashley Commercial Finance Ltd,1100.88, 27-Dec-2013
95,Revenue,CCHD,Home Care - Elderly - North,Other Small Contracts,Ashley Commercial Finance Ltd,4407.69, 27-Dec-2013
96,Revenue,CCHD,Home Care - Elderly - South,Other Small Contracts,Ashley Commercial Finance Ltd,1067.52, 27-Dec-2013
97,Revenue,CCHD,Home Care - Elderly - North,Other Small Contracts,Ashley Commercial Finance Ltd,4090.77, 27-Dec-2013
98,Revenue,CCHD,Bed and Breakfast,Bed & Breakfast,Ashley Guest Houses Limited,420, 04-Dec-2013
99,Revenue,CCHD,Bed and Breakfast,Bed & Breakfast,Ashley Guest Houses Limited,420, 11-Dec-2013
100,Revenue,CCHD,Bed and Breakfast,Bed & Breakfast,Ashley Guest Houses Limited,758, 16-Dec-2013
101,Revenue,CCHD,Bed and Breakfast,Bed & Breakfast,Ashley Guest Houses Limited,420, 18-Dec-2013
102,Revenue,CCHD,Bed and Breakfast,Bed & Breakfast,Ashley Guest Houses Limited,938, 16-Dec-2013
103,Revenue,CCHD,Bed and Breakfast,Bed & Breakfast,Ashley Guest Houses Limited,698, 16-Dec-2013
104,Revenue,CCHD,Bed and Breakfast,Bed & Breakfast,Ashley Guest Houses Limited,420, 24-Dec-2013
105,Revenue,CCHD,Bed and Breakfast,Bed & Breakfast,Ashley Guest Houses Limited,938, 16-Dec-2013
106,Revenue,CCHD,Bed purchasing - Under 65s PWLD - North,Residential Permanent,Aspects 2 Limited,6265.24, 24-Dec-2013
107,Revenue,CCHD,Supporting People Programme,Grants to Voluntary Bodies,Aspects and Milestones Trust,3172.58, 30-Dec-2013
108,Revenue,CCHD,Supporting People Programme,Grants to Voluntary Bodies,Aspects and Milestones Trust,1590.58, 30-Dec-2013
109,Revenue,CCHD,Supporting People Programme,Grants to Voluntary Bodies,Aspects and Milestones Trust,2414.33, 30-Dec-2013
110,Revenue,CCHD,Supported Living - South,Private & Voluntary Home Care,Aspirations Support Bristol Limited,726, 18-Dec-2013
111,Revenue,CCHD,Supported Living - South,Private & Voluntary Home Care,Aspirations Support Bristol Limited,523.9, 18-Dec-2013
112,Revenue,CCHD,Supported Living - South,Private & Voluntary Home Care,Aspirations Support Bristol Limited,3767.45, 18-Dec-2013
113,Revenue,CCHD,Supported Living - South,Private & Voluntary Home Care,Aspirations Support Bristol Limited,3733.29, 18-Dec-2013
114,Revenue,CCHD,Purchase of Non-Res Care - South,Private & Voluntary Day Care,Aspirations Support Bristol Limited,2499.48, 09-Dec-2013
115,Revenue,CCHD,Supported Living - South,Private & Voluntary Home Care,Aspirations Support Bristol Limited,515.84, 09-Dec-2013
116,Revenue,CCHD,Day Care - South,Private & Voluntary Day Care,Aspirations Support Bristol Limited,2070.71, 20-Dec-2013
117,Revenue,CCHD,Bed Purchasing - Under 65s PWLD - South,Residential Permanent,Autism Specialised Care Homes,5584.12, 24-Dec-2013
118,Revenue,CCHD,Younger Adult Mental Health,Health Services (Third Party Payments),Avon & Wiltshire Mental Health,5000, 30-Dec-2013
119,Revenue,CCHD,Purchase of Non-Res Care - North,Private & Voluntary Day Care,Avon Autistic Foundation Limited,2301.6, 18-Dec-2013
120,Revenue,CCHD,Purchase of Non-Res Care - North,Private & Voluntary Day Care,Avon Autistic Foundation Limited,3387.04, 18-Dec-2013
121,Revenue,CCHD,Public Health - Admin,Grants to Voluntary Bodies,Badminton Gardens Social Fund,500, 02-Dec-2013
122,Revenue,CCHD,Bed Purchasing - Southmead Hospital,Nursing Permanent,Bamfield Lodge,1851.68, 24-Dec-2013
123,Revenue,CCHD,Purchase of RAC places,Other L.A.'s - General,Bath & North East Somerset Dist Council,16567.22, 03-Dec-2013
124,Revenue,CCHD,Purchase of RAC places,Other L.A.'s - General,Bath & North East Somerset Dist Council,1902.4, 11-Dec-2013
125,Revenue,CCHD,Purchase of RAC places,Other L.A.'s - General,Bath & North East Somerset Dist Council,9057, 11-Dec-2013
126,Revenue,CCHD,Bed Purchasing - Frenchay Hospital,Nursing Permanent,Bayview Nursing & Residential Home,1463.36, 24-Dec-2013
127,Revenue,CCHD,Bed Purchasing - Elderly - South,Residential Respite,Beaufort Grange Care Home,2171.43, 24-Dec-2013
128,Revenue,CCHD,Bed Purchasing - Elderly - North,Nursing Permanent,Beaufort Grange Care Home,1883.92, 24-Dec-2013
129,Revenue,CCHD,South Glos Users in South Glos Homes,Nursing Permanent,Beaufort Grange Care Home,2070.33, 24-Dec-2013
130,Revenue,CCHD,Bed Purchasing - Elderly - North,Residential Permanent,Beaufort House,1801.76, 24-Dec-2013
131,Revenue,CCHD,Bed purchasing - Elderly MH - North,Residential Permanent,Beaufort House,1514.84, 24-Dec-2013
132,Revenue,CCHD,Bed purchasing - Elderly MH - North,Residential Permanent,Beaufort House,1383.68, 24-Dec-2013
133,Revenue,CCHD,Bed Purchasing - Elderly - North,Residential Permanent,Beaufort House,1836.08, 24-Dec-2013
134,Revenue,CCHD,Bed Purchasing - Frenchay Hospital,Residential Permanent,Beaufort House,1285.32, 24-Dec-2013
135,Revenue,CCHD,Bed Purchasing - Elderly - North,Residential Permanent,Beaufort House,1726.68, 24-Dec-2013
136,Revenue,CCHD,Bed purchasing - Elderly MH - North,Residential Permanent,Beaufort House,1684.12, 24-Dec-2013
137,Revenue,CCHD,Bed Purchasing - Elderly - North,Residential Permanent,Beaufort House,1519.32, 24-Dec-2013
138,Revenue,CCHD,Bed purchasing - Elderly PWLD - South,Residential Permanent,Bedrock Lodge,2909.4, 24-Dec-2013
139,Revenue,CCHD,Section 117 Placements MH Younger,Residential Permanent,Bedrock Lodge,1837.68, 24-Dec-2013
140,Revenue,CCHD,Bed Purchasing - Elderly - North,Residential Permanent,Beech House,1885.64, 24-Dec-2013
141,Revenue,CCHD,Bed Purchasing - Elderly - North,Nursing Permanent,Beech House,2095.68, 24-Dec-2013
142,Revenue,CCHD,Bed Purchasing - Elderly - North,Nursing Permanent,Beech House,725.16, 24-Dec-2013
143,Revenue,CCHD,Bed Purchasing - Frenchay Hospital,Residential Permanent,Belmont View,1352.08, 24-Dec-2013
144,Revenue,CCHD,Bed Purchasing - Elderly - North,Nursing Permanent,Blossom Field,1911, 24-Dec-2013
145,Revenue,CCHD,South Glos Users in South Glos Homes,Nursing Permanent,Blossom Field,2023.27, 24-Dec-2013
146,Revenue,CCHD,Bed Purchasing - Elderly - North,Nursing Permanent,Blossom Field,1096.6, 24-Dec-2013
147,Revenue,CCHD,Bed Purchasing - Elderly - North,Nursing Permanent,Blossom Field,2271, 24-Dec-2013
148,Revenue,CCHD,Bed purchasing - Elderly MH - North,Nursing Permanent,Blossom Field,1400.04, 24-Dec-2013
149,Revenue,CCHD,Bed Purchasing - Elderly - South,Nursing Permanent,Blossom Field,1884.56, 24-Dec-2013
150,Revenue,CCHD,Bed Purchasing - Elderly - North,Nursing Permanent,Blossom Fields,2551.21, 02-Dec-2013
151,Revenue,CCHD,Bed Purchasing - Southmead Hospital,Nursing Permanent,Blossom Fields,2065.21, 02-Dec-2013
152,Revenue,CCHD,South Glos Users in South Glos Homes,Nursing Permanent,Blossom Fields,878.32, 02-Dec-2013
153,Revenue,CCHD,Bed purchasing - Elderly MH - North,Nursing Permanent,Blossom Fields,1544.57, 02-Dec-2013
154,Revenue,CCHD,DAT Treatment,Rent,BNP Paribas Real Estate,2050.87, 24-Dec-2013
155,Revenue,CCHD,DAT Treatment,Rent,BNP Paribas Real Estate,6159, 24-Dec-2013
156,Revenue,CCHD,Training - Adult Services,Training Expenses,Bob Dawson,1400, 17-Dec-2013
157,Revenue,CCHD,Bed purchasing - Under 65s PWLD - North,Residential Permanent,Bradbury House,8632.8, 24-Dec-2013
158,Revenue,CCHD,Home Care - Elderly - North,Other Small Contracts,Bradley House Home Care Services,2012.38, 05-Dec-2013
159,Revenue,CCHD,Day Care - North,Private & Voluntary Day Care,Bradley House Home Care Services,101.04, 05-Dec-2013
160,Revenue,CCHD,Home Care - Elderly - North,Other Small Contracts,Bradley House Home Care Services,1923.97, 05-Dec-2013
161,Revenue,CCHD,Day Care - North,Private & Voluntary Day Care,Bradley House Home Care Services,101.04, 05-Dec-2013
162,Revenue,CCHD,Home Care - Elderly - North,Other Small Contracts,Bradley House Home Care Services,1873.45, 10-Dec-2013
163,Revenue,CCHD,Day Care - North,Private & Voluntary Day Care,Bradley House Home Care Services,101.04, 10-Dec-2013
164,Revenue,CCHD,Home Care - Elderly - North,Other Small Contracts,Bradley House Home Care Services,1890.29, 13-Dec-2013
165,Revenue,CCHD,Day Care - North,Private & Voluntary Day Care,Bradley House Home Care Services,101.04, 13-Dec-2013
166,Revenue,CCHD,Drug Misuse - Adults,Other Supplies & Services,Bradley Stoke Surgery,508, 09-Dec-2013
167,Revenue,CCHD,Stop Smoking Services and Interventions,Other Supplies & Services,Bradley Stoke Surgery,940, 09-Dec-2013
168,Revenue,CCHD,Woodleaze,"Provisions (Food, etc)",Brake Bros,854.02, 11-Dec-2013
169,Revenue,CCHD,Woodleaze,"Provisions (Food, etc)",Brake Bros,645.26, 13-Dec-2013
170,Revenue,CCHD,Woodleaze,"Provisions (Food, etc)",Brake Bros,604.63, 30-Dec-2013
171,Revenue,CCHD,Woodleaze,"Provisions (Food, etc)",Brake Bros,614.8, 30-Dec-2013
172,Revenue,CCHD,Bed Purchasing - S28A - Over 65- North,Residential Permanent,Brandon Trust,3054.48, 24-Dec-2013
173,Revenue,CCHD,Bed Purchasing - Under 65s PWLD - South,Residential Permanent,Brandon Trust,10118.24, 24-Dec-2013
174,Revenue,CCHD,Bed Purchasing - Under 65s PWLD - South,Residential Permanent,Brandon Trust,9942, 24-Dec-2013
175,Revenue,CCHD,Bed purchasing - Elderly PWLD - South,Residential Permanent,Brandon Trust,3412.04, 24-Dec-2013
176,Revenue,CCHD,Bed Purchasing - LD S28A- Over 65- South,Nursing Permanent,Brandon Trust,4792.12, 24-Dec-2013
177,Revenue,CCHD,Bed Purchasing - Under 65s PWLD - South,Nursing Permanent,Brandon Trust,4962.92, 24-Dec-2013
178,Revenue,CCHD,Bed purchasing - S28A Under 65 - South,Nursing Permanent,Brandon Trust,5280.52, 24-Dec-2013
179,Revenue,CCHD,Bed purchasing - S28A Under 65 - South,Residential Permanent,Brandon Trust,4832.6, 24-Dec-2013
180,Revenue,CCHD,Bed purchasing - S28A Under 65 - South,Nursing Permanent,Brandon Trust,5280.52, 24-Dec-2013
181,Revenue,CCHD,Bed Purchasing - LD S28A- Over 65- South,Nursing Permanent,Brandon Trust,5109.72, 24-Dec-2013
182,Revenue,CCHD,Bed Purchasing - LD S28A- Over 65- South,Nursing Permanent,Brandon Trust,4777.8, 24-Dec-2013
183,Revenue,CCHD,Bed Purchasing - Under 65s PWLD - South,Residential Permanent,Brandon Trust,3225.28, 24-Dec-2013
184,Revenue,CCHD,Bed Purchasing - S28A - Over 65- North,Nursing Permanent,Brandon Trust,4742.68, 24-Dec-2013
185,Revenue,CCHD,Bed purchasing - S28A Under 65 - South,Residential Permanent,Brandon Trust,5126.44, 24-Dec-2013
186,Revenue,CCHD,Bed purchasing - S28A Under 65 - South,Residential Permanent,Brandon Trust,5181.28, 24-Dec-2013
187,Revenue,CCHD,Bed Purchasing - S28A - Over 65- North,Residential Permanent,Brandon Trust,10838.48, 24-Dec-2013
188,Revenue,CCHD,Bed purchasing - S28A Under 65 - South,Nursing Permanent,Brandon Trust,5280.52, 24-Dec-2013
189,Revenue,CCHD,Bed purchasing - S28A Under 65 - South,Nursing Permanent,Brandon Trust,5280.52, 24-Dec-2013
190,Revenue,CCHD,Bed purchasing -S28A  Under 65 - North,Nursing Permanent,Brandon Trust,4712.96, 24-Dec-2013
191,Revenue,CCHD,Bed purchasing - S28A Under 65 - South,Residential Permanent,Brandon Trust,5181.28, 24-Dec-2013
192,Revenue,CCHD,Bed Purchasing - LD S28A- Over 65- South,Residential Permanent,Brandon Trust,4681.52, 24-Dec-2013
193,Revenue,CCHD,Bed Purchasing - Elderly - North,Residential Permanent,Bridge House Care Home,1218.28, 24-Dec-2013
194,Revenue,CCHD,Bed Purchasing - Elderly - North,Residential Permanent,Bridge House Care Home,623.56, 24-Dec-2013
195,Revenue,CCHD,Bed Purchasing - Elderly - North,Residential Permanent,Bridge House Care Home,1150.56, 24-Dec-2013
196,Revenue,CCHD,Bed Purchasing - Elderly MH - South,Residential Permanent,Brightbow,2067.28, 24-Dec-2013
197,Revenue,CCHD,MH Purchasing - Younger,Residential Permanent,Brightbow,1467.4, 24-Dec-2013
198,Revenue,CCHD,Older People's Commissioned Se,Grants to Voluntary Bodies,Bristol Area Stroke Foundation,4618.25, 30-Dec-2013
199,Revenue,CCHD,Purchase of RAC places,Other L.A.'s - General,Bristol City Council,6132.35, 18-Dec-2013
200,Revenue,CCHD,Supported Living - North,Private & Voluntary Home Care,Bristol Houses UK Limited,1303.14, 05-Dec-2013
201,Revenue,CCHD,Supported Living - North,Private & Voluntary Home Care,Bristol Houses UK Limited,1056.6, 05-Dec-2013
202,Revenue,CCHD,Day Care - North,Private & Voluntary Day Care,Bristol Houses UK Limited,1435.22, 05-Dec-2013
203,Revenue,CCHD,Supported Living - North,Private & Voluntary Home Care,Bristol Houses UK Limited,968.55, 05-Dec-2013
204,Revenue,CCHD,Day Care - North,Private & Voluntary Day Care,Bristol Houses UK Limited,2394.96, 05-Dec-2013
205,Revenue,CCHD,Supported Living - North,Private & Voluntary Home Care,Bristol Houses UK Limited,605.6, 05-Dec-2013
206,Revenue,CCHD,Supported Living - North,Private & Voluntary Home Care,Bristol Houses UK Limited,953.82, 05-Dec-2013
207,Revenue,CCHD,Day Care - North,Private & Voluntary Day Care,Bristol Houses UK Limited,726.72, 05-Dec-2013
208,Revenue,CCHD,Bed and Breakfast,Bed & Breakfast,Bristol Housing & Support Limited,1568, 06-Dec-2013
209,Revenue,CCHD,Bed and Breakfast,Bed & Breakfast,Bristol Housing & Support Limited,1988, 06-Dec-2013
210,Revenue,CCHD,Bed and Breakfast,Bed & Breakfast,Bristol Housing & Support Limited,1750, 06-Dec-2013
211,Revenue,CCHD,Bed and Breakfast,Bed & Breakfast,Bristol Housing & Support Limited,1450, 06-Dec-2013
212,Revenue,CCHD,Bed and Breakfast,Bed & Breakfast,Bristol Housing & Support Limited,950, 06-Dec-2013
213,Revenue,CCHD,Bed and Breakfast,Bed & Breakfast,Bristol Housing & Support Limited,800, 06-Dec-2013
214,Revenue,CCHD,Bed and Breakfast,Bed & Breakfast,Bristol Housing & Support Limited,1300, 06-Dec-2013
215,Revenue,CCHD,Bed and Breakfast,Bed & Breakfast,Bristol Housing & Support Limited,1120, 02-Dec-2013
216,Revenue,CCHD,Bed and Breakfast,Bed & Breakfast,Bristol Housing & Support Limited,1120, 09-Dec-2013
217,Revenue,CCHD,Day Care - South,Private & Voluntary Day Care,Britannia House,901.6, 24-Dec-2013
218,Revenue,CCHD,Day Care - South,Private & Voluntary Day Care,Britannia House,676.2, 24-Dec-2013
219,Revenue,CCHD,Day Care - North,Private & Voluntary Day Care,Britannia House,901.6, 24-Dec-2013
220,Revenue,CCHD,Day Care - South,Private & Voluntary Day Care,Britannia House,676.2, 24-Dec-2013
221,Revenue,CCHD,Day Care - North,Private & Voluntary Day Care,Britannia House,901.6, 24-Dec-2013
222,Revenue,CCHD,Day Care - South,Private & Voluntary Day Care,Britannia House,563.5, 24-Dec-2013
223,Revenue,CCHD,Day Care - South,Private & Voluntary Day Care,Britannia House,1127, 24-Dec-2013
224,Revenue,CCHD,Home Care - Elderly - South,Other Small Contracts,Britannia House,676.2, 24-Dec-2013
225,Revenue,CCHD,Day Care - South,Private & Voluntary Day Care,Britannia House,676.2, 24-Dec-2013
226,Revenue,CCHD,Day Care - South,Private & Voluntary Day Care,Britannia House,676.2, 24-Dec-2013
227,Revenue,CCHD,Supporting People Programme,Grants to Voluntary Bodies,Bromford Housing Group,14050.25, 30-Dec-2013
228,Revenue,CCHD,"Sexual Health Services - Advice, Prevent",Other Supplies & Services,Brook Advisory Centre (Avon),53865, 13-Dec-2013
229,Revenue,CCHD,"Sexual Health Services - Advice, Prevent",Other Supplies & Services,Brook Advisory Centre (Avon),17955, 13-Dec-2013
230,Revenue,CCHD,Bed Purchasing - Elderly - North,Residential Permanent,Brook Lane Residential Home,910.08, 24-Dec-2013
231,Revenue,CCHD,Home Care - Elderly - North,Private & Voluntary Home Care,Brunelcare,15809.01, 02-Dec-2013
232,Revenue,CCHD,Home Care - Elderly - North,Private & Voluntary Home Care,Brunelcare,15809.01, 09-Dec-2013
233,Revenue,CCHD,Home Care - Elderly - North,Private & Voluntary Home Care,Brunelcare,15809.01, 16-Dec-2013
234,Revenue,CCHD,Home Care - Elderly - North,Private & Voluntary Home Care,Brunelcare,15809.01, 23-Dec-2013
235,Revenue,CCHD,Home Care - Elderly - North,Private & Voluntary Home Care,Brunelcare,15809.01, 30-Dec-2013
236,Revenue,CCHD,Bed Purchasing - Elderly - South,Nursing Permanent,Brunelcare,14643.8, 04-Dec-2013
237,Revenue,CCHD,Bed Purchasing - Elderly - South,Nursing Respite,Brunelcare,569.88, 04-Dec-2013
238,Revenue,CCHD,Bed Purchasing - Elderly - North,Nursing Permanent,Brunelcare,3352.16, 04-Dec-2013
239,Revenue,CCHD,Bed Purchasing - Elderly - North,Nursing Respite,Brunelcare,2575.67, 04-Dec-2013
240,Revenue,CCHD,Bed Purchasing - Frenchay Hospital,Nursing Permanent,Brunelcare,7151.68, 04-Dec-2013
241,Revenue,CCHD,Bed Purchasing - Southmead Hospital,Nursing Permanent,Brunelcare,6310.43, 04-Dec-2013
242,Revenue,CCHD,South Glos Users in South Glos Homes,Nursing Permanent,Brunelcare,7795.09, 04-Dec-2013
243,Revenue,CCHD,Bed Purchasing - Elderly MH - South,Nursing Permanent,Brunelcare,5399.67, 04-Dec-2013
244,Revenue,CCHD,Bed purchasing - Elderly S117 - South,Nursing Permanent,Brunelcare,4727.59, 04-Dec-2013
245,Revenue,CCHD,Bed purchasing - Elderly MH - North,Nursing Permanent,Brunelcare,1612.84, 04-Dec-2013
246,Revenue,CCHD,Bed Purchasing - Elderly S117- North,Nursing Permanent,Brunelcare,305.01, 04-Dec-2013
247,Revenue,CCHD,Home Care - Elderly - South,Other Small Contracts,Brunelcare,3206.88, 05-Dec-2013
248,Revenue,CCHD,Home Care - Elderly - North,Other Small Contracts,Brunelcare,5381.91, 05-Dec-2013
249,Revenue,CCHD,Day Care - South,Private & Voluntary Day Care,Brunelcare,28.56, 05-Dec-2013
250,Revenue,CCHD,Day Care - North,Private & Voluntary Day Care,Brunelcare,77.52, 05-Dec-2013
251,Revenue,CCHD,Home Care - Elderly - South,Other Small Contracts,Brunelcare,2949.84, 05-Dec-2013
252,Revenue,CCHD,Home Care - Elderly - North,Other Small Contracts,Brunelcare,4506.2, 05-Dec-2013
253,Revenue,CCHD,Day Care - South,Private & Voluntary Day Care,Brunelcare,24.48, 05-Dec-2013
254,Revenue,CCHD,Day Care - North,Private & Voluntary Day Care,Brunelcare,85.68, 05-Dec-2013
255,Revenue,CCHD,Home Care - Elderly - South,Other Small Contracts,Brunelcare,3162, 17-Dec-2013
256,Revenue,CCHD,Home Care - Elderly - North,Other Small Contracts,Brunelcare,4636.64, 17-Dec-2013
257,Revenue,CCHD,Day Care - South,Private & Voluntary Day Care,Brunelcare,28.56, 17-Dec-2013
258,Revenue,CCHD,Day Care - North,Private & Voluntary Day Care,Brunelcare,48.96, 17-Dec-2013
259,Revenue,CCHD,Home Care - Elderly - South,Other Small Contracts,Brunelcare,3186.48, 18-Dec-2013
260,Revenue,CCHD,Home Care - Elderly - North,Other Small Contracts,Brunelcare,4730.68, 18-Dec-2013
261,Revenue,CCHD,Day Care - South,Private & Voluntary Day Care,Brunelcare,28.56, 18-Dec-2013
262,Revenue,CCHD,Day Care - North,Private & Voluntary Day Care,Brunelcare,77.52, 18-Dec-2013
263,Revenue,CCHD,Information Systems - Software,Computer Equipment - Purchase,BT Global Services Solutions,978.04, 10-Dec-2013
264,Revenue,CCHD,Bed Purchasing - Southmead Hospital,Nursing Permanent,Bupa Care Services  Bridge House,5622.6, 24-Dec-2013
265,Revenue,CCHD,Bed Purchasing - Southmead Hospital,Nursing Permanent,Bupa Care Services  Bridge House,6577.2, 24-Dec-2013
266,Revenue,CCHD,Bed purchasing - Phys Dis - North,Nursing Permanent,Bupa Care Services  Bridge House,11703.36, 24-Dec-2013
267,Revenue,CCHD,South Glos Users in all other LA Homes,Nursing Permanent,Bupa Care Services  Bridge House,1208.8, 24-Dec-2013
268,Revenue,CCHD,Bed purchasing - Elderly MH - North,Residential Permanent,Bupa Care Services  Bridge House,1900, 24-Dec-2013
269,Revenue,CCHD,Bed Purchasing - Frenchay Hospital,Nursing Permanent,Bupa Care Services  Bridge House,1302, 24-Dec-2013
270,Revenue,CCHD,Alexandra Way,Premises Maintenance by Contractor,BWS Security Systems Limited,948, 04-Dec-2013
271,Revenue,CCHD,Supported Living - South,Private & Voluntary Home Care,Camphill Communities Thornbury Limited,1753.08, 11-Dec-2013
272,Revenue,CCHD,Supported Living - North,Private & Voluntary Home Care,Camphill Communities Thornbury Limited,2498.76, 11-Dec-2013
273,Revenue,CCHD,Supported Living - North,Private & Voluntary Home Care,Camphill Communities Thornbury Limited,2597.48, 11-Dec-2013
274,Revenue,CCHD,Supported Living - North,Private & Voluntary Home Care,Camphill Communities Thornbury Limited,1822.24, 13-Dec-2013
275,Revenue,CCHD,Supported Living - North,Private & Voluntary Home Care,Camphill Communities Thornbury Limited,2290.92, 18-Dec-2013
276,Revenue,CCHD,Supported Living - North,Private & Voluntary Home Care,Camphill Communities Thornbury Limited,2049.76, 18-Dec-2013
277,Revenue,CCHD,Supported Living - North,Private & Voluntary Home Care,Camphill Communities Thornbury Limited,2016.48, 18-Dec-2013
278,Revenue,CCHD,Supported Living - North,Private & Voluntary Home Care,Camphill Communities Thornbury Limited,2563.76, 23-Dec-2013
279,Revenue,CCHD,Supported Living - North,Private & Voluntary Home Care,Camphill Communities Thornbury Limited,2132.92, 24-Dec-2013
280,Revenue,CCHD,Supported Living - North,Private & Voluntary Home Care,Camphill Communities Thornbury Limited,2450.96, 24-Dec-2013
281,Revenue,CCHD,Supported Living - North,Private & Voluntary Home Care,Camphill Communities Thornbury Limited,2479.4, 24-Dec-2013
282,Revenue,CCHD,Supported Living - North,Private & Voluntary Home Care,Camphill Communities Thornbury Limited,2237.32, 24-Dec-2013
283,Revenue,CCHD,Supported Living - North,Private & Voluntary Home Care,Camphill Communities Thornbury Limited,1792.96, 24-Dec-2013
284,Revenue,CCHD,Supported Living - North,Private & Voluntary Home Care,Camphill Communities Thornbury Limited,2303.08, 09-Dec-2013
285,Revenue,CCHD,Supported Living - North,Private & Voluntary Home Care,Camphill Communities Thornbury Limited,2203.08, 24-Dec-2013
286,Revenue,CCHD,Supported Living - South,Private & Voluntary Home Care,Camphill Village Trust,1449.11, 19-Dec-2013
287,Revenue,CCHD,Supported Living - South,Private & Voluntary Home Care,Camphill Village Trust,1449.11, 06-Dec-2013
288,Revenue,CCHD,Bed Purchasing - Elderly S117- North,Residential Permanent,Canjayor,2300, 24-Dec-2013
289,Revenue,CCHD,Home Care - Elderly - South,Other Small Contracts,Care 1st Homecare,4771.56, 05-Dec-2013
290,Revenue,CCHD,Home Care - Elderly - North,Other Small Contracts,Care 1st Homecare,3382.46, 05-Dec-2013
291,Revenue,CCHD,Day Care - North,Private & Voluntary Day Care,Care 1st Homecare,110.43, 05-Dec-2013
292,Revenue,CCHD,Home care - Elderly MH - North,Other Small Contracts,Care 1st Homecare,57.26, 05-Dec-2013
293,Revenue,CCHD,Home Care - Elderly - South,Other Small Contracts,Care 1st Homecare,5139.66, 05-Dec-2013
294,Revenue,CCHD,Home Care - Elderly - North,Other Small Contracts,Care 1st Homecare,3316.99, 05-Dec-2013
295,Revenue,CCHD,Day Care - North,Private & Voluntary Day Care,Care 1st Homecare,102.25, 05-Dec-2013
296,Revenue,CCHD,Home care - Elderly MH - North,Other Small Contracts,Care 1st Homecare,65.44, 05-Dec-2013
297,Revenue,CCHD,Home Care - Elderly - South,Other Small Contracts,Care 1st Homecare,5089.72, 05-Dec-2013
298,Revenue,CCHD,Home Care - Elderly - North,Other Small Contracts,Care 1st Homecare,3398.79, 05-Dec-2013
299,Revenue,CCHD,Day Care - North,Private & Voluntary Day Care,Care 1st Homecare,118.61, 05-Dec-2013
300,Revenue,CCHD,Home care - Elderly MH - North,Other Small Contracts,Care 1st Homecare,49.08, 05-Dec-2013
301,Revenue,CCHD,Home Care - Elderly - South,Other Small Contracts,Care 1st Homecare,4269.74, 20-Dec-2013
302,Revenue,CCHD,Home Care - Elderly - North,Other Small Contracts,Care 1st Homecare,3108.4, 20-Dec-2013
303,Revenue,CCHD,Day Care - North,Private & Voluntary Day Care,Care 1st Homecare,110.43, 20-Dec-2013
304,Revenue,CCHD,Home care - Elderly MH - North,Other Small Contracts,Care 1st Homecare,65.44, 20-Dec-2013
305,Revenue,CCHD,Bed Purchasing - PWLD S 117 Placements,Residential Permanent,Care Community Ltd,7536.4, 24-Dec-2013
306,Revenue,CCHD,Home Care - Elderly - North,Other Small Contracts,Care Horizons Limited,1709.61, 27-Dec-2013
307,Revenue,CCHD,Day Care - South,Private & Voluntary Day Care,Care Horizons Limited,359.16, 27-Dec-2013
308,Revenue,CCHD,Home Care - Elderly - North,Other Small Contracts,Care Horizons Limited,2109.8, 27-Dec-2013
309,Revenue,CCHD,Day Care - South,Private & Voluntary Day Care,Care Horizons Limited,363.54, 27-Dec-2013
310,Revenue,CCHD,Home Care - Elderly - North,Other Small Contracts,Care Horizons Limited,2109.8, 27-Dec-2013
311,Revenue,CCHD,Day Care - South,Private & Voluntary Day Care,Care Horizons Limited,359.16, 27-Dec-2013
312,Revenue,CCHD,Home Care - Elderly - North,Other Small Contracts,Care Horizons Limited,2112.94, 27-Dec-2013
313,Revenue,CCHD,Day Care - South,Private & Voluntary Day Care,Care Horizons Limited,359.16, 27-Dec-2013
314,Revenue,CCHD,Home Care - Elderly - North,Other Small Contracts,Care Horizons Limited,2112.94, 27-Dec-2013
315,Revenue,CCHD,Day Care - South,Private & Voluntary Day Care,Care Horizons Limited,350.4, 27-Dec-2013
316,Revenue,CCHD,Home Care - Elderly - North,Other Small Contracts,Care Horizons Limited,2112.94, 27-Dec-2013
317,Revenue,CCHD,Day Care - South,Private & Voluntary Day Care,Care Horizons Limited,363.54, 27-Dec-2013
318,Revenue,CCHD,Home Care - Elderly - North,Other Small Contracts,Care Horizons Limited,2125.54, 27-Dec-2013
319,Revenue,CCHD,Day Care - South,Private & Voluntary Day Care,Care Horizons Limited,350.4, 27-Dec-2013
320,Revenue,CCHD,Home Care - Elderly - North,Other Small Contracts,Care Horizons Limited,2128.65, 27-Dec-2013
321,Revenue,CCHD,Day Care - South,Private & Voluntary Day Care,Care Horizons Limited,354.78, 27-Dec-2013
322,Revenue,CCHD,Purchase of Non-Res Care - North,Private & Voluntary Day Care,Care Horizons Limited,1061.95, 17-Dec-2013
323,Revenue,CCHD,Purchase of Non-Res Care - North,Private & Voluntary Day Care,Care Horizons Limited,1258.55, 17-Dec-2013
324,Revenue,CCHD,Purchase of Non-Res Care - North,Private & Voluntary Day Care,Care Horizons Limited,1635.74, 17-Dec-2013
325,Revenue,CCHD,Supported Living - North,Private & Voluntary Home Care,Care Horizons Limited,5477.01, 19-Dec-2013
326,Revenue,CCHD,Supported Living - South,Private & Voluntary Home Care,Care Horizons Limited,1880.93, 17-Dec-2013
327,Revenue,CCHD,Supported Living - North,Private & Voluntary Home Care,Care Horizons Limited,5373.79, 30-Dec-2013
328,Revenue,CCHD,Home Care - Elderly - North,Other Small Contracts,Care Horizons Limited,2116.09, 17-Dec-2013
329,Revenue,CCHD,Day Care - South,Private & Voluntary Day Care,Care Horizons Limited,363.54, 17-Dec-2013
330,Revenue,CCHD,Home Care - Elderly - North,Other Small Contracts,Care Horizons Limited,2122.38, 17-Dec-2013
331,Revenue,CCHD,Day Care - South,Private & Voluntary Day Care,Care Horizons Limited,346.02, 17-Dec-2013
332,Revenue,CCHD,Electronic Home Care Monitoring,Other Supplies & Services,Care Monitoring 2000 Limited,618, 12-Dec-2013
333,Revenue,CCHD,Electronic Home Care Monitoring,Other Supplies & Services,Care Monitoring 2000 Limited,5200, 04-Dec-2013
334,Revenue,CCHD,Electronic Home Care Monitoring,Other Supplies & Services,Care Monitoring 2000 Limited,8208.84, 09-Dec-2013
335,Revenue,CCHD,Home Care - Elderly - South,Other Small Contracts,Care UK,5245.74, 12-Dec-2013
336,Revenue,CCHD,Home Care - Elderly - North,Other Small Contracts,Care UK,2501.28, 12-Dec-2013
337,Revenue,CCHD,Day Care - South,Private & Voluntary Day Care,Care UK,274.06, 12-Dec-2013
338,Revenue,CCHD,Day Care - North,Private & Voluntary Day Care,Care UK,455.48, 12-Dec-2013
339,Revenue,CCHD,Home care - Elderly MH - North,Other Small Contracts,Care UK,609.88, 12-Dec-2013
340,Revenue,CCHD,Elderly MH Day Care North,Private & Voluntary Day Care,Care UK,138.96, 12-Dec-2013
341,Revenue,CCHD,Home Care - Elderly - South,Other Small Contracts,Care UK,5253.46, 12-Dec-2013
342,Revenue,CCHD,Home Care - Elderly - North,Other Small Contracts,Care UK,2103.7, 12-Dec-2013
343,Revenue,CCHD,Day Care - South,Private & Voluntary Day Care,Care UK,270.2, 12-Dec-2013
344,Revenue,CCHD,Day Care - North,Private & Voluntary Day Care,Care UK,475.83, 12-Dec-2013
345,Revenue,CCHD,Home care - Elderly MH - North,Other Small Contracts,Care UK,613.74, 12-Dec-2013
346,Revenue,CCHD,Elderly MH Day Care North,Private & Voluntary Day Care,Care UK,138.96, 12-Dec-2013
347,Revenue,CCHD,Home Care - Elderly - South,Other Small Contracts,Care UK,5249.6, 18-Dec-2013
348,Revenue,CCHD,Home Care - Elderly - North,Other Small Contracts,Care UK,1896.24, 18-Dec-2013
349,Revenue,CCHD,Day Care - South,Private & Voluntary Day Care,Care UK,274.06, 18-Dec-2013
350,Revenue,CCHD,Day Care - North,Private & Voluntary Day Care,Care UK,454.14, 18-Dec-2013
351,Revenue,CCHD,Home care - Elderly MH - North,Other Small Contracts,Care UK,602.16, 18-Dec-2013
352,Revenue,CCHD,Elderly MH Day Care North,Private & Voluntary Day Care,Care UK,142.82, 18-Dec-2013
353,Revenue,CCHD,Home Care - Elderly - South,Other Small Contracts,Care UK,5176.26, 27-Dec-2013
354,Revenue,CCHD,Home Care - Elderly - North,Other Small Contracts,Care UK,1652.08, 27-Dec-2013
355,Revenue,CCHD,Day Care - South,Private & Voluntary Day Care,Care UK,250.9, 27-Dec-2013
356,Revenue,CCHD,Day Care - North,Private & Voluntary Day Care,Care UK,331.96, 27-Dec-2013
357,Revenue,CCHD,Home care - Elderly MH - North,Other Small Contracts,Care UK,617.6, 27-Dec-2013
358,Revenue,CCHD,Elderly MH Day Care North,Private & Voluntary Day Care,Care UK,138.96, 27-Dec-2013
359,Revenue,CCHD,Home Care - Elderly - South,Other Small Contracts,Care UK,5407.86, 27-Dec-2013
360,Revenue,CCHD,Home Care - Elderly - North,Other Small Contracts,Care UK,1700.91, 27-Dec-2013
361,Revenue,CCHD,Day Care - South,Private & Voluntary Day Care,Care UK,270.2, 27-Dec-2013
362,Revenue,CCHD,Day Care - North,Private & Voluntary Day Care,Care UK,455.48, 27-Dec-2013
363,Revenue,CCHD,Home care - Elderly MH - North,Other Small Contracts,Care UK,598.3, 27-Dec-2013
364,Revenue,CCHD,Elderly MH Day Care North,Private & Voluntary Day Care,Care UK,138.96, 27-Dec-2013
365,Revenue,CCHD,Home Care - Elderly - South,Other Small Contracts,Carewatch (Bristol),731, 10-Dec-2013
366,Revenue,CCHD,Home Care - Elderly - North,Other Small Contracts,Carewatch (Bristol),1071, 10-Dec-2013
367,Revenue,CCHD,Home Care - Elderly - South,Other Small Contracts,Carewatch (Bristol),760.75, 10-Dec-2013
368,Revenue,CCHD,Home Care - Elderly - North,Other Small Contracts,Carewatch (Bristol),1126.25, 10-Dec-2013
369,Revenue,CCHD,Home Care - Elderly - South,Other Small Contracts,Carewatch (Bristol),743.75, 10-Dec-2013
370,Revenue,CCHD,Home Care - Elderly - North,Other Small Contracts,Carewatch (Bristol),1109.25, 10-Dec-2013
371,Revenue,CCHD,Home Care - Elderly - South,Other Small Contracts,Cash Friday at Lloyds TSB,101.4, 12-Dec-2013
372,Revenue,CCHD,Home Care - Elderly - North,Other Small Contracts,Cash Friday at Lloyds TSB,733.2, 12-Dec-2013
373,Revenue,CCHD,Home Care - Elderly - South,Other Small Contracts,Cash Friday at Lloyds TSB,101.4, 18-Dec-2013
374,Revenue,CCHD,Home Care - Elderly - North,Other Small Contracts,Cash Friday at Lloyds TSB,741, 18-Dec-2013
375,Revenue,CCHD,Home Care - Elderly - South,Other Small Contracts,Cash Friday at Lloyds TSB,101.4, 12-Dec-2013
376,Revenue,CCHD,Home Care - Elderly - North,Other Small Contracts,Cash Friday at Lloyds TSB,799.5, 12-Dec-2013
377,Revenue,CCHD,Bed Purchasing - Elderly - South,Residential Permanent,Cepen Lodge Care Home,2176.28, 24-Dec-2013
378,Revenue,CCHD,Bed Purchasing - Southmead Hospital,Residential Permanent,Charlton House Residential Home,1385.36, 24-Dec-2013
379,Revenue,CCHD,Home Care - Elderly - South,Other Small Contracts,Cherish Able Care Limited,5536.96, 06-Dec-2013
380,Revenue,CCHD,Home Care - Elderly - South,Other Small Contracts,Cherish Able Care Limited,5545.28, 13-Dec-2013
381,Revenue,CCHD,Home Care - Elderly - South,Other Small Contracts,Cherish Able Care Limited,5545.28, 27-Dec-2013
382,Revenue,CCHD,Home Care - Elderly - South,Other Small Contracts,Cherish Able Care Limited,5815.68, 27-Dec-2013
383,Revenue,CCHD,Bed purchasing -S28A  Under 65 - North,Residential Permanent,Chescombe Lodge,8569.72, 24-Dec-2013
384,Revenue,CCHD,Bed Purchasing - Under 65s PWLD - South,Residential Permanent,Chosen Court,6910.16, 24-Dec-2013
385,Revenue,CCHD,Bed Purchasing - PWLD S 117 Placements,Residential Permanent,Chosen Court,8801.84, 24-Dec-2013
386,Revenue,CCHD,Bed Purchasing - Under 65s PWLD - South,Residential Permanent,Chosen Court,5375.48, 24-Dec-2013
387,Revenue,CCHD,Training - Adult Services,Training Expenses,Chris Garnier,675, 27-Dec-2013
388,Revenue,CCHD,Drug Misuse - Adults,Other Supplies & Services,Christchurch Family Medical  Centre,2132, 24-Dec-2013
389,Revenue,CCHD,Stop Smoking Services and Interventions,Other Supplies & Services,Christchurch Family Medical  Centre,1160, 24-Dec-2013
390,Revenue,CCHD,Bed purchasing - Under 65s PWLD - North,Residential Permanent,Church House,10354.44, 24-Dec-2013
391,Revenue,CCHD,Bed purchasing - Under 65s PWLD - North,Residential Permanent,Church House,5821.64, 24-Dec-2013
392,Revenue,CCHD,Bed Purchasing - Southmead Hospital,Residential Permanent,Cleeve Lodge,1435.24, 24-Dec-2013
393,Revenue,CCHD,Bed Purchasing - Elderly - South,Residential Respite,Cleeve Lodge,514.29, 24-Dec-2013
394,Revenue,CCHD,Bed Purchasing - Elderly - North,Nursing Permanent,Cleeve Lodge,1850, 24-Dec-2013
395,Revenue,CCHD,Bed Purchasing - Elderly - South,Residential Permanent,Cleeve Lodge,1780, 24-Dec-2013
396,Revenue,CCHD,Bed Purchasing - Elderly - South,Residential Permanent,Cleeve Lodge,1246, 24-Dec-2013
397,Revenue,CCHD,Bed Purchasing - Elderly - South,Residential Permanent,Cleeve Lodge,3026, 24-Dec-2013
398,Revenue,CCHD,Bed Purchasing - Elderly - South,Residential Permanent,Cleeve Lodge,1246, 24-Dec-2013
399,Revenue,CCHD,Bed Purchasing - Elderly - South,Residential Permanent,Cleeve Lodge,1764.48, 24-Dec-2013
400,Revenue,CCHD,Bed Purchasing - Elderly - South,Residential Permanent,Cleeve Lodge,2258.44, 24-Dec-2013
401,Revenue,CCHD,Bed Purchasing - Elderly - North,Residential Permanent,Cleeve Lodge,1383.2, 24-Dec-2013
402,Revenue,CCHD,Bed Purchasing - Elderly - South,Residential Permanent,Cleeve Lodge,1779.92, 24-Dec-2013
403,Revenue,CCHD,Public Health - Admin,Other Supplies & Services,Close Farm Surgery,2098, 23-Dec-2013
404,Revenue,CCHD,Drug Misuse - Adults,Other Supplies & Services,Close Farm Surgery,1015, 23-Dec-2013
405,Revenue,CCHD,Bed Purchasing - Elderly - South,Residential Permanent,Collingwood Residential Home,1298.48, 24-Dec-2013
406,Revenue,CCHD,Bed Purchasing - Elderly - South,Residential Permanent,Collingwood Residential Home,1403.68, 24-Dec-2013
407,Revenue,CCHD,Bed Purchasing - Elderly - South,Residential Permanent,Collingwood Residential Home,1421, 24-Dec-2013
408,Revenue,CCHD,Bed Purchasing - Elderly - South,Residential Respite,Collingwood Residential Home,5177.14, 24-Dec-2013
409,Revenue,CCHD,Bed Purchasing - Elderly - South,Residential Permanent,Collingwood Residential Home,1089.96, 24-Dec-2013
410,Revenue,CCHD,Bed Purchasing - Elderly MH - South,Residential Permanent,Collingwood Residential Home,1306.28, 24-Dec-2013
411,Revenue,CCHD,Bed Purchasing - Elderly - South,Residential Permanent,Collingwood Residential Home,1156.52, 24-Dec-2013
412,Revenue,CCHD,Bed Purchasing - Elderly - South,Residential Permanent,Collingwood Residential Home,1268.04, 24-Dec-2013
413,Revenue,CCHD,Bed Purchasing - Elderly - South,Residential Permanent,Collingwood Residential Home,1405.32, 24-Dec-2013
414,Revenue,CCHD,Stop Smoking Services and Interventions,Other Supplies & Services,Concord Medical Centre,770, 24-Dec-2013
415,Revenue,CCHD,Drug Misuse - Adults,Other Supplies & Services,Coniston Medical Practice,1117, 24-Dec-2013
416,Revenue,CCHD,Stop Smoking Services and Interventions,Other Supplies & Services,Coniston Medical Practice,1130, 24-Dec-2013
417,Revenue,CCHD,Bed and Breakfast,Bed & Breakfast,Connolly & Callaghan Limited,459.9, 02-Dec-2013
418,Revenue,CCHD,Bed and Breakfast,Bed & Breakfast,Connolly & Callaghan Limited,522.9, 03-Dec-2013
419,Revenue,CCHD,Bed and Breakfast,Bed & Breakfast,Connolly & Callaghan Limited,428.4, 02-Dec-2013
420,Revenue,CCHD,Bed and Breakfast,Bed & Breakfast,Connolly & Callaghan Limited,459.9, 02-Dec-2013
421,Revenue,CCHD,Bed and Breakfast,Bed & Breakfast,Connolly & Callaghan Limited,573.3, 02-Dec-2013
422,Revenue,CCHD,Bed and Breakfast,Bed & Breakfast,Connolly & Callaghan Limited,428.4, 02-Dec-2013
423,Revenue,CCHD,Bed and Breakfast,Bed & Breakfast,Connolly & Callaghan Limited,491.4, 02-Dec-2013
424,Revenue,CCHD,Bed and Breakfast,Bed & Breakfast,Connolly & Callaghan Limited,491.4, 02-Dec-2013
425,Revenue,CCHD,Bed and Breakfast,Bed & Breakfast,Connolly & Callaghan Limited,459.9, 11-Dec-2013
426,Revenue,CCHD,Bed and Breakfast,Bed & Breakfast,Connolly & Callaghan Limited,428.4, 11-Dec-2013
427,Revenue,CCHD,Bed and Breakfast,Bed & Breakfast,Connolly & Callaghan Limited,428.4, 11-Dec-2013
428,Revenue,CCHD,Bed and Breakfast,Bed & Breakfast,Connolly & Callaghan Limited,491.4, 11-Dec-2013
429,Revenue,CCHD,Bed and Breakfast,Bed & Breakfast,Connolly & Callaghan Limited,459.9, 11-Dec-2013
430,Revenue,CCHD,Bed and Breakfast,Bed & Breakfast,Connolly & Callaghan Limited,428.4, 11-Dec-2013
431,Revenue,CCHD,Bed and Breakfast,Bed & Breakfast,Connolly & Callaghan Limited,428.4, 11-Dec-2013
432,Revenue,CCHD,Bed and Breakfast,Bed & Breakfast,Connolly & Callaghan Limited,491.4, 11-Dec-2013
433,Revenue,CCHD,Bed and Breakfast,Bed & Breakfast,Connolly & Callaghan Limited,459.9, 18-Dec-2013
434,Revenue,CCHD,Bed and Breakfast,Bed & Breakfast,Connolly & Callaghan Limited,428.4, 18-Dec-2013
435,Revenue,CCHD,Bed and Breakfast,Bed & Breakfast,Connolly & Callaghan Limited,491.4, 18-Dec-2013
436,Revenue,CCHD,Bed Purchasing - Frenchay Hospital,Residential Permanent,Coombs Wood House,962.96, 24-Dec-2013
437,Revenue,CCHD,Drug Misuse - Adults,Other Supplies & Services,Courtside Surgery,1421, 18-Dec-2013
438,Revenue,CCHD,Stop Smoking Services and Interventions,Other Supplies & Services,Courtside Surgery,860, 18-Dec-2013
439,Revenue,CCHD,Bed purchasing -S28A  Under 65 - North,Residential Permanent,Cream Ii Ltd  Longrun House,7924.8, 24-Dec-2013
440,Revenue,CCHD,Bed Purchasing - Under 65s PWLD - South,Residential Permanent,Cream Ii Ltd  Longrun House,5546.44, 24-Dec-2013
441,Revenue,CCHD,Bed purchasing -S28A  Under 65 - North,Residential Permanent,Creedy Court,9157.32, 24-Dec-2013
442,Revenue,CCHD,Bed Purchasing - S28A - Over 65- North,Residential Permanent,Creedy Court,7616.76, 24-Dec-2013
443,Revenue,CCHD,Brokerage and Information Service,Grants to Voluntary Bodies,D H I,9210.08, 27-Dec-2013
444,Revenue,CCHD,Purchase of Non-Res Care - South,Private & Voluntary Day Care,Daneswood,1472.68, 16-Dec-2013
445,Revenue,CCHD,Bed Purchasing - Under 65s PWLD - South,Residential Permanent,Daneswood,10848.44, 24-Dec-2013
446,Revenue,CCHD,Bed purchasing - Under 65s PWLD - North,Residential Permanent,Daneswood,8986.84, 24-Dec-2013
447,Revenue,CCHD,Learning Difficulties PSL,Other Supplies & Services,Individual,2016.44, 20-Dec-2013
448,Revenue,CCHD,Training - Adult Services,Training Expenses,Denise Hope,1125, 05-Dec-2013
449,Revenue,CCHD,Purchase of Non-Res Care - North,Private & Voluntary Day Care,Design 4 Life Ltd,1668.45, 20-Dec-2013
450,Revenue,CCHD,Purchase of Non-Res Care - North,Private & Voluntary Day Care,Design 4 Life Ltd,1810.2, 17-Dec-2013
451,Revenue,CCHD,Purchase of Non-Res Care - North,Private & Voluntary Day Care,Design 4 Life Ltd,1163.7, 17-Dec-2013
452,Revenue,CCHD,Purchase of Non-Res Care - North,Private & Voluntary Day Care,Design 4 Life Ltd,1163.7, 20-Dec-2013
453,Revenue,CCHD,Purchase of Non-Res Care - North,Private & Voluntary Day Care,Design 4 Life Ltd,1551.6, 20-Dec-2013
454,Revenue,CCHD,Bed Purchasing - Under 65s PWLD - South,Residential Permanent,Devon & Cornwall Autistic Community Trus,17337.68, 24-Dec-2013
455,Revenue,CCHD,Day Care - South,Private & Voluntary Day Care,Dhek Bhal,718.51, 10-Dec-2013
456,Revenue,CCHD,Day Care - South,Private & Voluntary Day Care,Dhek Bhal,967.28, 10-Dec-2013
457,Revenue,CCHD,Day Care - South,Private & Voluntary Day Care,Dhek Bhal,835.6, 20-Dec-2013
458,Revenue,CCHD,Day Care - South,Private & Voluntary Day Care,Dhek Bhal,793.82, 20-Dec-2013
459,Revenue,CCHD,Bed Purchasing - Under 65s PWLD - South,Residential Permanent,Dimensions (Uk),4808.36, 24-Dec-2013
460,Revenue,CCHD,Supported Living - South,Private & Voluntary Home Care,Dimensions (UK) Ltd,7748.4, 18-Dec-2013
461,Revenue,CCHD,NTS Grant - Trainee Social Wor,Training Expenses,Do The Right Thing Ltd,1750, 11-Dec-2013
462,Revenue,CCHD,Home Care - Elderly - South,Other Small Contracts,DoCare Ltd,5230.4, 13-Dec-2013
463,Revenue,CCHD,Home Care - Elderly - North,Other Small Contracts,DoCare Ltd,7056.37, 13-Dec-2013
464,Revenue,CCHD,Day Care - North,Private & Voluntary Day Care,DoCare Ltd,56.04, 13-Dec-2013
465,Revenue,CCHD,Home Care - Elderly - South,Other Small Contracts,DoCare Ltd,5006.24, 13-Dec-2013
466,Revenue,CCHD,Home Care - Elderly - North,Other Small Contracts,DoCare Ltd,6528.66, 13-Dec-2013
467,Revenue,CCHD,Day Care - North,Private & Voluntary Day Care,DoCare Ltd,130.76, 13-Dec-2013
468,Revenue,CCHD,Home Care - Elderly - South,Other Small Contracts,DoCare Ltd,5337.81, 13-Dec-2013
469,Revenue,CCHD,Home Care - Elderly - North,Other Small Contracts,DoCare Ltd,7187.13, 13-Dec-2013
470,Revenue,CCHD,Day Care - North,Private & Voluntary Day Care,DoCare Ltd,112.08, 13-Dec-2013
471,Revenue,CCHD,Home Care - Elderly - South,Other Small Contracts,DoCare Ltd,5146.34, 13-Dec-2013
472,Revenue,CCHD,Home Care - Elderly - North,Other Small Contracts,DoCare Ltd,7443.98, 13-Dec-2013
473,Revenue,CCHD,Day Care - North,Private & Voluntary Day Care,DoCare Ltd,168.12, 13-Dec-2013
474,Revenue,CCHD,Home Care - Elderly - South,Other Small Contracts,DoCare Ltd,4936.19, 13-Dec-2013
475,Revenue,CCHD,Home Care - Elderly - North,Other Small Contracts,DoCare Ltd,7224.49, 13-Dec-2013
476,Revenue,CCHD,Day Care - North,Private & Voluntary Day Care,DoCare Ltd,168.12, 13-Dec-2013
477,Revenue,CCHD,Home Care - Elderly - South,Other Small Contracts,DoCare Ltd,4912.84, 13-Dec-2013
478,Revenue,CCHD,Home Care - Elderly - North,Other Small Contracts,DoCare Ltd,8037.07, 13-Dec-2013
479,Revenue,CCHD,Day Care - North,Private & Voluntary Day Care,DoCare Ltd,74.72, 13-Dec-2013
480,Revenue,CCHD,Home Care - Elderly - South,Other Small Contracts,DoCare Ltd,4712.03, 18-Dec-2013
481,Revenue,CCHD,Home Care - Elderly - North,Other Small Contracts,DoCare Ltd,8158.49, 18-Dec-2013
482,Revenue,CCHD,Day Care - North,Private & Voluntary Day Care,DoCare Ltd,74.72, 18-Dec-2013
483,Revenue,CCHD,Home Care - Elderly - South,Other Small Contracts,DoCare Ltd,4539.24, 27-Dec-2013
484,Revenue,CCHD,Home Care - Elderly - North,Other Small Contracts,DoCare Ltd,7976.36, 27-Dec-2013
485,Revenue,CCHD,Day Care - North,Private & Voluntary Day Care,DoCare Ltd,74.72, 27-Dec-2013
486,Revenue,CCHD,Home Care - Elderly - South,Other Small Contracts,DoCare Ltd,4964.21, 17-Dec-2013
487,Revenue,CCHD,Home Care - Elderly - North,Other Small Contracts,DoCare Ltd,7415.96, 17-Dec-2013
488,Revenue,CCHD,Day Care - North,Private & Voluntary Day Care,DoCare Ltd,116.75, 17-Dec-2013
489,Revenue,CCHD,Stop Smoking Services and Interventions,Other Supplies & Services,Dr A Kerr,720, 09-Dec-2013
490,Revenue,CCHD,Drug Misuse - Adults,Other Supplies & Services,Dr Norman,2842, 18-Dec-2013
491,Revenue,CCHD,Stop Smoking Services and Interventions,Other Supplies & Services,Dr Norman,900, 18-Dec-2013
492,Revenue,CCHD,Stop Smoking Services and Interventions,Other Supplies & Services,Dr Norman,560, 30-Dec-2013
493,Revenue,CCHD,Stop Smoking Services and Interventions,Other Supplies & Services,Dr P J Burney & Partners,880, 11-Dec-2013
494,Revenue,CCHD,Drug Misuse - Adults,Other Supplies & Services,Dr P J Burney & Partners,508, 27-Dec-2013
495,Revenue,CCHD,Drug Misuse - Adults,Other Supplies & Services,Dr Robertson,1218, 09-Dec-2013
496,Revenue,CCHD,Stop Smoking Services and Interventions,Other Supplies & Services,Dr Robertson,770, 09-Dec-2013
497,Revenue,CCHD,Drug Misuse - Adults,Other Supplies & Services,Dr Robertson,1320, 27-Dec-2013
498,Revenue,CCHD,Bed Purchasing - Under 65s PWLD - South,Residential Permanent,Dudbridge House,6546.16, 24-Dec-2013
499,Revenue,CCHD,Bed Purchasing - Elderly - South,Nursing Permanent,Dunkirk Memorial House,1158.8, 24-Dec-2013
500,Revenue,CCHD,MH Purchasing - Younger,Residential Permanent,Dunraven House,1826.8, 24-Dec-2013
501,Revenue,CCHD,Bed and Breakfast,Bed & Breakfast,E J Bartlett,420, 06-Dec-2013
502,Revenue,CCHD,Bed and Breakfast,Bed & Breakfast,E J Bartlett,434, 06-Dec-2013
503,Revenue,CCHD,Bed and Breakfast,Bed & Breakfast,E J Bartlett,868, 06-Dec-2013
504,Revenue,CCHD,Bed and Breakfast,Bed & Breakfast,E J Bartlett,825, 11-Dec-2013
505,Revenue,CCHD,Bed and Breakfast,Bed & Breakfast,E J Bartlett,420, 11-Dec-2013
506,Revenue,CCHD,Bed and Breakfast,Bed & Breakfast,E J Bartlett,868, 11-Dec-2013
507,Revenue,CCHD,Bed and Breakfast,Bed & Breakfast,E J Bartlett,420, 18-Dec-2013
508,Revenue,CCHD,Bed and Breakfast,Bed & Breakfast,E J Bartlett,434, 19-Dec-2013
509,Revenue,CCHD,Bed and Breakfast,Bed & Breakfast,E J Bartlett,868, 18-Dec-2013
510,Revenue,CCHD,Bed purchasing - Under 65s PWLD - North,Residential Permanent,East Court,2180.72, 24-Dec-2013
511,Revenue,CCHD,Minor Adaptations Service,Operational Equipment,Eastman & Co (Timber) Limited,918.2, 13-Dec-2013
512,Revenue,CCHD,Day Care - South,Private & Voluntary Day Care,Easton Community Centre,512.88, 24-Dec-2013
513,Revenue,CCHD,Day Care - South,Private & Voluntary Day Care,Easton Community Centre,512.88, 24-Dec-2013
514,Revenue,CCHD,Younger MH non-res purchasing,Private & Voluntary Day Care,Easton Community Centre,512.88, 24-Dec-2013
515,Revenue,CCHD,Day Care - South,Private & Voluntary Day Care,Easton Community Centre,512.88, 24-Dec-2013
516,Revenue,CCHD,Day Care - South,Private & Voluntary Day Care,Easton Community Centre,512.88, 24-Dec-2013
517,Revenue,CCHD,Bed Purchasing - Elderly - South,Residential Permanent,Edgecumbe Lodge,1514, 24-Dec-2013
518,Revenue,CCHD,Bed Purchasing - Southmead Hospital,Residential Permanent,Edgecumbe Lodge,1246, 24-Dec-2013
519,Revenue,CCHD,Bed Purchasing - Elderly - South,Residential Permanent,Edgecumbe Lodge,1052.16, 24-Dec-2013
520,Revenue,CCHD,Bed Purchasing - Elderly - South,Residential Permanent,Edgecumbe Lodge,1312.64, 24-Dec-2013
521,Revenue,CCHD,Bed Purchasing - Southmead Hospital,Residential Permanent,Edgecumbe Lodge,2100, 24-Dec-2013
522,Revenue,CCHD,Bed Purchasing - Elderly - South,Residential Permanent,Edgecumbe Lodge,1405.12, 24-Dec-2013
523,Revenue,CCHD,Bed Purchasing - Southmead Hospital,Residential Permanent,Edgecumbe Lodge,1514, 24-Dec-2013
524,Revenue,CCHD,Bed Purchasing - Elderly - South,Residential Permanent,Edgecumbe Lodge,991.96, 24-Dec-2013
525,Revenue,CCHD,Bed Purchasing - Elderly - South,Residential Permanent,Edgecumbe Lodge,1276.24, 24-Dec-2013
526,Revenue,CCHD,Bed Purchasing - Elderly - South,Residential Permanent,Edgecumbe Lodge,1223.16, 24-Dec-2013
527,Revenue,CCHD,Bed Purchasing - Southmead Hospital,Residential Permanent,Edgemont House Ltd,1414, 24-Dec-2013
528,Revenue,CCHD,Bed Purchasing - Elderly - South,Residential Permanent,Edgemont House Ltd,1454, 24-Dec-2013
529,Revenue,CCHD,Bed Purchasing - Elderly - South,Residential Permanent,Edgemont House Ltd,1246, 24-Dec-2013
530,Revenue,CCHD,Bed Purchasing - Elderly - South,Residential Permanent,Edgemont House Ltd,1246, 24-Dec-2013
531,Revenue,CCHD,Bed Purchasing - Elderly - South,Residential Permanent,Edgemont House Ltd,1412.04, 24-Dec-2013
532,Revenue,CCHD,Bed Purchasing - Elderly - South,Residential Permanent,Edgemont House Ltd,1260.96, 24-Dec-2013
533,Revenue,CCHD,Bed Purchasing - Frenchay Hospital,Nursing Permanent,Edgemont View Nursing Home,2810.98, 24-Dec-2013
534,Revenue,CCHD,Bed Purchasing - Frenchay Hospital,Nursing Permanent,Edgemont View Nursing Home,1074.44, 24-Dec-2013
535,Revenue,CCHD,Bed Purchasing - Frenchay Hospital,Nursing Permanent,Edgemont View Nursing Home,1488, 24-Dec-2013
536,Revenue,CCHD,Bed Purchasing - Frenchay Hospital,Nursing Permanent,Edgemont View Nursing Home,1302, 24-Dec-2013
537,Revenue,CCHD,South Glos Users in South Glos Homes,Nursing Permanent,Edgemont View Nursing Home,1960.54, 24-Dec-2013
538,Revenue,CCHD,South Glos Users in South Glos Homes,Nursing Permanent,Edgemont View Nursing Home,501.9, 24-Dec-2013
539,Revenue,CCHD,Bed Purchasing - Elderly - South,Nursing Permanent,Edgemont View Nursing Home,1427.52, 24-Dec-2013
540,Revenue,CCHD,Bed Purchasing - Elderly - South,Nursing Permanent,Edgemont View Nursing Home,1302, 24-Dec-2013
541,Revenue,CCHD,Bed Purchasing - Elderly - South,Nursing Permanent,Edgemont View Nursing Home,1613.52, 24-Dec-2013
542,Revenue,CCHD,Bed Purchasing - Elderly - South,Nursing Permanent,Edgemont View Nursing Home,1177.24, 24-Dec-2013
543,Revenue,CCHD,Supporting People Programme,Grants to Voluntary Bodies,Elim Housing Association Limited,4945.25, 30-Dec-2013
544,Revenue,CCHD,Home Care - Elderly - South,Other Small Contracts,Elite Home Care Ltd,5527.57, 27-Dec-2013
545,Revenue,CCHD,Home Care - Elderly - South,Other Small Contracts,Elite Home Care Ltd,5304.66, 27-Dec-2013
546,Revenue,CCHD,Home Care - Elderly - South,Other Small Contracts,Elite Home Care Ltd,5143.01, 27-Dec-2013
547,Revenue,CCHD,Home Care - Elderly - South,Other Small Contracts,Elite Home Care Ltd,4767.19, 17-Dec-2013
548,Revenue,CCHD,Home Care - Elderly - North,Other Small Contracts,Elite Home Care Ltd,117.99, 17-Dec-2013
549,Revenue,CCHD,Home Care - Elderly - South,Other Small Contracts,Elite Home Care Ltd,5007.54, 27-Dec-2013
550,Revenue,CCHD,Bed Purchasing - Elderly - South,Residential Permanent,Elmbridge Residential Home Ltd,3952.68, 24-Dec-2013
551,Revenue,CCHD,Bed Purchasing - Frenchay Hospital,Nursing Permanent,Elmwood Nursing Home,2223.88, 24-Dec-2013
552,Revenue,CCHD,Drug Misuse - Adults,Other Supplies & Services,Emersons Green Medical Centre,1827, 23-Dec-2013
553,Revenue,CCHD,Day Care - South,Private & Voluntary Day Care,Enham,638.72, 05-Dec-2013
554,Revenue,CCHD,Day Care - South,Private & Voluntary Day Care,Enham,638.72, 24-Dec-2013
555,Revenue,CCHD,Home Care - Elderly - South,Other Small Contracts,Everycare (Bristol) Ltd,5944.48, 06-Dec-2013
556,Revenue,CCHD,Home Care - Elderly - North,Other Small Contracts,Everycare (Bristol) Ltd,2825.96, 06-Dec-2013
557,Revenue,CCHD,Day Care - South,Private & Voluntary Day Care,Everycare (Bristol) Ltd,93.28, 06-Dec-2013
558,Revenue,CCHD,Under 65s -MH  Home Care Purch,Other Small Contracts,Everycare (Bristol) Ltd,33.92, 06-Dec-2013
559,Revenue,CCHD,Home Care - Elderly - South,Other Small Contracts,Everycare (Bristol) Ltd,5965.46, 06-Dec-2013
560,Revenue,CCHD,Home Care - Elderly - North,Other Small Contracts,Everycare (Bristol) Ltd,2654.24, 06-Dec-2013
561,Revenue,CCHD,Day Care - South,Private & Voluntary Day Care,Everycare (Bristol) Ltd,106, 06-Dec-2013
562,Revenue,CCHD,Under 65s -MH  Home Care Purch,Other Small Contracts,Everycare (Bristol) Ltd,33.92, 06-Dec-2013
563,Revenue,CCHD,Home Care - Elderly - South,Other Small Contracts,Everycare (Bristol) Ltd,6092.88, 12-Dec-2013
564,Revenue,CCHD,Home Care - Elderly - North,Other Small Contracts,Everycare (Bristol) Ltd,2448.6, 12-Dec-2013
565,Revenue,CCHD,Day Care - South,Private & Voluntary Day Care,Everycare (Bristol) Ltd,106, 12-Dec-2013
566,Revenue,CCHD,Under 65s -MH  Home Care Purch,Other Small Contracts,Everycare (Bristol) Ltd,33.92, 12-Dec-2013
567,Revenue,CCHD,Home Care - Elderly - South,Other Small Contracts,Everycare (Bristol) Ltd,6279.44, 18-Dec-2013
568,Revenue,CCHD,Home Care - Elderly - North,Other Small Contracts,Everycare (Bristol) Ltd,2971.18, 18-Dec-2013
569,Revenue,CCHD,Day Care - South,Private & Voluntary Day Care,Everycare (Bristol) Ltd,93.28, 18-Dec-2013
570,Revenue,CCHD,Under 65s -MH  Home Care Purch,Other Small Contracts,Everycare (Bristol) Ltd,84.8, 18-Dec-2013
571,Revenue,CCHD,Home Care - Elderly - South,Other Small Contracts,Everycare (Bristol) Ltd,6029.28, 27-Dec-2013
572,Revenue,CCHD,Home Care - Elderly - North,Other Small Contracts,Everycare (Bristol) Ltd,2731.62, 27-Dec-2013
573,Revenue,CCHD,Day Care - South,Private & Voluntary Day Care,Everycare (Bristol) Ltd,106, 27-Dec-2013
574,Revenue,CCHD,Under 65s -MH  Home Care Purch,Other Small Contracts,Everycare (Bristol) Ltd,84.8, 27-Dec-2013
575,Revenue,CCHD,Bed Purchasing - Elderly MH - South,Residential Permanent,Exmouth House,1397.88, 24-Dec-2013
576,Revenue,CCHD,Bed Purchasing - Southmead Hospital,Residential Permanent,Fairfield House Care Home,4362.84, 24-Dec-2013
577,Revenue,CCHD,Bed Purchasing - Elderly - South,Nursing Permanent,Fairview Court,1180.4, 24-Dec-2013
578,Revenue,CCHD,Bed purchasing - Elderly MH - North,Nursing Permanent,Fairview Court,1595.96, 24-Dec-2013
579,Revenue,CCHD,Bed Purchasing - Elderly MH - South,Nursing Permanent,Fairview Court,1850.48, 24-Dec-2013
580,Revenue,CCHD,Bed Purchasing - Elderly MH - South,Nursing Permanent,Fairview Court,1934.36, 24-Dec-2013
581,Revenue,CCHD,Bed Purchasing - Southmead Hospital,Nursing Permanent,Fairview Court,1023.72, 24-Dec-2013
582,Revenue,CCHD,Bed Purchasing - Elderly - South,Nursing Permanent,Fairview Court,1056.84, 24-Dec-2013
583,Revenue,CCHD,Bed Purchasing - Elderly MH - South,Residential Permanent,Fairview Court,1414, 24-Dec-2013
584,Revenue,CCHD,Bed Purchasing - Elderly - South,Nursing Permanent,Fairview Court,2476, 24-Dec-2013
585,Revenue,CCHD,Bed Purchasing - Elderly - South,Residential Permanent,Fairview Court,2648.56, 24-Dec-2013
586,Revenue,CCHD,Bed Purchasing - Elderly - South,Residential Permanent,Fairview Court,2154.56, 24-Dec-2013
587,Revenue,CCHD,Bed Purchasing - Elderly - South,Nursing Permanent,Fairview Court,1830.44, 24-Dec-2013
588,Revenue,CCHD,South Glos Users in South Glos Homes,Nursing Permanent,Fairview Court,1411.59, 24-Dec-2013
589,Revenue,CCHD,Bed Purchasing - Frenchay Hospital,Nursing Permanent,Fairview Court,1836.08, 24-Dec-2013
590,Revenue,CCHD,Bed Purchasing - Elderly MH - South,Nursing Permanent,Fairview Court,1921.68, 24-Dec-2013
591,Revenue,CCHD,Bed purchasing - Elderly MH - North,Nursing Permanent,Fairview Court,1699.6, 24-Dec-2013
592,Revenue,CCHD,Bed Purchasing - Frenchay Hospital,Nursing Permanent,Fairview Court Care Home,1482.48, 13-Dec-2013
593,Revenue,CCHD,South Glos Users in South Glos Homes,Nursing Permanent,Fairview Court Care Home,3074.12, 13-Dec-2013
594,Revenue,CCHD,Bed purchasing - Phys Dis - North,Nursing Permanent,Fairview Court Care Home,895.63, 13-Dec-2013
595,Revenue,CCHD,Bed Purchasing - Elderly MH - South,Nursing Permanent,Fairview Court Care Home,4528.11, 13-Dec-2013
596,Revenue,CCHD,Bed purchasing - Elderly S117 - South,Nursing Permanent,Fairview Court Care Home,2491.46, 13-Dec-2013
597,Revenue,CCHD,Bed Purchasing - Elderly - South,Residential Permanent,Fairview House,865.48, 24-Dec-2013
598,Revenue,CCHD,Bed Purchasing - Elderly - South,Residential Permanent,Fairview House,1265.24, 24-Dec-2013
599,Revenue,CCHD,Bed Purchasing - Frenchay Hospital,Residential Permanent,Fairview House,992.24, 24-Dec-2013
600,Revenue,CCHD,Bed Purchasing - Elderly - South,Residential Permanent,Fairview House,928.12, 24-Dec-2013
601,Revenue,CCHD,Bed purchasing - Elderly S117 - South,Residential Permanent,Fairview House,1888.88, 24-Dec-2013
602,Revenue,CCHD,Bed Purchasing - Southmead Hospital,Residential Permanent,Fairview House,1019.48, 24-Dec-2013
603,Revenue,CCHD,Bed Purchasing - Elderly - South,Residential Permanent,Fairview House,721.84, 24-Dec-2013
604,Revenue,CCHD,South Glos Users in South Glos Homes,Nursing Permanent,Fairview House,611.69, 24-Dec-2013
605,Revenue,CCHD,Bed Purchasing - Elderly - South,Residential Permanent,Fairview House,1188.36, 24-Dec-2013
606,Revenue,CCHD,Bed Purchasing - Southmead Hospital,Residential Permanent,Fairview House,1116.24, 24-Dec-2013
607,Revenue,CCHD,Bed Purchasing - Elderly MH - South,Residential Permanent,Fairview House,1109.84, 24-Dec-2013
608,Revenue,CCHD,Bed Purchasing - Frenchay Hospital,Residential Permanent,Fairview House,1246, 24-Dec-2013
609,Revenue,CCHD,Bed Purchasing - Southmead Hospital,Residential Permanent,Fairview House,1062.04, 24-Dec-2013
610,Revenue,CCHD,Bed Purchasing - Elderly MH - South,Residential Permanent,Fairview House,1036.08, 24-Dec-2013
611,Revenue,CCHD,Bed Purchasing - Frenchay Hospital,Residential Permanent,Faith House,1206.2, 24-Dec-2013
612,Revenue,CCHD,Bed purchasing - Under 65s PWLD - North,Residential Permanent,Fernbank,7593.16, 24-Dec-2013
613,Revenue,CCHD,Home Care - Elderly - South,Other Small Contracts,Firstpoint Homecare Ltd,1071.36, 27-Dec-2013
614,Revenue,CCHD,Home Care - Elderly - North,Other Small Contracts,Firstpoint Homecare Ltd,1440, 27-Dec-2013
615,Revenue,CCHD,Day Care - North,Private & Voluntary Day Care,Firstpoint Homecare Ltd,241.92, 27-Dec-2013
616,Revenue,CCHD,Under 65s -MH  Home Care Purch,Other Small Contracts,Firstpoint Homecare Ltd,46.08, 27-Dec-2013
617,Revenue,CCHD,Home care - Elderly MH - North,Other Small Contracts,Firstpoint Homecare Ltd,46.08, 27-Dec-2013
618,Revenue,CCHD,Elderly MH Day Care North,Private & Voluntary Day Care,Firstpoint Homecare Ltd,84.48, 27-Dec-2013
619,Revenue,CCHD,Home Care - Elderly - South,Other Small Contracts,Firstpoint Homecare Ltd,1102.08, 27-Dec-2013
620,Revenue,CCHD,Home Care - Elderly - North,Other Small Contracts,Firstpoint Homecare Ltd,1397.76, 27-Dec-2013
621,Revenue,CCHD,Day Care - South,Private & Voluntary Day Care,Firstpoint Homecare Ltd,157.44, 27-Dec-2013
622,Revenue,CCHD,Day Care - North,Private & Voluntary Day Care,Firstpoint Homecare Ltd,199.68, 27-Dec-2013
623,Revenue,CCHD,Under 65s -MH  Home Care Purch,Other Small Contracts,Firstpoint Homecare Ltd,46.08, 27-Dec-2013
624,Revenue,CCHD,Home care - Elderly MH - North,Other Small Contracts,Firstpoint Homecare Ltd,46.08, 27-Dec-2013
625,Revenue,CCHD,Elderly MH Day Care North,Private & Voluntary Day Care,Firstpoint Homecare Ltd,92.16, 27-Dec-2013
626,Revenue,CCHD,Bed Purchasing - Elderly - South,Nursing Permanent,Four Seasons Health Care,1177.16, 24-Dec-2013
627,Revenue,CCHD,Bed Purchasing - Elderly S117- North,Residential Permanent,Four Seasons Health Care,2030.36, 24-Dec-2013
628,Revenue,CCHD,Bed Purchasing - Frenchay Hospital,Residential Permanent,Four Seasons Health Care,1526.84, 24-Dec-2013
629,Revenue,CCHD,Freeways,Residential Permanent,Freeways Trust Limited,46214.23, 12-Dec-2013
630,Revenue,CCHD,Supported Living - South,Private & Voluntary Home Care,Freeways Trust Limited,1389.08, 06-Dec-2013
631,Revenue,CCHD,Bed purchasing - Under 65s PWLD - North,Residential Permanent,Freeways Trust Ltd,2817.88, 24-Dec-2013
632,Revenue,CCHD,Bed purchasing - S28A Under 65 - South,Residential Permanent,Freeways Trust Ltd,2880.64, 24-Dec-2013
633,Revenue,CCHD,Bed purchasing - Under 65s PWLD - North,Residential Permanent,Freeways Trust Ltd,2682.36, 24-Dec-2013
634,Revenue,CCHD,Bed purchasing - Under 65s PWLD - North,Residential Permanent,Freeways Trust Ltd,2253.16, 24-Dec-2013
635,Revenue,CCHD,Bed purchasing - Under 65s PWLD - North,Residential Permanent,Freeways Trust Ltd,2691.08, 24-Dec-2013
636,Revenue,CCHD,Bed Purchasing - Under 65s PWLD - South,Residential Permanent,Freeways Trust Ltd,3289.6, 24-Dec-2013
637,Revenue,CCHD,Bed purchasing - Elderly PWLD - North,Residential Permanent,Freeways Trust Ltd,2235.92, 24-Dec-2013
638,Revenue,CCHD,Bed Purchasing - Under 65s PWLD - South,Residential Permanent,Freeways Trust Ltd,2382.36, 24-Dec-2013
639,Revenue,CCHD,Bed purchasing - Under 65s PWLD - North,Residential Permanent,Freeways Trust Ltd,2691.08, 24-Dec-2013
640,Revenue,CCHD,Bed purchasing - Elderly PWLD - North,Residential Permanent,Freeways Trust Ltd,3112.28, 24-Dec-2013
641,Revenue,CCHD,Section 117 Placements MH Younger,Residential Permanent,Freeways Trust Ltd,3324, 24-Dec-2013
642,Revenue,CCHD,Bed Purchasing - Under 65s PWLD - South,Residential Permanent,Freeways Trust Ltd,6117.96, 24-Dec-2013
643,Revenue,CCHD,Bed Purchasing - Frenchay Hospital,Nursing Permanent,Frenchay Park Nursing Home,1004.36, 24-Dec-2013
644,Revenue,CCHD,Bed Purchasing - Elderly - South,Nursing Permanent,Frenchay Park Nursing Home,2752.1, 24-Dec-2013
645,Revenue,CCHD,Public Health - Admin,Other Supplies & Services,Frome Valley Medical Centre,1839, 23-Dec-2013
646,Revenue,CCHD,Drug Misuse - Adults,Other Supplies & Services,Frome Valley Medical Centre,508, 27-Dec-2013
647,Revenue,CCHD,Bed Purchasing - Elderly - South,Nursing Permanent,Fshc  1St Floor,891.56, 24-Dec-2013
648,Revenue,CCHD,Bed Purchasing - Frenchay Hospital,Residential Permanent,Fshc  1St Floor,893.96, 24-Dec-2013
649,Revenue,CCHD,Bed Purchasing - Southmead Hospital,Nursing Permanent,Fshc  1St Floor,1370, 24-Dec-2013
650,Revenue,CCHD,Bed Purchasing - Southmead Hospital,Nursing Permanent,Fshc  1St Floor,782.16, 24-Dec-2013
651,Revenue,CCHD,Bed Purchasing - Frenchay Hospital,Residential Permanent,Fshc  1St Floor,1242.96, 24-Dec-2013
652,Revenue,CCHD,Bed Purchasing - Frenchay Hospital,Nursing Permanent,Fshc  1St Floor,1370, 24-Dec-2013
653,Revenue,CCHD,Bed Purchasing - Southmead Hospital,Nursing Permanent,Fshc  1St Floor,1370, 24-Dec-2013
654,Revenue,CCHD,Bed Purchasing - Frenchay Hospital,Nursing Respite,Fshc  1St Floor,1856, 24-Dec-2013
655,Revenue,CCHD,Bed Purchasing - Frenchay Hospital,Nursing Respite,Fshc  1St Floor,1657.14, 24-Dec-2013
656,Revenue,CCHD,South Glos Users in South Glos Homes,Nursing Permanent,Fshc  1St Floor,2697.7, 24-Dec-2013
657,Revenue,CCHD,Bed Purchasing - Elderly - South,Nursing Permanent,Fshc  1St Floor,1048.64, 24-Dec-2013
658,Revenue,CCHD,Bed Purchasing - Southmead Hospital,Nursing Permanent,Fshc  1St Floor,1370, 24-Dec-2013
659,Revenue,CCHD,Bed Purchasing - Elderly - South,Nursing Permanent,Fshc  1St Floor,1206.72, 24-Dec-2013
660,Revenue,CCHD,Bed Purchasing - Southmead Hospital,Nursing Permanent,Fshc  1St Floor,1290.89, 24-Dec-2013
661,Revenue,CCHD,Bed Purchasing - Southmead Hospital,Nursing Permanent,Fshc  1St Floor,1196.72, 24-Dec-2013
662,Revenue,CCHD,Swift Dump Code,Residential Permanent,Fshc  1St Floor,601.77, 24-Dec-2013
663,Revenue,CCHD,South Glos Users in South Glos Homes,Nursing Permanent,Fshc  1St Floor,533.27, 24-Dec-2013
664,Revenue,CCHD,Bed Purchasing - Elderly - South,Nursing Permanent,Fshc  1St Floor,1301.36, 24-Dec-2013
665,Revenue,CCHD,Bed Purchasing - Frenchay Hospital,Residential Permanent,Fshc  1St Floor,1246, 24-Dec-2013
666,Revenue,CCHD,Bed Purchasing - Frenchay Hospital,Nursing Permanent,Fshc  1St Floor,1308.96, 24-Dec-2013
667,Revenue,CCHD,Bed Purchasing - Southmead Hospital,Nursing Permanent,Fshc  1St Floor,1370, 24-Dec-2013
668,Revenue,CCHD,Bed Purchasing - Southmead Hospital,Residential Permanent,Fshc  1St Floor,533.6, 24-Dec-2013
669,Revenue,CCHD,Bed Purchasing - Southmead Hospital,Nursing Permanent,Fshc  1St Floor,1102.08, 24-Dec-2013
670,Revenue,CCHD,Bed Purchasing - Elderly - North,Nursing Permanent,Fshc  1St Floor,1370, 24-Dec-2013
671,Revenue,CCHD,Bed Purchasing - Elderly - North,Nursing Permanent,Fshc  1St Floor,1856, 24-Dec-2013
672,Revenue,CCHD,Bed Purchasing - Frenchay Hospital,Nursing Permanent,Fshc  1St Floor,1180.6, 24-Dec-2013
673,Revenue,CCHD,Bed Purchasing - Elderly - South,Nursing Permanent,Fshc  1St Floor,1370, 24-Dec-2013
674,Revenue,CCHD,Bed Purchasing - Elderly - South,Nursing Permanent,Fshc  1St Floor,1316.36, 24-Dec-2013
675,Revenue,CCHD,Bed Purchasing - Elderly MH - South,Nursing Permanent,Fshc  1St Floor,1370, 24-Dec-2013
676,Revenue,CCHD,Bed Purchasing - Elderly - South,Nursing Permanent,Fshc  1St Floor,1371.6, 24-Dec-2013
677,Revenue,CCHD,Bed Purchasing - Frenchay Hospital,Nursing Permanent,Fshc  1St Floor,1078.4, 24-Dec-2013
678,Revenue,CCHD,Bed Purchasing - Elderly MH - South,Residential Permanent,Fshc  1St Floor,1090.48, 24-Dec-2013
679,Revenue,CCHD,Bed Purchasing - Elderly - South,Nursing Permanent,Fshc  1St Floor,765.08, 24-Dec-2013
680,Revenue,CCHD,Bed Purchasing - Elderly - South,Nursing Respite,Fshc  1St Floor,1856, 24-Dec-2013
681,Revenue,CCHD,Bed Purchasing - Elderly - South,Nursing Respite,Fshc  1St Floor,861.71, 24-Dec-2013
682,Revenue,CCHD,Bed Purchasing - Elderly - South,Nursing Permanent,Fshc  1St Floor,1334, 24-Dec-2013
683,Revenue,CCHD,Bed Purchasing - Southmead Hospital,Nursing Permanent,Fshc  1St Floor,1370, 24-Dec-2013
684,Revenue,CCHD,Bed Purchasing - Elderly MH - South,Nursing Permanent,Fshc  1St Floor,1216.84, 24-Dec-2013
685,Revenue,CCHD,Bed Purchasing - Southmead Hospital,Nursing Permanent,Fshc  1St Floor,1362.4, 24-Dec-2013
686,Revenue,CCHD,Bed purchasing - Elderly MH - North,Nursing Permanent,Fshc  1St Floor,786.72, 24-Dec-2013
687,Revenue,CCHD,Bed Purchasing - Elderly - South,Nursing Permanent,Fshc  1St Floor,992.4, 24-Dec-2013
688,Revenue,CCHD,South Glos Users in South Glos Homes,Nursing Permanent,Fshc  1St Floor,1819.38, 24-Dec-2013
689,Revenue,CCHD,Swift Dump Code,Residential Permanent,Fshc  1St Floor,891.32, 24-Dec-2013
690,Revenue,CCHD,Bed Purchasing - Southmead Hospital,Nursing Permanent,Fshc  1St Floor,1203.68, 24-Dec-2013
691,Revenue,CCHD,Bed Purchasing - Elderly - North,Nursing Permanent,Fshc  1St Floor,1215.9, 24-Dec-2013
692,Revenue,CCHD,Bed Purchasing - Elderly - North,Nursing Permanent,Fshc  1St Floor,1134.84, 24-Dec-2013
693,Revenue,CCHD,South Glos Users in South Glos Homes,Nursing Permanent,Fshc  1St Floor,548.95, 24-Dec-2013
694,Revenue,CCHD,Bed Purchasing - Elderly - North,Nursing Permanent,Fshc  1St Floor,974.36, 24-Dec-2013
695,Revenue,CCHD,Bed Purchasing - Elderly - North,Nursing Permanent,Fshc  1St Floor,1284.08, 24-Dec-2013
696,Revenue,CCHD,Bed Purchasing - Elderly - North,Nursing Permanent,Fshc  1St Floor,1339, 24-Dec-2013
697,Revenue,CCHD,South Glos Users in South Glos Homes,Nursing Permanent,Fshc  1St Floor,2133.06, 24-Dec-2013
698,Revenue,CCHD,South Glos Users in South Glos Homes,Nursing Permanent,Fshc  1St Floor,1490.01, 24-Dec-2013
699,Revenue,CCHD,Bed Purchasing - Southmead Hospital,Nursing Permanent,Fshc  1St Floor,1215.4, 24-Dec-2013
700,Revenue,CCHD,Bed Purchasing - Elderly - North,Residential Permanent,Fshc  1St Floor,1347.68, 24-Dec-2013
701,Revenue,CCHD,Bed Purchasing - Elderly - North,Residential Permanent,Fshc  1St Floor,1359.72, 24-Dec-2013
702,Revenue,CCHD,Bed Purchasing - Southmead Hospital,Nursing Permanent,Fshc  1St Floor,2032, 24-Dec-2013
703,Revenue,CCHD,Bed Purchasing - Frenchay Hospital,Nursing Permanent,Fshc  1St Floor,1097.72, 24-Dec-2013
704,Revenue,CCHD,Bed Purchasing - Frenchay Hospital,Nursing Permanent,Fshc  1St Floor,1114.96, 24-Dec-2013
705,Revenue,CCHD,Bed purchasing - Elderly MH - North,Nursing Permanent,Fshc  1St Floor,1546, 24-Dec-2013
706,Revenue,CCHD,Bed Purchasing - Southmead Hospital,Nursing Permanent,Fshc  1St Floor,1269.68, 24-Dec-2013
707,Revenue,CCHD,Bed Purchasing - Frenchay Hospital,Residential Permanent,Fshc  1St Floor,1475.75, 24-Dec-2013
708,Revenue,CCHD,Bed Purchasing - Frenchay Hospital,Residential Permanent,Fshc  1St Floor,1087.4, 24-Dec-2013
709,Revenue,CCHD,Bed Purchasing - Elderly - South,Residential Permanent,Fshc  1St Floor,1117.84, 24-Dec-2013
710,Revenue,CCHD,Bed Purchasing - Frenchay Hospital,Nursing Permanent,Fshc  1St Floor,1546, 24-Dec-2013
711,Revenue,CCHD,Bed Purchasing - Elderly - North,Nursing Permanent,Fshc  1St Floor,1370, 24-Dec-2013
712,Revenue,CCHD,Bed Purchasing - Southmead Hospital,Nursing Permanent,Fshc  1St Floor,1370, 24-Dec-2013
713,Revenue,CCHD,Bed Purchasing - Elderly - North,Nursing Permanent,Fshc  1St Floor,579.12, 24-Dec-2013
714,Revenue,CCHD,Bed purchasing - Elderly MH - North,Nursing Permanent,Fshc  1St Floor,1468.6, 24-Dec-2013
715,Revenue,CCHD,Bed Purchasing - Elderly - North,Nursing Permanent,Fshc  1St Floor,1269.68, 24-Dec-2013
716,Revenue,CCHD,South Glos Users in South Glos Homes,Nursing Permanent,Fshc  1St Floor,1693.9, 24-Dec-2013
717,Revenue,CCHD,Bed Purchasing - Frenchay Hospital,Nursing Permanent,Fshc  1St Floor,1018.76, 24-Dec-2013
718,Revenue,CCHD,Bed Purchasing - Southmead Hospital,Nursing Permanent,Fshc  1St Floor,1364.32, 24-Dec-2013
719,Revenue,CCHD,Bed Purchasing - Frenchay Hospital,Residential Permanent,Fshc  1St Floor,628.4, 24-Dec-2013
720,Revenue,CCHD,Bed Purchasing - Frenchay Hospital,Nursing Permanent,Fshc  1St Floor,1286.96, 24-Dec-2013
721,Revenue,CCHD,Bed Purchasing - Frenchay Hospital,Nursing Permanent,Fshc  1St Floor,1350.84, 24-Dec-2013
722,Revenue,CCHD,Bed Purchasing - Elderly - North,Nursing Permanent,Fshc  1St Floor,1041.72, 24-Dec-2013
723,Revenue,CCHD,Bed Purchasing - Elderly - North,Residential Permanent,Fshc  1St Floor,782.56, 24-Dec-2013
724,Revenue,CCHD,Bed Purchasing - Frenchay Hospital,Nursing Permanent,Fshc  1St Floor,1211.8, 24-Dec-2013
725,Revenue,CCHD,Bed Purchasing - Southmead Hospital,Nursing Permanent,Fshc  1St Floor,1450.56, 24-Dec-2013
726,Revenue,CCHD,Bed Purchasing - Southmead Hospital,Nursing Permanent,Fshc  1St Floor,1546, 24-Dec-2013
727,Revenue,CCHD,Bed Purchasing - Elderly MH - South,Nursing Permanent,Fshc  1St Floor,1327.8, 24-Dec-2013
728,Revenue,CCHD,Bed Purchasing - Elderly - North,Nursing Permanent,Fshc  1St Floor,1449, 24-Dec-2013
729,Revenue,CCHD,Bed Purchasing - Elderly - North,Residential Permanent,Fshc  1St Floor,505.4, 24-Dec-2013
730,Revenue,CCHD,Bed purchasing - Elderly MH - North,Residential Permanent,Fshc  1St Floor,1246, 24-Dec-2013
731,Revenue,CCHD,Bed Purchasing - Elderly - North,Nursing Permanent,Fshc  1St Floor,1530.84, 24-Dec-2013
732,Revenue,CCHD,Bed purchasing - Elderly S117 - South,Nursing Permanent,Fshc  1St Floor,1856, 24-Dec-2013
733,Revenue,CCHD,Bed purchasing - Elderly MH - North,Residential Permanent,Fshc  1St Floor,1255.2, 24-Dec-2013
734,Revenue,CCHD,Bed Purchasing - Southmead Hospital,Residential Permanent,Fshc  1St Floor,1246, 24-Dec-2013
735,Revenue,CCHD,Bed Purchasing - Elderly - North,Residential Permanent,Fshc  1St Floor,1155.6, 24-Dec-2013
736,Revenue,CCHD,Bed Purchasing - Elderly - North,Nursing Permanent,Fshc  1St Floor,1522, 24-Dec-2013
737,Revenue,CCHD,Bed purchasing - Elderly MH - North,Residential Permanent,Fshc  1St Floor,1378.88, 24-Dec-2013
738,Revenue,CCHD,Bed Purchasing - Elderly - North,Nursing Permanent,Fshc  1St Floor,1349.52, 24-Dec-2013
739,Revenue,CCHD,Bed Purchasing - Southmead Hospital,Nursing Permanent,Fshc  1St Floor,1213.24, 24-Dec-2013
740,Revenue,CCHD,Bed purchasing - Elderly MH - North,Nursing Permanent,Fshc  1St Floor,1048.64, 24-Dec-2013
741,Revenue,CCHD,Bed Purchasing - Elderly - North,Nursing Permanent,Fshc  1St Floor,1370, 24-Dec-2013
742,Revenue,CCHD,Bed Purchasing - Elderly - North,Residential Permanent,Fshc  1St Floor,1254, 24-Dec-2013
743,Revenue,CCHD,Bed Purchasing - Elderly - North,Nursing Permanent,Fshc  1St Floor,1145.72, 24-Dec-2013
744,Revenue,CCHD,Bed Purchasing - Frenchay Hospital,Residential Permanent,Fshc  1St Floor,1246, 24-Dec-2013
745,Revenue,CCHD,Bed Purchasing - Frenchay Hospital,Nursing Permanent,Fshc  1St Floor,1307.44, 24-Dec-2013
746,Revenue,CCHD,Bed Purchasing - Elderly - North,Nursing Permanent,Fshc  1St Floor,854.8, 24-Dec-2013
747,Revenue,CCHD,Bed Purchasing - Elderly - North,Nursing Permanent,Fshc  1St Floor,1013.16, 24-Dec-2013
748,Revenue,CCHD,Bed Purchasing - Southmead Hospital,Nursing Permanent,Fshc  1St Floor,1020.68, 24-Dec-2013
749,Revenue,CCHD,Bed Purchasing - Elderly - South,Nursing Permanent,Fshc  1St Floor,1368.76, 24-Dec-2013
750,Revenue,CCHD,Bed Purchasing - Frenchay Hospital,Nursing Permanent,Fshc  1St Floor,1370, 24-Dec-2013
751,Revenue,CCHD,Bed Purchasing - Southmead Hospital,Nursing Permanent,Fshc  1St Floor,592.56, 24-Dec-2013
752,Revenue,CCHD,Bed Purchasing - Elderly - North,Nursing Permanent,Fshc  1St Floor,1268.68, 24-Dec-2013
753,Revenue,CCHD,Bed Purchasing - Elderly - North,Nursing Permanent,Fshc  1St Floor,1071.64, 24-Dec-2013
754,Revenue,CCHD,Bed Purchasing - Southmead Hospital,Nursing Permanent,Fshc  1St Floor,754.48, 24-Dec-2013
755,Revenue,CCHD,Bed Purchasing - Frenchay Hospital,Nursing Permanent,Fshc  1St Floor,873.36, 24-Dec-2013
756,Revenue,CCHD,Bed Purchasing - Southmead Hospital,Nursing Permanent,Fshc  1St Floor,1292.6, 24-Dec-2013
757,Revenue,CCHD,Bed Purchasing - Elderly - North,Nursing Permanent,Fshc  1St Floor,1249.04, 24-Dec-2013
758,Revenue,CCHD,Bed Purchasing - Southmead Hospital,Nursing Permanent,Fshc  1St Floor,1370, 24-Dec-2013
759,Revenue,CCHD,Bed Purchasing - Elderly - South,Nursing Permanent,Fshc  1St Floor,1390, 24-Dec-2013
760,Revenue,CCHD,Bed Purchasing - Frenchay Hospital,Nursing Permanent,Fshc  1St Floor,1336.6, 24-Dec-2013
761,Revenue,CCHD,Bed Purchasing - Southmead Hospital,Nursing Permanent,Fshc  1St Floor,1344.2, 24-Dec-2013
762,Revenue,CCHD,Bed Purchasing - Elderly - North,Residential Permanent,Fshc  1St Floor,2960.04, 24-Dec-2013
763,Revenue,CCHD,Bed purchasing - Phys Dis - North,Nursing Permanent,Fshc  1St Floor,1376.28, 24-Dec-2013
764,Revenue,CCHD,Bed Purchasing - Elderly - South,Nursing Permanent,Fshc  1St Floor,1224.64, 24-Dec-2013
765,Revenue,CCHD,Bed Purchasing - Elderly - South,Residential Permanent,Fshc  1St Floor,866, 24-Dec-2013
766,Revenue,CCHD,Bed Purchasing - Southmead Hospital,Nursing Permanent,Fshc  1St Floor,1370, 24-Dec-2013
767,Revenue,CCHD,Bed Purchasing - Elderly - North,Residential Permanent,Fshc  1St Floor,1342.12, 24-Dec-2013
768,Revenue,CCHD,Bed Purchasing - Southmead Hospital,Nursing Permanent,Fshc  1St Floor,1298.96, 24-Dec-2013
769,Revenue,CCHD,Bed Purchasing - Elderly MH - South,Residential Permanent,Fshc  1St Floor,1924, 24-Dec-2013
770,Revenue,CCHD,Bed Purchasing - Frenchay Hospital,Nursing Permanent,Fshc  1St Floor,1359.08, 24-Dec-2013
771,Revenue,CCHD,Bed Purchasing - Frenchay Hospital,Nursing Permanent,Fshc  1St Floor,1293.56, 24-Dec-2013
772,Revenue,CCHD,Bed Purchasing - Southmead Hospital,Residential Permanent,Fshc  1St Floor,1466, 24-Dec-2013
773,Revenue,CCHD,Bed Purchasing - Elderly - South,Residential Permanent,Fshc  1St Floor,1399.72, 24-Dec-2013
774,Revenue,CCHD,Bed Purchasing - Elderly - North,Residential Permanent,Fshc  1St Floor,1160.96, 24-Dec-2013
775,Revenue,CCHD,Bed Purchasing - Elderly - North,Nursing Permanent,Fshc  1St Floor,1135, 24-Dec-2013
776,Revenue,CCHD,Bed Purchasing - Frenchay Hospital,Nursing Permanent,Fshc  1St Floor,1230.52, 24-Dec-2013
777,Revenue,CCHD,Bed Purchasing - Southmead Hospital,Nursing Permanent,Fshc  1St Floor,1840, 24-Dec-2013
778,Revenue,CCHD,Bed purchasing - Elderly MH - North,Residential Permanent,Fshc  1St Floor,1438, 24-Dec-2013
779,Revenue,CCHD,Bed Purchasing - Southmead Hospital,Nursing Permanent,Fshc  1St Floor,2740, 24-Dec-2013
780,Revenue,CCHD,South Glos Users in South Glos Homes,Nursing Permanent,Fshc  1St Floor,2086.01, 24-Dec-2013
781,Revenue,CCHD,Bed Purchasing - Southmead Hospital,Nursing Permanent,Fshc  1St Floor,1366, 24-Dec-2013
782,Revenue,CCHD,Bed Purchasing - Elderly - South,Residential Permanent,Fshc  1St Floor,901.24, 24-Dec-2013
783,Revenue,CCHD,Bed purchasing - Elderly PWLD - South,Residential Permanent,Fshc  1St Floor,1246, 24-Dec-2013
784,Revenue,CCHD,Bed Purchasing - Frenchay Hospital,Nursing Permanent,Fshc  1St Floor,1370, 24-Dec-2013
785,Revenue,CCHD,Bed Purchasing - Southmead Hospital,Nursing Permanent,Fshc  1St Floor,1101.08, 24-Dec-2013
786,Revenue,CCHD,South Glos Users in South Glos Homes,Nursing Permanent,Fshc  1St Floor,815.58, 24-Dec-2013
787,Revenue,CCHD,Bed Purchasing - Elderly - North,Residential Permanent,Fshc  1St Floor,1179.92, 24-Dec-2013
788,Revenue,CCHD,Bed Purchasing - Frenchay Hospital,Nursing Permanent,Fshc  1St Floor,1856, 24-Dec-2013
789,Revenue,CCHD,Bed Purchasing - Frenchay Hospital,Nursing Permanent,Fshc  1St Floor,1370, 24-Dec-2013
790,Revenue,CCHD,Bed Purchasing - Southmead Hospital,Nursing Permanent,Fshc  1St Floor,957.12, 24-Dec-2013
791,Revenue,CCHD,Bed Purchasing - Elderly - South,Residential Permanent,Fshc  1St Floor,816.56, 24-Dec-2013
792,Revenue,CCHD,Bed Purchasing - Southmead Hospital,Residential Permanent,Fshc  1St Floor,1453.28, 24-Dec-2013
793,Revenue,CCHD,Bed Purchasing - Elderly - South,Nursing Permanent,Fshc  1St Floor,8447.32, 24-Dec-2013
794,Revenue,CCHD,Bed Purchasing - Elderly - South,Nursing Permanent,Fshc  1St Floor,1206.76, 24-Dec-2013
795,Revenue,CCHD,Bed Purchasing - Elderly - South,Nursing Permanent,Fshc  1St Floor,941.76, 24-Dec-2013
796,Revenue,CCHD,Bed purchasing - Elderly S117 - South,Nursing Permanent,Fshc  1St Floor,1856, 24-Dec-2013
797,Revenue,CCHD,Bed Purchasing - Frenchay Hospital,Residential Permanent,Fshc  1St Floor,1107.56, 24-Dec-2013
798,Revenue,CCHD,Bed Purchasing - Southmead Hospital,Residential Permanent,Fshc  1St Floor,1331.76, 24-Dec-2013
799,Revenue,CCHD,Bed Purchasing - Southmead Hospital,Nursing Permanent,Fshc  1St Floor,1180.56, 24-Dec-2013
800,Revenue,CCHD,Bed Purchasing - Elderly - North,Residential Permanent,Fshc  1St Floor,1199.92, 24-Dec-2013
801,Revenue,CCHD,Bed Purchasing - Southmead Hospital,Nursing Permanent,Fshc  1St Floor,6340.86, 24-Dec-2013
802,Revenue,CCHD,Bed Purchasing - Frenchay Hospital,Nursing Permanent,Fshc  1St Floor,1109.92, 24-Dec-2013
803,Revenue,CCHD,Bed Purchasing - Southmead Hospital,Nursing Permanent,Fshc  1St Floor,1114.88, 24-Dec-2013
804,Revenue,CCHD,Bed Purchasing - Frenchay Hospital,Nursing Permanent,Fshc  1St Floor,956.08, 24-Dec-2013
805,Revenue,CCHD,Bed Purchasing - Frenchay Hospital,Nursing Permanent,Fshc  1St Floor,1117.88, 24-Dec-2013
806,Revenue,CCHD,Bed Purchasing - Frenchay Hospital,Nursing Permanent,Fshc  1St Floor,3133.07, 24-Dec-2013
807,Revenue,CCHD,Bed Purchasing - Frenchay Hospital,Nursing Permanent,Fshc  1St Floor,1030.08, 24-Dec-2013
808,Revenue,CCHD,Bed Purchasing - Frenchay Hospital,Nursing Permanent,Fshc  1St Floor,1060.28, 24-Dec-2013
809,Revenue,CCHD,Bed Purchasing - Southmead Hospital,Nursing Permanent,Fshc  1St Floor,870.76, 24-Dec-2013
810,Revenue,CCHD,Bed Purchasing - Southmead Hospital,Nursing Permanent,Fshc  1St Floor,739.04, 24-Dec-2013
811,Revenue,CCHD,Bed Purchasing - Southmead Hospital,Residential Permanent,Fshc  1St Floor,1732, 24-Dec-2013
812,Revenue,CCHD,Bed Purchasing - Frenchay Hospital,Nursing Permanent,Fshc  1St Floor,1394.12, 24-Dec-2013
813,Revenue,CCHD,Bed Purchasing - Elderly - North,Nursing Permanent,Fshc  1St Floor,1276.2, 24-Dec-2013
814,Revenue,CCHD,Bed purchasing - Phys Dis - North,Nursing Permanent,Fshc  1St Floor,840.44, 24-Dec-2013
815,Revenue,CCHD,Bed Purchasing - Elderly - North,Nursing Permanent,Fshc  1St Floor,1478, 24-Dec-2013
816,Revenue,CCHD,Bed Purchasing - Elderly - North,Nursing Permanent,Fshc  1St Floor,1209.6, 24-Dec-2013
817,Revenue,CCHD,Bed Purchasing - Frenchay Hospital,Nursing Permanent,Fshc  1St Floor,1302, 24-Dec-2013
818,Revenue,CCHD,Bed purchasing - Elderly MH - North,Nursing Permanent,Fshc  1St Floor,858.48, 24-Dec-2013
819,Revenue,CCHD,Bed Purchasing - Southmead Hospital,Nursing Permanent,Fshc  1St Floor,1478, 24-Dec-2013
820,Revenue,CCHD,Bed Purchasing - Frenchay Hospital,Residential Permanent,Fshc  1St Floor,1215.68, 24-Dec-2013
821,Revenue,CCHD,Bed Purchasing - Southmead Hospital,Nursing Permanent,Fshc  1St Floor,1285.4, 24-Dec-2013
822,Revenue,CCHD,Bed Purchasing - Southmead Hospital,Nursing Permanent,Fshc  1St Floor,1652.39, 24-Dec-2013
823,Revenue,CCHD,Bed Purchasing - Southmead Hospital,Nursing Permanent,Fshc  1St Floor,1445.84, 24-Dec-2013
824,Revenue,CCHD,Bed purchasing - Elderly S117 - South,Nursing Permanent,Fshc  1St Floor,1964, 24-Dec-2013
825,Revenue,CCHD,Bed Purchasing - Frenchay Hospital,Nursing Permanent,Fshc  1St Floor,1080.28, 24-Dec-2013
826,Revenue,CCHD,Bed Purchasing - Frenchay Hospital,Nursing Permanent,Fshc  1St Floor,951.24, 24-Dec-2013
827,Revenue,CCHD,Bed Purchasing - Elderly S117- North,Nursing Permanent,Fshc  1St Floor,1964, 24-Dec-2013
828,Revenue,CCHD,Bed Purchasing - Elderly - North,Residential Permanent,Fshc  1St Floor,1414, 24-Dec-2013
829,Revenue,CCHD,Bed Purchasing - Frenchay Hospital,Nursing Permanent,Fshc  1St Floor,1097.04, 24-Dec-2013
830,Revenue,CCHD,Bed Purchasing - Elderly - South,Residential Permanent,Fshc  1St Floor,1340.56, 24-Dec-2013
831,Revenue,CCHD,Woodleaze,Prop.Serv. General Repairs,George Grimes,848.5, 11-Dec-2013
832,Revenue,CCHD,Section 117 Placements MH Younger,Residential Permanent,Gladstone House,2721.88, 24-Dec-2013
833,Revenue,CCHD,Bed Purchasing - Under 65s PWLD - South,Residential Permanent,Glasallt Fawr,4547.84, 24-Dec-2013
834,Revenue,CCHD,Bed purchasing - Elderly MH - North,Nursing Permanent,Glebe House Nursing Home,1666.36, 24-Dec-2013
835,Revenue,CCHD,Bed purchasing - Elderly MH - North,Residential Permanent,Glebe House Nursing Home,2007.6, 24-Dec-2013
836,Revenue,CCHD,Bed Purchasing - Elderly - North,Nursing Permanent,Glebe House Nursing Home,1387.96, 24-Dec-2013
837,Revenue,CCHD,Bed Purchasing - Frenchay Hospital,Nursing Permanent,Glebe House Nursing Home,898.48, 24-Dec-2013
838,Revenue,CCHD,Bed Purchasing - Elderly - North,Residential Permanent,Glebe House Nursing Home,1172.16, 24-Dec-2013
839,Revenue,CCHD,Bed Purchasing - Elderly - North,Nursing Respite,Glebe House Nursing Home,3040.84, 24-Dec-2013
840,Revenue,CCHD,Bed Purchasing - Elderly - North,Nursing Permanent,Glebe House Nursing Home,1374.84, 24-Dec-2013
841,Revenue,CCHD,Bed Purchasing - Elderly - North,Nursing Permanent,Glebe House Nursing Home,638.32, 24-Dec-2013
842,Revenue,CCHD,Bed Purchasing - Elderly - South,Residential Permanent,Glebe House Nursing Home,1977.76, 24-Dec-2013
843,Revenue,CCHD,Bed Purchasing - Elderly - North,Residential Permanent,Glebe House Nursing Home,2551.92, 24-Dec-2013
844,Revenue,CCHD,Bed Purchasing - Under 65s PWLD - South,Residential Permanent,Gordena Care Home,2082.36, 24-Dec-2013
845,Revenue,CCHD,Bed purchasing - Elderly PWLD - South,Residential Permanent,Gordena Care Home,4732.4, 24-Dec-2013
846,Revenue,CCHD,Bed purchasing - Elderly PWLD - South,Residential Permanent,Gordena Care Home,3116.24, 24-Dec-2013
847,Revenue,CCHD,Bed purchasing - Elderly PWLD - South,Residential Permanent,Gordena Care Home,2927.44, 24-Dec-2013
848,Revenue,CCHD,Bed Purchasing - Under 65s PWLD - South,Residential Permanent,Gordena Care Home,1907.6, 24-Dec-2013
849,Revenue,CCHD,Bed Purchasing - Under 65s PWLD - South,Residential Permanent,Gordena Care Limited,4158.56, 24-Dec-2013
850,Revenue,CCHD,Bed purchasing - S28A Under 65 - South,Residential Permanent,Gordena Care Limited,4055.8, 24-Dec-2013
851,Revenue,CCHD,Bed purchasing - Under 65s PWLD - North,Residential Permanent,Gordena Care Limited,4160, 24-Dec-2013
852,Revenue,CCHD,Bed Purchasing - Elderly - North,Residential Permanent,Greensleeves,1312.68, 24-Dec-2013
853,Revenue,CCHD,Bed Purchasing - Elderly - South,Residential Respite,Grove Care,7542.86, 24-Dec-2013
854,Revenue,CCHD,Bed Purchasing - Elderly - North,Residential Permanent,Gwendoline House,855.86, 24-Dec-2013
855,Revenue,CCHD,Bed Purchasing - Elderly - South,Residential Permanent,Gwendoline House,1490.04, 24-Dec-2013
856,Revenue,CCHD,Bed Purchasing - Elderly - South,Residential Permanent,Gwendoline House,1164.96, 24-Dec-2013
857,Revenue,CCHD,Bed Purchasing - Elderly - North,Residential Permanent,Gwendoline House,1636.56, 24-Dec-2013
858,Revenue,CCHD,Bed Purchasing - Elderly MH - South,Residential Permanent,Gwendoline House,1284.64, 24-Dec-2013
859,Revenue,CCHD,Bed Purchasing - Southmead Hospital,Residential Permanent,Gwendoline House,1686.64, 24-Dec-2013
860,Revenue,CCHD,Bed Purchasing - Elderly - South,Residential Permanent,Gwendoline House,1128.52, 24-Dec-2013
861,Revenue,CCHD,Supporting People Programme,Grants to Voluntary Bodies,Habinteg Housing Association,1338.75, 30-Dec-2013
862,Revenue,CCHD,Bed Purchasing - Elderly - South,Residential Permanent,Harefield Hall,1327.24, 24-Dec-2013
863,Revenue,CCHD,Bed Purchasing - Elderly - South,Residential Permanent,Harefield Hall,1968.44, 24-Dec-2013
864,Revenue,CCHD,Bed Purchasing - Elderly - South,Residential Permanent,Harefield Hall,1112.96, 24-Dec-2013
865,Revenue,CCHD,Bed Purchasing - Elderly - South,Residential Permanent,Harefield Hall,1778.56, 24-Dec-2013
866,Revenue,CCHD,Bed Purchasing - Elderly MH - South,Residential Permanent,Harefield Hall,1030.52, 24-Dec-2013
867,Revenue,CCHD,Bed Purchasing - Elderly - South,Residential Permanent,Harefield Hall,1291.8, 24-Dec-2013
868,Revenue,CCHD,Bed Purchasing - Southmead Hospital,Nursing Permanent,Haven Lodge,1382.28, 24-Dec-2013
869,Revenue,CCHD,Bed Purchasing - Southmead Hospital,Nursing Permanent,Hc-One Ltd,3227.04, 24-Dec-2013
870,Revenue,CCHD,Bed Purchasing - Elderly - North,Nursing Permanent,Hc-One Ltd,1469.6, 24-Dec-2013
871,Revenue,CCHD,Bed Purchasing - Elderly - North,Nursing Permanent,Hc-One Ltd,971.48, 24-Dec-2013
872,Revenue,CCHD,Bed Purchasing - Elderly - North,Nursing Permanent,Hc-One Ltd,1499.04, 24-Dec-2013
873,Revenue,CCHD,Bed Purchasing - Frenchay Hospital,Nursing Permanent,Hc-One Ltd,1478, 24-Dec-2013
874,Revenue,CCHD,Bed purchasing - Elderly PWLD - South,Nursing Permanent,Hc-One Ltd,1929.96, 24-Dec-2013
875,Revenue,CCHD,Bed purchasing - Elderly MH - North,Nursing Permanent,Hc-One Ltd,1478, 24-Dec-2013
876,Revenue,CCHD,Bed purchasing - Elderly MH - North,Nursing Permanent,Hc-One Ltd,1229.12, 24-Dec-2013
877,Revenue,CCHD,Bed Purchasing - Frenchay Hospital,Nursing Permanent,Hc-One Ltd,1471.16, 24-Dec-2013
878,Revenue,CCHD,Bed Purchasing - Elderly - South,Nursing Permanent,Hc-One Ltd,1146.88, 24-Dec-2013
879,Revenue,CCHD,Bed purchasing - Elderly MH - North,Nursing Permanent,Hc-One Ltd,1170.6, 24-Dec-2013
880,Revenue,CCHD,Bed Purchasing - Elderly S117- North,Nursing Permanent,Hc-One Ltd,1947.72, 24-Dec-2013
881,Revenue,CCHD,Home Care - Elderly - South,Other Small Contracts,Helping Hands Homecare,78.2, 05-Dec-2013
882,Revenue,CCHD,Home Care - Elderly - North,Other Small Contracts,Helping Hands Homecare,1317.86, 05-Dec-2013
883,Revenue,CCHD,Day Care - North,Private & Voluntary Day Care,Helping Hands Homecare,31.28, 05-Dec-2013
884,Revenue,CCHD,Home Care - Elderly - South,Other Small Contracts,Helping Hands Homecare,78.2, 13-Dec-2013
885,Revenue,CCHD,Home Care - Elderly - North,Other Small Contracts,Helping Hands Homecare,1442.98, 13-Dec-2013
886,Revenue,CCHD,Day Care - North,Private & Voluntary Day Care,Helping Hands Homecare,31.28, 13-Dec-2013
887,Revenue,CCHD,Bed Purchasing - Southmead Hospital,Residential Permanent,High Border Lodge,1444.2, 24-Dec-2013
888,Revenue,CCHD,Bed Purchasing - Frenchay Hospital,Residential Permanent,Highfield House,1208.74, 24-Dec-2013
889,Revenue,CCHD,Bed Purchasing - Southmead Hospital,Residential Permanent,Highgate Studios,1166.84, 24-Dec-2013
890,Revenue,CCHD,Bed purchasing - Under 65s PWLD - North,Residential Permanent,Holmleigh Care Homes Ltd,4000.16, 24-Dec-2013
891,Revenue,CCHD,Bed Purchasing - Under 65s PWLD - South,Residential Permanent,Holmleigh Care Homes Ltd,5027.72, 24-Dec-2013
892,Revenue,CCHD,South Glos Users in South Glos Homes,Nursing Permanent,Holmwood House,5474.24, 24-Dec-2013
893,Revenue,CCHD,Bed purchasing - Under 65s PWLD - North,Residential Permanent,Home Farm Trust Ltd  5-6 Brook Office Pa,2810.04, 24-Dec-2013
894,Revenue,CCHD,Bed purchasing - Elderly PWLD - South,Residential Permanent,Home Farm Trust Ltd  5-6 Brook Office Pa,5050.32, 24-Dec-2013
895,Revenue,CCHD,Bed purchasing - Under 65s PWLD - North,Residential Permanent,Home Farm Trust Ltd  5-6 Brook Office Pa,3396, 24-Dec-2013
896,Revenue,CCHD,Bed Purchasing - Under 65s PWLD - South,Residential Permanent,Home Farm Trust Ltd  5-6 Brook Office Pa,4505.04, 24-Dec-2013
897,Revenue,CCHD,Bed purchasing - Under 65s PWLD - North,Residential Permanent,Home From Home Care Ltd,8857.52, 24-Dec-2013
898,Revenue,CCHD,Bed purchasing - Under 65s PWLD - North,Residential Permanent,Homes Caring For Autism Ltd  Churchill H,9755.64, 24-Dec-2013
899,Revenue,CCHD,Bed Purchasing - Under 65s PWLD - South,Residential Permanent,Homes Caring For Autism Ltd  Churchill H,12715.92, 24-Dec-2013
900,Revenue,CCHD,Bed purchasing - Under 65s PWLD - North,Residential Permanent,Homes Caring For Autism Ltd  Churchill H,12410, 24-Dec-2013
901,Revenue,CCHD,Home Care - Elderly - South,Other Small Contracts,Honest Homecare,129.5, 20-Dec-2013
902,Revenue,CCHD,Home Care - Elderly - North,Other Small Contracts,Honest Homecare,728, 20-Dec-2013
903,Revenue,CCHD,Home Care - Elderly - South,Other Small Contracts,Honest Homecare,115.5, 05-Dec-2013
904,Revenue,CCHD,Home Care - Elderly - North,Other Small Contracts,Honest Homecare,773.5, 05-Dec-2013
905,Revenue,CCHD,Home Care - Elderly - South,Other Small Contracts,Honest Homecare,115.5, 13-Dec-2013
906,Revenue,CCHD,Home Care - Elderly - North,Other Small Contracts,Honest Homecare,521.5, 13-Dec-2013
907,Revenue,CCHD,Home Care - Elderly - South,Other Small Contracts,Honest Homecare,126, 20-Dec-2013
908,Revenue,CCHD,Home Care - Elderly - North,Other Small Contracts,Honest Homecare,521.5, 20-Dec-2013
909,Revenue,CCHD,Home Care - Elderly - South,Other Small Contracts,Honest Homecare,122.5, 27-Dec-2013
910,Revenue,CCHD,Home Care - Elderly - North,Other Small Contracts,Honest Homecare,507.5, 27-Dec-2013
911,Revenue,CCHD,Supporting People Programme,Grants to Voluntary Bodies,Housing 21,607.38, 30-Dec-2013
912,Revenue,CCHD,Supporting People Programme,Grants to Voluntary Bodies,Housing 21,921.33, 30-Dec-2013
913,Revenue,CCHD,Home Care - Elderly - North,Private & Voluntary Home Care,Housing 21,37028.34, 10-Dec-2013
914,Revenue,CCHD,Home Care - Elderly - South,Private & Voluntary Home Care,Housing 21,23516.42, 30-Dec-2013
915,Revenue,CCHD,Care Management Team - South,Agency Staff (Operational)/PCT Pay,IPE,2632.51, 06-Dec-2013
916,Revenue,CCHD,Social Lettings Agency,Fees - General,Individual,11.6, 11-Dec-2013
917,Revenue,CCHD,Social Lettings Agency,Other Supplies & Services,Individual,655.41, 11-Dec-2013
918,Revenue,CCHD,Homeless - Private Sector Leasing,Other Supplies & Services,Jill Collins,594, 13-Dec-2013
919,Revenue,CCHD,Training - Adult Services,Training Expenses,Jo Williams,527, 13-Dec-2013
920,Revenue,CCHD,Training - Adult Services,Training Expenses,Jonathan Coles,600, 12-Dec-2013
921,Revenue,CCHD,Bed Purchasing - Under 65s PWLD - South,Residential Permanent,Julia Simone- Supp. Ind.,3902.32, 24-Dec-2013
922,Revenue,CCHD,Bed purchasing -S28A  Under 65 - North,Residential Permanent,Julia Simone- Supp. Ind.,3443.08, 24-Dec-2013
923,Revenue,CCHD,Bed Purchasing - Elderly - South,Residential Permanent,Karenza Ltd,1732, 24-Dec-2013
924,Revenue,CCHD,Stop Smoking Services and Interventions,Other Supplies & Services,Kennedy Way Surgery,1200, 09-Dec-2013
925,Revenue,CCHD,Drug Misuse - Adults,Other Supplies & Services,Kennedy Way Surgery,609, 09-Dec-2013
926,Revenue,CCHD,Drug Misuse - Adults,Other Supplies & Services,Kennedy Way Surgery,812, 23-Dec-2013
927,Revenue,CCHD,Bed Purchasing - Elderly - South,Residential Permanent,Kenver House Residential Home,1545.64, 24-Dec-2013
928,Revenue,CCHD,Bed purchasing - Elderly S117 - South,Residential Permanent,Kenver House Residential Home,1897.08, 24-Dec-2013
929,Revenue,CCHD,Bed Purchasing - Frenchay Hospital,Residential Permanent,Kenver House Residential Home,1203.72, 24-Dec-2013
930,Revenue,CCHD,Bed Purchasing - Elderly - South,Residential Permanent,Kenver House Residential Home,1657.28, 24-Dec-2013
931,Revenue,CCHD,Bed Purchasing - Elderly - South,Residential Respite,Kenver House Residential Home,4028, 24-Dec-2013
932,Revenue,CCHD,Bed Purchasing - Southmead Hospital,Residential Permanent,Kenver House Residential Home,3593.07, 24-Dec-2013
933,Revenue,CCHD,Bed Purchasing - Southmead Hospital,Residential Permanent,Kenver House Residential Home,1649.28, 24-Dec-2013
934,Revenue,CCHD,Bed Purchasing - Elderly MH - South,Residential Permanent,Kenver House Residential Home,1285.96, 24-Dec-2013
935,Revenue,CCHD,Bed Purchasing - Elderly - South,Residential Permanent,Kenver House Residential Home,1665.04, 24-Dec-2013
936,Revenue,CCHD,Bed Purchasing - Elderly - South,Residential Permanent,Kenver House Residential Home,1649.28, 24-Dec-2013
937,Revenue,CCHD,Bed Purchasing - Elderly - South,Residential Permanent,Kenver House Residential Home,2135.28, 24-Dec-2013
938,Revenue,CCHD,Bed Purchasing - Elderly - South,Residential Permanent,Kenver House Residential Home,763.6, 24-Dec-2013
939,Revenue,CCHD,Bed Purchasing - Elderly - South,Residential Permanent,Kenver House Residential Home,1576.4, 24-Dec-2013
940,Revenue,CCHD,Bed Purchasing - Southmead Hospital,Residential Permanent,Kenver House Residential Home,1649.2, 24-Dec-2013
941,Revenue,CCHD,Bed Purchasing - Elderly MH - South,Residential Permanent,Kenver House Residential Home,1182.52, 24-Dec-2013
942,Revenue,CCHD,Bed Purchasing - Elderly MH - South,Residential Permanent,Kenver House Residential Home,1167.92, 24-Dec-2013
943,Revenue,CCHD,Bed Purchasing - Elderly - South,Residential Permanent,Kenver House Residential Home,1497.08, 24-Dec-2013
944,Revenue,CCHD,Bed Purchasing - Frenchay Hospital,Residential Permanent,Kenver House Residential Home,1539.76, 24-Dec-2013
945,Revenue,CCHD,Supporting People Programme,Grants to Voluntary Bodies,Keyring Living Support Networks,2874.42, 30-Dec-2013
946,Revenue,CCHD,Bed Purchasing - Elderly - North,Nursing Permanent,Kingfisher Lodge Care Centre,2486.88, 24-Dec-2013
947,Revenue,CCHD,Supporting People Programme,Grants to Voluntary Bodies,Kingswood Young Homeless Project,17289.42, 30-Dec-2013
948,Revenue,CCHD,Bed purchasing - Under 65s PWLD - North,Residential Permanent,Kisimul Group,11223.12, 24-Dec-2013
949,Revenue,CCHD,Supporting People Programme,Grants to Voluntary Bodies,Knightstone Housing Association Limited,13316.58, 30-Dec-2013
950,Revenue,CCHD,Supporting People Programme,Grants to Voluntary Bodies,Knightstone Housing Association Limited,8413.33, 30-Dec-2013
951,Revenue,CCHD,Supporting People Programme,Grants to Voluntary Bodies,Knightstone Housing Association Limited,7491.58, 30-Dec-2013
952,Revenue,CCHD,Supporting People Programme,Grants to Voluntary Bodies,Knightstone Housing Association Limited,1883.92, 30-Dec-2013
953,Revenue,CCHD,Supporting People Programme,Grants to Voluntary Bodies,Knightstone Housing Association Limited,2446.5, 30-Dec-2013
954,Revenue,CCHD,Supporting People Programme,Grants to Voluntary Bodies,Knightstone Housing Association Limited,2447.08, 30-Dec-2013
955,Revenue,CCHD,Supporting People Programme,Grants to Voluntary Bodies,Knightstone Housing Association Limited,1189.08, 30-Dec-2013
956,Revenue,CCHD,Supporting People Programme,Grants to Voluntary Bodies,Knightstone Housing Association Limited,2194.67, 30-Dec-2013
957,Revenue,CCHD,Home Care - Elderly - South,Other Small Contracts,Kumari Care Limited,3501.02, 05-Dec-2013
958,Revenue,CCHD,Home Care - Elderly - North,Other Small Contracts,Kumari Care Limited,833.86, 05-Dec-2013
959,Revenue,CCHD,Day Care - South,Private & Voluntary Day Care,Kumari Care Limited,46.32, 05-Dec-2013
960,Revenue,CCHD,Under 65s -MH  Home Care Purch,Other Small Contracts,Kumari Care Limited,262.48, 05-Dec-2013
961,Revenue,CCHD,Home Care - Elderly - South,Other Small Contracts,Kumari Care Limited,3781.06, 10-Dec-2013
962,Revenue,CCHD,Home Care - Elderly - North,Other Small Contracts,Kumari Care Limited,784.22, 10-Dec-2013
963,Revenue,CCHD,Day Care - South,Private & Voluntary Day Care,Kumari Care Limited,142.82, 10-Dec-2013
964,Revenue,CCHD,Under 65s -MH  Home Care Purch,Other Small Contracts,Kumari Care Limited,131.25, 10-Dec-2013
965,Revenue,CCHD,Home Care - Elderly - South,Other Small Contracts,Kumari Care Limited,3748.06, 05-Dec-2013
966,Revenue,CCHD,Home Care - Elderly - North,Other Small Contracts,Kumari Care Limited,833.86, 05-Dec-2013
967,Revenue,CCHD,Day Care - South,Private & Voluntary Day Care,Kumari Care Limited,142.82, 05-Dec-2013
968,Revenue,CCHD,Under 65s -MH  Home Care Purch,Other Small Contracts,Kumari Care Limited,284.19, 05-Dec-2013
969,Revenue,CCHD,Home Care - Elderly - South,Other Small Contracts,Kumari Care Limited,3763.5, 05-Dec-2013
970,Revenue,CCHD,Home Care - Elderly - North,Other Small Contracts,Kumari Care Limited,833.86, 05-Dec-2013
971,Revenue,CCHD,Day Care - South,Private & Voluntary Day Care,Kumari Care Limited,142.82, 05-Dec-2013
972,Revenue,CCHD,Under 65s -MH  Home Care Purch,Other Small Contracts,Kumari Care Limited,138.96, 05-Dec-2013
973,Revenue,CCHD,Stop Smoking Services and Interventions,Other Supplies & Services,Leap Valley Surgery,1090, 09-Dec-2013
974,Revenue,CCHD,Drug Misuse - Adults,Other Supplies & Services,Leap Valley Surgery,914, 09-Dec-2013
975,Revenue,CCHD,Drug Misuse - Adults,Other Supplies & Services,Leap Valley Surgery,1117, 23-Dec-2013
976,Revenue,CCHD,Bed purchasing - Phys Dis - North,Nursing Permanent,Leonard Cheshire  National Account Centr,4963.04, 24-Dec-2013
977,Revenue,CCHD,Bed purchasing - Phys Dis - North,Residential Permanent,Leonard Cheshire  National Account Centr,2868.88, 24-Dec-2013
978,Revenue,CCHD,Bed Purchasing - Under 65s PWLD - South,Residential Permanent,Leonard Cheshire  National Account Centr,2959.44, 24-Dec-2013
979,Revenue,CCHD,Bed Purchasing - Elderly - North,Nursing Permanent,Leonard Cheshire  National Account Centr,3468.8, 24-Dec-2013
980,Revenue,CCHD,Bed purchasing - Phys Dis - North,Nursing Permanent,Leonard Cheshire  National Account Centr,2779.04, 24-Dec-2013
981,Revenue,CCHD,Bed Purchasing - Elderly - North,Residential Permanent,Leonard Cheshire  National Account Centr,3150.32, 24-Dec-2013
982,Revenue,CCHD,Bed purchasing - Under 65s PWLD - North,Residential Permanent,Leonard Cheshire  National Account Centr,5872.12, 24-Dec-2013
983,Revenue,CCHD,Bed purchasing - Under 65s PWLD - North,Residential Permanent,Leonard Cheshire  National Account Centr,5870.56, 24-Dec-2013
984,Revenue,CCHD,Bed Purchasing - Elderly - South,Residential Permanent,Leonard Cheshire  National Account Centr,4433.04, 24-Dec-2013
985,Revenue,CCHD,Bed purchasing - Phys Dis - North,Nursing Permanent,Leonard Cheshire  National Account Centr,2838.64, 24-Dec-2013
986,Revenue,CCHD,Bed purchasing - Phys Dis - North,Nursing Permanent,Leonard Cheshire  National Account Centr,3812.44, 24-Dec-2013
987,Revenue,CCHD,Bed purchasing - Phys Dis - North,Residential Permanent,Leonard Cheshire  National Account Centr,2889.4, 24-Dec-2013
988,Revenue,CCHD,Bed purchasing - Phys Dis - North,Nursing Permanent,Leonard Cheshire  National Account Centr,4473.76, 24-Dec-2013
989,Revenue,CCHD,Bed purchasing - Phys Dis - North,Nursing Permanent,Leonard Cheshire  National Account Centr,6447.6, 24-Dec-2013
990,Revenue,CCHD,Bed purchasing - Phys Dis - North,Nursing Permanent,Leonard Cheshire  National Account Centr,5521.36, 24-Dec-2013
991,Revenue,CCHD,Bed Purchasing - Elderly - South,Nursing Permanent,Leonard Cheshire  National Account Centr,2869.2, 24-Dec-2013
992,Revenue,CCHD,Bed Purchasing - Southmead Hospital,Nursing Permanent,Leonard Cheshire  National Account Centr,3002, 24-Dec-2013
993,Revenue,CCHD,South Glos Users in all other LA Homes,Nursing Permanent,Leonard Cheshire  National Account Centr,604.4, 24-Dec-2013
994,Revenue,CCHD,Bed purchasing - Phys Dis - North,Nursing Permanent,Leonard Cheshire  National Account Centr,3309.2, 24-Dec-2013
995,Revenue,CCHD,Bed purchasing - Phys Dis - North,Nursing Permanent,Leonard Cheshire  National Account Centr,4066.48, 24-Dec-2013
996,Revenue,CCHD,Bed Purchasing - Elderly - South,Nursing Permanent,Leonard Cheshire  National Account Centr,4369.6, 24-Dec-2013
997,Revenue,CCHD,Bed Purchasing - Elderly S117- North,Nursing Permanent,Leonard Elms Care Home,2848.84, 24-Dec-2013
998,Revenue,CCHD,Bed Purchasing - Elderly S117- North,Nursing Permanent,Leonard Elms Care Home,508.72, 24-Dec-2013
999,Revenue,CCHD,Bed Purchasing - Elderly - South,Nursing Permanent,Leonard Elms Care Home,1539.28, 24-Dec-2013
1000,Revenue,CCHD,Tenancy Start Up Scheme,Other Supplies & Services,Lifestyle Lettings (Deposit),875, 03-Dec-2013
1001,Revenue,CCHD,Tenancy Start Up Scheme,Other Supplies & Services,Lifestyle Lettings (Rent),775, 03-Dec-2013
1002,Revenue,CCHD,Supported Living - North,Private & Voluntary Home Care,Lifeways Community Care (Gloucester) Ltd,8792, 20-Dec-2013
1003,Revenue,CCHD,Supported Living - North,Private & Voluntary Home Care,Lifeways Community Care (Gloucester) Ltd,11373, 03-Dec-2013
1004,Revenue,CCHD,Bed Purchasing - Frenchay Hospital,Residential Permanent,Little Croft,1246, 24-Dec-2013
1005,Revenue,CCHD,Bed Purchasing - Elderly - South,Residential Permanent,Little Croft,1545.64, 24-Dec-2013
1006,Revenue,CCHD,Bed Purchasing - Frenchay Hospital,Residential Permanent,Little Croft,1246, 24-Dec-2013
1007,Revenue,CCHD,Bed Purchasing - Frenchay Hospital,Residential Permanent,Little Croft,801, 24-Dec-2013
1008,Revenue,CCHD,Bed Purchasing - Southmead Hospital,Residential Permanent,Little Croft,1722, 24-Dec-2013
1009,Revenue,CCHD,Bed Purchasing - Elderly - South,Residential Permanent,Little Croft,1856, 24-Dec-2013
1010,Revenue,CCHD,Bed Purchasing - Elderly - South,Residential Permanent,Little Croft,1522.8, 24-Dec-2013
1011,Revenue,CCHD,Bed Purchasing - Frenchay Hospital,Residential Permanent,Little Croft,1187.44, 24-Dec-2013
1012,Revenue,CCHD,Bed Purchasing - Southmead Hospital,Residential Permanent,Little Croft,617.2, 24-Dec-2013
1013,Revenue,CCHD,Bed Purchasing - Elderly MH - South,Residential Permanent,Little Croft,1173.28, 24-Dec-2013
1014,Revenue,CCHD,Bed Purchasing - Elderly - South,Residential Permanent,Little Croft,833.4, 24-Dec-2013
1015,Revenue,CCHD,Bed Purchasing - Southmead Hospital,Residential Permanent,Little Croft,1246, 24-Dec-2013
1016,Revenue,CCHD,Bed Purchasing - Elderly - North,Residential Permanent,Little Croft,1347.56, 24-Dec-2013
1017,Revenue,CCHD,Bed Purchasing - Elderly - North,Residential Permanent,Little Croft,1159.41, 24-Dec-2013
1018,Revenue,CCHD,Bed purchasing - Under 65s PWLD - North,Residential Permanent,Littlecroft Residential Homes  Longcroft,6386.28, 24-Dec-2013
1019,Revenue,CCHD,Home Care - Elderly - North,Other Small Contracts,Lloyds TSB Commercial Finance Limited,8171.9, 12-Dec-2013
1020,Revenue,CCHD,Day Care - South,Private & Voluntary Day Care,Lloyds TSB Commercial Finance Limited,125.12, 12-Dec-2013
1021,Revenue,CCHD,Day Care - North,Private & Voluntary Day Care,Lloyds TSB Commercial Finance Limited,168.13, 12-Dec-2013
1022,Revenue,CCHD,Home Care - Elderly - North,Other Small Contracts,Lloyds TSB Commercial Finance Limited,8246.19, 12-Dec-2013
1023,Revenue,CCHD,Day Care - North,Private & Voluntary Day Care,Lloyds TSB Commercial Finance Limited,140.76, 12-Dec-2013
1024,Revenue,CCHD,Supported Living - South,Private & Voluntary Home Care,Lloyds TSB Commercial Finance Limited,3646.19, 20-Dec-2013
1025,Revenue,CCHD,Supported Living - South,Private & Voluntary Home Care,Lloyds TSB Commercial Finance Limited,9199.95, 20-Dec-2013
1026,Revenue,CCHD,Supported Living - South,Private & Voluntary Home Care,Lloyds TSB Commercial Finance Limited,3764.79, 20-Dec-2013
1027,Revenue,CCHD,Supported Living - South,Private & Voluntary Home Care,Lloyds TSB Commercial Finance Limited,7875.32, 20-Dec-2013
1028,Revenue,CCHD,Supported Living - South,Private & Voluntary Home Care,Lloyds TSB Commercial Finance Limited,3733.94, 20-Dec-2013
1029,Revenue,CCHD,Supported Living - South,Private & Voluntary Home Care,Lloyds TSB Commercial Finance Limited,3867.26, 20-Dec-2013
1030,Revenue,CCHD,Supported Living - North,Private & Voluntary Home Care,Lloyds TSB Commercial Finance Limited,9327.87, 20-Dec-2013
1031,Revenue,CCHD,Supported Living - South,Private & Voluntary Home Care,Lloyds TSB Commercial Finance Limited,4144.56, 20-Dec-2013
1032,Revenue,CCHD,Supported Living - South,Private & Voluntary Home Care,Lloyds TSB Commercial Finance Limited,3476.74, 20-Dec-2013
1033,Revenue,CCHD,Supported Living - South,Private & Voluntary Home Care,Lloyds TSB Commercial Finance Limited,3683.76, 20-Dec-2013
1034,Revenue,CCHD,Supported Living - South,Private & Voluntary Home Care,Lloyds TSB Commercial Finance Limited,5945.75, 20-Dec-2013
1035,Revenue,CCHD,Supported Living - South,Private & Voluntary Home Care,Lloyds TSB Commercial Finance Limited,3470.56, 20-Dec-2013
1036,Revenue,CCHD,Supported Living - South,Private & Voluntary Home Care,Lloyds TSB Commercial Finance Limited,3559.59, 20-Dec-2013
1037,Revenue,CCHD,Supported Living - North,Private & Voluntary Home Care,Lloyds TSB Commercial Finance Limited,8023.55, 20-Dec-2013
1038,Revenue,CCHD,Supported Living - South,Private & Voluntary Home Care,Lloyds TSB Commercial Finance Limited,3496.25, 20-Dec-2013
1039,Revenue,CCHD,Home Care - Elderly - North,Other Small Contracts,Lloyds TSB Commercial Finance Limited,8316.57, 12-Dec-2013
1040,Revenue,CCHD,Day Care - North,Private & Voluntary Day Care,Lloyds TSB Commercial Finance Limited,191.59, 12-Dec-2013
1041,Revenue,CCHD,Home Care - Elderly - North,Other Small Contracts,Lloyds TSB Commercial Finance Limited,8238.37, 12-Dec-2013
1042,Revenue,CCHD,Day Care - South,Private & Voluntary Day Care,Lloyds TSB Commercial Finance Limited,46.92, 12-Dec-2013
1043,Revenue,CCHD,Day Care - North,Private & Voluntary Day Care,Lloyds TSB Commercial Finance Limited,140.76, 12-Dec-2013
1044,Revenue,CCHD,Supported Living - South,Private & Voluntary Home Care,Loga Care Ltd (T/A Logacare),3672.9, 30-Dec-2013
1045,Revenue,CCHD,Social Lettings Agency,Fees - General,Individual,10, 30-Dec-2013
1046,Revenue,CCHD,Social Lettings Agency,Other Supplies & Services,Individual,565, 30-Dec-2013
1047,Revenue,CCHD,Day Care - North,Private & Voluntary Day Care,Lower Kilcott,1444.6, 24-Dec-2013
1048,Revenue,CCHD,Day Care - North,Private & Voluntary Day Care,Lower Kilcott,552.48, 24-Dec-2013
1049,Revenue,CCHD,TSG Practice Placements,Training Expenses,M Harris,640.7, 05-Dec-2013
1050,Revenue,CCHD,TSG Practice Placements,Training Expenses,M Harris,529.9, 27-Dec-2013
1051,Revenue,CCHD,Bed Purchasing - Southmead Hospital,Nursing Permanent,Majestic 3 Limited,998, 24-Dec-2013
1052,Revenue,CCHD,Bed Purchasing - Elderly - North,Residential Permanent,Manor Cottage,2192.28, 24-Dec-2013
1053,Revenue,CCHD,Bed Purchasing - Southmead Hospital,Residential Permanent,Manor Cottage,1246, 24-Dec-2013
1054,Revenue,CCHD,Bed Purchasing - Elderly - South,Residential Permanent,Manor Cottage,1449.64, 24-Dec-2013
1055,Revenue,CCHD,Bed Purchasing - Southmead Hospital,Residential Permanent,Manor Cottage,1246, 24-Dec-2013
1056,Revenue,CCHD,Bed Purchasing - Elderly - North,Residential Permanent,Manton Hall Residential Home,1496.44, 24-Dec-2013
1057,Revenue,CCHD,Section 117 Placements MH Younger,Private & Voluntary Day Care,Maples Community Care Limited,798, 20-Dec-2013
1058,Revenue,CCHD,Section 117 Placements MH Younger,Private & Voluntary Day Care,Maples Community Care Limited,2597, 20-Dec-2013
1059,Revenue,CCHD,Younger MH non-res purchasing,Private & Voluntary Day Care,Maples Community Care Limited,2597, 20-Dec-2013
1060,Revenue,CCHD,Supporting People Programme,Grants to Voluntary Bodies,Maples Community Housing Limited,2677.58, 30-Dec-2013
1061,Revenue,CCHD,Social Lettings Agency,Fees - General,Individual,11.6, 20-Dec-2013
1062,Revenue,CCHD,Social Lettings Agency,Other Supplies & Services,Individual,655.41, 20-Dec-2013
1063,Revenue,CCHD,Bed Purchasing - Southmead Hospital,Nursing Permanent,Marguerite Thomson,1646.05, 23-Dec-2013
1064,Revenue,CCHD,Bed Purchasing - Under 65s PWLD - South,Residential Permanent,Marsden Healthcare Limited,911.04, 20-Dec-2013
1065,Revenue,CCHD,Bed purchasing - Elderly PWLD - South,Residential Permanent,Marsden Healthcare Limited,3203, 20-Dec-2013
1066,Revenue,CCHD,Bed purchasing - Elderly PWLD - South,Residential Permanent,Marsden Healthcare Limited,1505.96, 20-Dec-2013
1067,Revenue,CCHD,Bed Purchasing - Elderly - South,Nursing Permanent,Meadow Care Home,1673.16, 24-Dec-2013
1068,Revenue,CCHD,Home Care - Elderly - South,Other Small Contracts,Mears Care,481, 18-Dec-2013
1069,Revenue,CCHD,Home Care - Elderly - North,Other Small Contracts,Mears Care,6915.3, 18-Dec-2013
1070,Revenue,CCHD,Day Care - South,Private & Voluntary Day Care,Mears Care,44.4, 18-Dec-2013
1071,Revenue,CCHD,Day Care - North,Private & Voluntary Day Care,Mears Care,266.4, 18-Dec-2013
1072,Revenue,CCHD,Under 65s -MH  Home Care Purch,Other Small Contracts,Mears Care,111, 18-Dec-2013
1073,Revenue,CCHD,Home Care - Elderly LD - KH,Private & Voluntary Home Care,Mears Care,51.8, 18-Dec-2013
1074,Revenue,CCHD,Home Care - Elderly - South,Other Small Contracts,Mears Care,499.5, 18-Dec-2013
1075,Revenue,CCHD,Home Care - Elderly - North,Other Small Contracts,Mears Care,5934.8, 18-Dec-2013
1076,Revenue,CCHD,Day Care - South,Private & Voluntary Day Care,Mears Care,96.2, 18-Dec-2013
1077,Revenue,CCHD,Day Care - North,Private & Voluntary Day Care,Mears Care,236.8, 18-Dec-2013
1078,Revenue,CCHD,Under 65s -MH  Home Care Purch,Other Small Contracts,Mears Care,111, 18-Dec-2013
1079,Revenue,CCHD,Home Care - Elderly LD - KH,Private & Voluntary Home Care,Mears Care,51.8, 18-Dec-2013
1080,Revenue,CCHD,Home Care - Elderly - South,Other Small Contracts,Mears Care,499.5, 18-Dec-2013
1081,Revenue,CCHD,Home Care - Elderly - North,Other Small Contracts,Mears Care,5831.2, 18-Dec-2013
1082,Revenue,CCHD,Day Care - South,Private & Voluntary Day Care,Mears Care,88.8, 18-Dec-2013
1083,Revenue,CCHD,Day Care - North,Private & Voluntary Day Care,Mears Care,140.6, 18-Dec-2013
1084,Revenue,CCHD,Under 65s -MH  Home Care Purch,Other Small Contracts,Mears Care,111, 18-Dec-2013
1085,Revenue,CCHD,Home Care - Elderly LD - KH,Private & Voluntary Home Care,Mears Care,51.8, 18-Dec-2013
1086,Revenue,CCHD,Home Care - Elderly - South,Other Small Contracts,Mears Care,506.9, 18-Dec-2013
1087,Revenue,CCHD,Home Care - Elderly - North,Other Small Contracts,Mears Care,6271.5, 18-Dec-2013
1088,Revenue,CCHD,Day Care - North,Private & Voluntary Day Care,Mears Care,177.6, 18-Dec-2013
1089,Revenue,CCHD,Under 65s -MH  Home Care Purch,Other Small Contracts,Mears Care,111, 18-Dec-2013
1090,Revenue,CCHD,Home Care - Elderly LD - KH,Private & Voluntary Home Care,Mears Care,51.8, 18-Dec-2013
1091,Revenue,CCHD,Home Care - Elderly - South,Other Small Contracts,Mears Care,555, 12-Dec-2013
1092,Revenue,CCHD,Home Care - Elderly - North,Other Small Contracts,Mears Care,6497.2, 12-Dec-2013
1093,Revenue,CCHD,Day Care - North,Private & Voluntary Day Care,Mears Care,140.6, 12-Dec-2013
1094,Revenue,CCHD,Under 65s -MH  Home Care Purch,Other Small Contracts,Mears Care,111, 12-Dec-2013
1095,Revenue,CCHD,Home Care - Elderly LD - KH,Private & Voluntary Home Care,Mears Care,51.8, 12-Dec-2013
1096,Revenue,CCHD,Home Care - Elderly - South,Other Small Contracts,Mears Care,543.9, 20-Dec-2013
1097,Revenue,CCHD,Home Care - Elderly - North,Other Small Contracts,Mears Care,6301.1, 20-Dec-2013
1098,Revenue,CCHD,Day Care - North,Private & Voluntary Day Care,Mears Care,129.5, 20-Dec-2013
1099,Revenue,CCHD,Under 65s -MH  Home Care Purch,Other Small Contracts,Mears Care,111, 20-Dec-2013
1100,Revenue,CCHD,Home Care - Elderly LD - KH,Private & Voluntary Home Care,Mears Care,51.8, 20-Dec-2013
1101,Revenue,CCHD,Home Care - Elderly - South,Private & Voluntary Home Care,Mears Care,48544, 06-Dec-2013
1102,Revenue,CCHD,Home Care - Elderly - South,Private & Voluntary Home Care,Mears Care,48544, 27-Dec-2013
1103,Revenue,CCHD,Home Care - Elderly - North,Other Small Contracts,Medacs Home Care,637, 10-Dec-2013
1104,Revenue,CCHD,Home care - Elderly MH - North,Other Small Contracts,Medacs Home Care,91, 10-Dec-2013
1105,Revenue,CCHD,Home Care - Elderly - North,Other Small Contracts,Medacs Home Care,609, 10-Dec-2013
1106,Revenue,CCHD,Home care - Elderly MH - North,Other Small Contracts,Medacs Home Care,77, 10-Dec-2013
1107,Revenue,CCHD,Home Care - Elderly - North,Other Small Contracts,Medacs Home Care,605.5, 18-Dec-2013
1108,Revenue,CCHD,Home care - Elderly MH - North,Other Small Contracts,Medacs Home Care,80.5, 18-Dec-2013
1109,Revenue,CCHD,Home Care - Elderly - North,Other Small Contracts,Medacs Home Care,640.2, 18-Dec-2013
1110,Revenue,CCHD,Home care - Elderly MH - North,Other Small Contracts,Medacs Home Care,84, 18-Dec-2013
1111,Revenue,CCHD,NRS Contract,Daily Living Equipment,Medequip Assistive Technology Ltd,22804.47, 17-Dec-2013
1112,Revenue,CCHD,NRS Contract,Daily Living Equipment,Medequip Assistive Technology Ltd,59045.4, 17-Dec-2013
1113,Revenue,CCHD,NRS Contract,Daily Living Equipment,Medequip Assistive Technology Ltd,8690.39, 17-Dec-2013
1114,Revenue,CCHD,NRS Contract,Daily Living Equipment,Medequip Assistive Technology Ltd,19317.92, 17-Dec-2013
1115,Revenue,CCHD,Bed Purchasing - Under 65s PWLD - South,Residential Permanent,Mencap,2219.16, 24-Dec-2013
1116,Revenue,CCHD,Supported Living (S28a) South,Private & Voluntary Home Care,Mencap - PS Central & Cymru,3786.86, 11-Dec-2013
1117,Revenue,CCHD,Supported Living (S28a) South,Private & Voluntary Home Care,Mencap - PS Central & Cymru,3786.86, 24-Dec-2013
1118,Revenue,CCHD,Kingswood Centre - Maple Suite,Operational Staff Pay,Mencap Employment,1344, 03-Dec-2013
1119,Revenue,CCHD,Kingswood Centre - Maple Suite,Operational Staff Pay,Mencap Employment,1344, 03-Dec-2013
1120,Revenue,CCHD,Supporting People Programme,Grants to Voluntary Bodies,Merlin Housing Society,15398.42, 30-Dec-2013
1121,Revenue,CCHD,Supporting People Programme,Grants to Voluntary Bodies,Merlin Housing Society,2423, 30-Dec-2013
1122,Revenue,CCHD,Supporting People Programme,Grants to Voluntary Bodies,Merlin Housing Society,51328.08, 30-Dec-2013
1123,Revenue,CCHD,Supporting People Programme,Grants to Voluntary Bodies,Merlin Housing Society,1026.58, 30-Dec-2013
1124,Revenue,CCHD,Bed Purchasing - Frenchay Hospital,Residential Permanent,Milburn Finance,1040.12, 24-Dec-2013
1125,Revenue,CCHD,Home Care - Elderly - South,Other Small Contracts,Milestones Outreach Dementia Services,1076.94, 17-Dec-2013
1126,Revenue,CCHD,Home Care - Elderly - North,Other Small Contracts,Milestones Outreach Dementia Services,1910.7, 17-Dec-2013
1127,Revenue,CCHD,Day Care - South,Private & Voluntary Day Care,Milestones Outreach Dementia Services,61.76, 17-Dec-2013
1128,Revenue,CCHD,Home care - Elderly MH - North,Other Small Contracts,Milestones Outreach Dementia Services,81.06, 17-Dec-2013
1129,Revenue,CCHD,Elderly MH Day Care North,Private & Voluntary Day Care,Milestones Outreach Dementia Services,15.44, 17-Dec-2013
1130,Revenue,CCHD,Home Care - Elderly - South,Other Small Contracts,Milestones Outreach Dementia Services,1273.8, 10-Dec-2013
1131,Revenue,CCHD,Home Care - Elderly - North,Other Small Contracts,Milestones Outreach Dementia Services,1837.36, 10-Dec-2013
1132,Revenue,CCHD,Day Care - South,Private & Voluntary Day Care,Milestones Outreach Dementia Services,62.54, 10-Dec-2013
1133,Revenue,CCHD,Home care - Elderly MH - North,Other Small Contracts,Milestones Outreach Dementia Services,54.04, 10-Dec-2013
1134,Revenue,CCHD,Home Care - Elderly - South,Other Small Contracts,Milestones Outreach Dementia Services,1374.16, 10-Dec-2013
1135,Revenue,CCHD,Home Care - Elderly - North,Other Small Contracts,Milestones Outreach Dementia Services,1941.58, 10-Dec-2013
1136,Revenue,CCHD,Day Care - South,Private & Voluntary Day Care,Milestones Outreach Dementia Services,65.62, 10-Dec-2013
1137,Revenue,CCHD,Home care - Elderly MH - North,Other Small Contracts,Milestones Outreach Dementia Services,54.04, 10-Dec-2013
1138,Revenue,CCHD,Home Care - Elderly - South,Other Small Contracts,Milestones Outreach Dementia Services,1312.4, 10-Dec-2013
1139,Revenue,CCHD,Home Care - Elderly - North,Other Small Contracts,Milestones Outreach Dementia Services,1941.58, 10-Dec-2013
1140,Revenue,CCHD,Day Care - South,Private & Voluntary Day Care,Milestones Outreach Dementia Services,61.76, 10-Dec-2013
1141,Revenue,CCHD,Home care - Elderly MH - North,Other Small Contracts,Milestones Outreach Dementia Services,50.18, 10-Dec-2013
1142,Revenue,CCHD,Home Care - Elderly - South,Other Small Contracts,Milestones Outreach Dementia Services,1304.68, 10-Dec-2013
1143,Revenue,CCHD,Home Care - Elderly - North,Other Small Contracts,Milestones Outreach Dementia Services,2041.94, 10-Dec-2013
1144,Revenue,CCHD,Day Care - South,Private & Voluntary Day Care,Milestones Outreach Dementia Services,61.76, 10-Dec-2013
1145,Revenue,CCHD,Home care - Elderly MH - North,Other Small Contracts,Milestones Outreach Dementia Services,46.32, 10-Dec-2013
1146,Revenue,CCHD,Home Care - Elderly - South,Other Small Contracts,Milestones Outreach Dementia Services,1320.12, 18-Dec-2013
1147,Revenue,CCHD,Home Care - Elderly - North,Other Small Contracts,Milestones Outreach Dementia Services,2130.72, 18-Dec-2013
1148,Revenue,CCHD,Home care - Elderly MH - North,Other Small Contracts,Milestones Outreach Dementia Services,50.18, 18-Dec-2013
1149,Revenue,CCHD,Home Care - Elderly - South,Other Small Contracts,Milestones Outreach Dementia Services,1385.74, 18-Dec-2013
1150,Revenue,CCHD,Home Care - Elderly - North,Other Small Contracts,Milestones Outreach Dementia Services,2092.12, 18-Dec-2013
1151,Revenue,CCHD,Home care - Elderly MH - North,Other Small Contracts,Milestones Outreach Dementia Services,54.04, 18-Dec-2013
1152,Revenue,CCHD,Supported Living - North,Private & Voluntary Home Care,Milestones Trust,1439.53, 05-Dec-2013
1153,Revenue,CCHD,Purchase of Non-Res Care - South,Private & Voluntary Day Care,Milestones Trust,614, 02-Dec-2013
1154,Revenue,CCHD,Purchase of Non-Res Care - South,Private & Voluntary Day Care,Milestones Trust,805.73, 02-Dec-2013
1155,Revenue,CCHD,Purchase of Non-Res Care - South,Private & Voluntary Day Care,Milestones Trust,1681.57, 03-Dec-2013
1156,Revenue,CCHD,Purchase of Non-Res Care - South,Private & Voluntary Day Care,Milestones Trust,1218.26, 02-Dec-2013
1157,Revenue,CCHD,Purchase of Non-Res Care - South,Private & Voluntary Day Care,Milestones Trust,1012.12, 03-Dec-2013
1158,Revenue,CCHD,Purchase of Non-Res Care - South,Private & Voluntary Day Care,Milestones Trust,736.81, 03-Dec-2013
1159,Revenue,CCHD,Purchase of Non-Res Care - South,Private & Voluntary Day Care,Milestones Trust,1292.98, 03-Dec-2013
1160,Revenue,CCHD,Purchase of Non-Res Care - South,Private & Voluntary Day Care,Milestones Trust,1810.25, 03-Dec-2013
1161,Revenue,CCHD,Purchase of Non-Res Care - South,Private & Voluntary Day Care,Milestones Trust,3035.38, 03-Dec-2013
1162,Revenue,CCHD,Supported Living - South,Private & Voluntary Home Care,Milestones Trust,1627, 03-Dec-2013
1163,Revenue,CCHD,Purchase of Non-Res Care - South,Private & Voluntary Day Care,Milestones Trust,1751.31, 02-Dec-2013
1164,Revenue,CCHD,Purchase of Non-Res Care - South,Private & Voluntary Day Care,Milestones Trust,525.61, 03-Dec-2013
1165,Revenue,CCHD,Purchase of Non-Res Care - South,Private & Voluntary Day Care,Milestones Trust,1503.93, 02-Dec-2013
1166,Revenue,CCHD,Purchase of Non-Res Care - South,Private & Voluntary Day Care,Milestones Trust,799.2, 04-Dec-2013
1167,Revenue,CCHD,Purchase of Non-Res Care - South,Private & Voluntary Day Care,Milestones Trust,1153.67, 03-Dec-2013
1168,Revenue,CCHD,Supported Living - South,Private & Voluntary Home Care,Milestones Trust,1851.68, 04-Dec-2013
1169,Revenue,CCHD,Purchase of Non-Res Care - South,Private & Voluntary Day Care,Milestones Trust,1494.07, 02-Dec-2013
1170,Revenue,CCHD,Elderly MH Day Care North,Private & Voluntary Day Care,Milestones Trust,698.02, 17-Dec-2013
1171,Revenue,CCHD,Purchase of Non-Res Care - South,Private & Voluntary Day Care,Milestones Trust,531.42, 23-Dec-2013
1172,Revenue,CCHD,Supported Living - South,Private & Voluntary Home Care,Milestones Trust,1256.65, 23-Dec-2013
1173,Revenue,CCHD,Supported Living - South,Private & Voluntary Home Care,Milestones Trust,3751.46, 23-Dec-2013
1174,Revenue,CCHD,Bed Purchasing - S28A - Over 65- North,Residential Permanent,Milestones Trust,2617.12, 24-Dec-2013
1175,Revenue,CCHD,Bed Purchasing - Elderly - South,Residential Permanent,Milestones Trust,1408.28, 24-Dec-2013
1176,Revenue,CCHD,Bed Purchasing - LD S28A- Over 65- South,Residential Permanent,Milestones Trust,8128.33, 24-Dec-2013
1177,Revenue,CCHD,Bed Purchasing - LD S28A- Over 65- South,Residential Permanent,Milestones Trust,24453.04, 24-Dec-2013
1178,Revenue,CCHD,Bed Purchasing - LD S28A- Over 65- South,Residential Permanent,Milestones Trust,637.45, 24-Dec-2013
1179,Revenue,CCHD,Bed Purchasing - LD S28A- Over 65- South,Residential Permanent,Milestones Trust,11230.14, 24-Dec-2013
1180,Revenue,CCHD,Bed Purchasing - LD S28A- Over 65- South,Residential Permanent,Milestones Trust,9337.25, 24-Dec-2013
1181,Revenue,CCHD,Bed Purchasing - LD S28A- Over 65- South,Residential Permanent,Milestones Trust,4648.96, 24-Dec-2013
1182,Revenue,CCHD,Bed Purchasing - LD S28A- Over 65- South,Residential Permanent,Milestones Trust,58707.98, 24-Dec-2013
1183,Revenue,CCHD,Bed Purchasing - LD S28A- Over 65- South,Residential Permanent,Milestones Trust,23781.83, 24-Dec-2013
1184,Revenue,CCHD,Bed Purchasing - LD S28A- Over 65- South,Residential Permanent,Milestones Trust,20664.16, 24-Dec-2013
1185,Revenue,CCHD,Bed Purchasing - LD S28A- Over 65- South,Residential Permanent,Milestones Trust,3270.48, 24-Dec-2013
1186,Revenue,CCHD,Bed Purchasing - LD S28A- Over 65- South,Residential Permanent,Milestones Trust,8796.37, 24-Dec-2013
1187,Revenue,CCHD,Bed Purchasing - LD S28A- Over 65- South,Residential Permanent,Milestones Trust,16015.76, 24-Dec-2013
1188,Revenue,CCHD,Bed Purchasing - LD S28A- Over 65- South,Residential Permanent,Milestones Trust,26505.64, 24-Dec-2013
1189,Revenue,CCHD,Bed Purchasing - LD S28A- Over 65- South,Residential Permanent,Milestones Trust,10060.3, 24-Dec-2013
1190,Revenue,CCHD,Bed Purchasing - LD S28A- Over 65- South,Residential Permanent,Milestones Trust,30347.45, 24-Dec-2013
1191,Revenue,CCHD,Bed Purchasing - LD S28A- Over 65- South,Residential Permanent,Milestones Trust,11560.38, 24-Dec-2013
1192,Revenue,CCHD,Bed Purchasing - LD S28A- Over 65- South,Residential Permanent,Milestones Trust,3216.49, 24-Dec-2013
1193,Revenue,CCHD,Bed Purchasing - LD S28A- Over 65- South,Residential Permanent,Milestones Trust,30205.42, 24-Dec-2013
1194,Revenue,CCHD,Bed Purchasing - Under 65s PWLD - South,Residential Permanent,Milestones Trust,5601.56, 24-Dec-2013
1195,Revenue,CCHD,Bed purchasing - Elderly MH - North,Nursing Permanent,Milestones Trust,959.4, 24-Dec-2013
1196,Revenue,CCHD,Bed purchasing - Elderly PWLD - North,Residential Permanent,Milestones Trust,3411.76, 24-Dec-2013
1197,Revenue,CCHD,Bed Purchasing - Under 65s PWLD - South,Residential Permanent,Milestones Trust,4796.48, 24-Dec-2013
1198,Revenue,CCHD,Bed Purchasing - Under 65s PWLD - South,Residential Permanent,Milestones Trust,5362.64, 24-Dec-2013
1199,Revenue,CCHD,Bed Purchasing - Under 65s PWLD - South,Nursing Permanent,Milestones Trust,2784.88, 24-Dec-2013
1200,Revenue,CCHD,Bed purchasing - Elderly MH - North,Nursing Permanent,Milestones Trust,1434.2, 24-Dec-2013
1201,Revenue,CCHD,Section 117 Placements MH Younger,Nursing Permanent,Milestones Trust,1615.36, 24-Dec-2013
1202,Revenue,CCHD,Bed Purchasing - Elderly MH - South,Residential Permanent,Milestones Trust,3555.92, 24-Dec-2013
1203,Revenue,CCHD,Section 117 Placements MH Younger,Residential Permanent,Milestones Trust,1336, 24-Dec-2013
1204,Revenue,CCHD,Bed purchasing - Elderly S117 - South,Nursing Permanent,Milestones Trust,1964, 24-Dec-2013
1205,Revenue,CCHD,Bed Purchasing - Elderly - South,Nursing Permanent,Milestones Trust,1419.6, 24-Dec-2013
1206,Revenue,CCHD,Bed purchasing - Elderly PWLD - South,Residential Permanent,Milestones Trust,4067.52, 24-Dec-2013
1207,Revenue,CCHD,Bed purchasing -S28A  Under 65 - North,Nursing Permanent,Milestones Trust,5774.8, 24-Dec-2013
1208,Revenue,CCHD,Bed purchasing -S28A  Under 65 - North,Nursing Permanent,Milestones Trust,1717.58, 24-Dec-2013
1209,Revenue,CCHD,Bed Purchasing - Elderly - North,Nursing Permanent,Milestones Trust,2437.14, 24-Dec-2013
1210,Revenue,CCHD,Bed purchasing -S28A  Under 65 - North,Residential Permanent,Milestones Trust,5258.88, 24-Dec-2013
1211,Revenue,CCHD,Bed Purchasing - Under 65s PWLD - South,Residential Permanent,Milestones Trust,4041.73, 24-Dec-2013
1212,Revenue,CCHD,Bed purchasing - Elderly PWLD - South,Residential Permanent,Milestones Trust,2924.94, 24-Dec-2013
1213,Revenue,CCHD,Bed purchasing - S28A Under 65 - South,Residential Permanent,Milestones Trust,5251.26, 24-Dec-2013
1214,Revenue,CCHD,Bed Purchasing - Elderly MH - South,Residential Permanent,Milestones Trust,1282.64, 24-Dec-2013
1215,Revenue,CCHD,Bed Purchasing - Under 65s PWLD - South,Residential Permanent,Milestones Trust,5000.92, 24-Dec-2013
1216,Revenue,CCHD,Bed Purchasing - Under 65s PWLD - South,Residential Permanent,Milestones Trust,5431.76, 24-Dec-2013
1217,Revenue,CCHD,Bed purchasing - S28A Under 65 - South,Nursing Permanent,Milestones Trust,7190.52, 24-Dec-2013
1218,Revenue,CCHD,MH Purchasing - Younger,Residential Permanent,Milestones Trust,1020.8, 24-Dec-2013
1219,Revenue,CCHD,Bed purchasing - Elderly PWLD - South,Residential Permanent,Milestones Trust,5052.56, 24-Dec-2013
1220,Revenue,CCHD,Bed purchasing - Elderly PWLD - South,Residential Permanent,Milestones Trust,3726.51, 24-Dec-2013
1221,Revenue,CCHD,Bed purchasing - Elderly PWLD - South,Residential Permanent,Milestones Trust,3823.68, 24-Dec-2013
1222,Revenue,CCHD,Bed purchasing - Elderly PWLD - North,Residential Permanent,Milestones Trust,2969.12, 24-Dec-2013
1223,Revenue,CCHD,Bed purchasing -S28A  Under 65 - North,Residential Permanent,Milestones Trust,5182.72, 24-Dec-2013
1224,Revenue,CCHD,Bed purchasing -S28A  Under 65 - North,Residential Permanent,Milestones Trust,6955.32, 24-Dec-2013
1225,Revenue,CCHD,Bed purchasing -S28A  Under 65 - North,Nursing Permanent,Milestones Trust,6153.36, 24-Dec-2013
1226,Revenue,CCHD,Bed Purchasing - Under 65s PWLD - South,Residential Permanent,Milestones Trust,9293.44, 24-Dec-2013
1227,Revenue,CCHD,Bed Purchasing - Under 65s PWLD - South,Residential Permanent,Milestones Trust,4452.24, 24-Dec-2013
1228,Revenue,CCHD,Bed Purchasing - Under 65s PWLD - South,Residential Permanent,Milestones Trust,827.51, 24-Dec-2013
1229,Revenue,CCHD,Bed Purchasing - Elderly - South,Residential Permanent,Milestones Trust,3163.76, 24-Dec-2013
1230,Revenue,CCHD,Bed purchasing -S28A  Under 65 - North,Residential Permanent,Milestones Trust,6656.16, 24-Dec-2013
1231,Revenue,CCHD,Bed purchasing - S28A Under 65 - South,Residential Permanent,Milestones Trust,4459.4, 24-Dec-2013
1232,Revenue,CCHD,Bed Purchasing - S28A - Over 65- North,Residential Permanent,Milestones Trust,6510.76, 24-Dec-2013
1233,Revenue,CCHD,Bed Purchasing - LD S28A- Over 65- South,Residential Permanent,Milestones Trust,5004.36, 24-Dec-2013
1234,Revenue,CCHD,Bed purchasing -S28A  Under 65 - North,Residential Permanent,Milestones Trust,6955.32, 24-Dec-2013
1235,Revenue,CCHD,Bed purchasing -S28A  Under 65 - North,Residential Permanent,Milestones Trust,6955.32, 24-Dec-2013
1236,Revenue,CCHD,Bed Purchasing - LD S28A- Over 65- South,Residential Permanent,Milestones Trust,5550.07, 24-Dec-2013
1237,Revenue,CCHD,Bed purchasing - S28A Under 65 - South,Residential Permanent,Milestones Trust,4796.48, 24-Dec-2013
1238,Revenue,CCHD,Bed purchasing - S28A Under 65 - South,Residential Permanent,Milestones Trust,4691.48, 24-Dec-2013
1239,Revenue,CCHD,Bed Purchasing - LD S28A- Over 65- South,Residential Permanent,Milestones Trust,3610.08, 24-Dec-2013
1240,Revenue,CCHD,Bed purchasing - S28A Under 65 - South,Residential Permanent,Milestones Trust,1797.12, 24-Dec-2013
1241,Revenue,CCHD,Bed Purchasing - LD S28A- Over 65- South,Residential Permanent,Milestones Trust,5327.17, 24-Dec-2013
1242,Revenue,CCHD,Bed Purchasing - LD S28A- Over 65- South,Residential Permanent,Milestones Trust,5019.44, 24-Dec-2013
1243,Revenue,CCHD,Bed Purchasing - LD S28A- Over 65- South,Residential Permanent,Milestones Trust,4960.32, 24-Dec-2013
1244,Revenue,CCHD,Bed Purchasing - LD S28A- Over 65- South,Residential Permanent,Milestones Trust,2043.6, 24-Dec-2013
1245,Revenue,CCHD,Bed Purchasing - LD S28A- Over 65- South,Residential Permanent,Milestones Trust,5114.08, 24-Dec-2013
1246,Revenue,CCHD,Bed Purchasing - LD S28A- Over 65- South,Residential Permanent,Milestones Trust,2103.92, 24-Dec-2013
1247,Revenue,CCHD,Bed Purchasing - LD S28A- Over 65- South,Residential Permanent,Milestones Trust,4292.36, 24-Dec-2013
1248,Revenue,CCHD,Bed Purchasing - LD S28A- Over 65- South,Residential Permanent,Milestones Trust,5097.36, 24-Dec-2013
1249,Revenue,CCHD,Bed Purchasing - LD S28A- Over 65- South,Residential Permanent,Milestones Trust,3494.4, 24-Dec-2013
1250,Revenue,CCHD,Bed purchasing -S28A  Under 65 - North,Residential Permanent,Milestones Trust,9023.08, 24-Dec-2013
1251,Revenue,CCHD,Bed purchasing -S28A  Under 65 - North,Nursing Permanent,Milestones Trust,6235.36, 24-Dec-2013
1252,Revenue,CCHD,Bed Purchasing - LD S28A- Over 65- South,Residential Permanent,Milestones Trust,5587.92, 24-Dec-2013
1253,Revenue,CCHD,Bed Purchasing - LD S28A- Over 65- South,Residential Permanent,Milestones Trust,522.98, 24-Dec-2013
1254,Revenue,CCHD,Bed Purchasing - LD S28A- Over 65- South,Residential Permanent,Milestones Trust,2953.24, 24-Dec-2013
1255,Revenue,CCHD,Bed Purchasing - S28A - Over 65- North,Residential Permanent,Milestones Trust,2835.72, 24-Dec-2013
1256,Revenue,CCHD,Section 117 Placements MH Younger,Residential Permanent,Milestones Trust,1336, 24-Dec-2013
1257,Revenue,CCHD,Bed purchasing - Elderly MH - North,Residential Permanent,Milestones Trust,850, 24-Dec-2013
1258,Revenue,CCHD,Bed purchasing - S28A Under 65 - South,Residential Permanent,Milestones Trust,4796.48, 24-Dec-2013
1259,Revenue,CCHD,Bed purchasing - Elderly PWLD - North,Residential Permanent,Milestones Trust,4247.2, 24-Dec-2013
1260,Revenue,CCHD,Bed purchasing - Elderly MH - North,Nursing Permanent,Milestones Trust,1098.04, 24-Dec-2013
1261,Revenue,CCHD,Bed Purchasing - Under 65s PWLD - South,Residential Permanent,Milestones Trust,8370.84, 24-Dec-2013
1262,Revenue,CCHD,Bed purchasing -S28A  Under 65 - North,Residential Permanent,Milestones Trust,5592.32, 24-Dec-2013
1263,Revenue,CCHD,Bed Purchasing - S28A - Over 65- North,Residential Permanent,Milestones Trust,3549.16, 24-Dec-2013
1264,Revenue,CCHD,Bed Purchasing - Elderly S117- North,Residential Permanent,Milestones Trust,1732, 24-Dec-2013
1265,Revenue,CCHD,MH Purchasing - Younger,Residential Permanent,Milestones Trust,1020.8, 24-Dec-2013
1266,Revenue,CCHD,Bed Purchasing - S28A - Over 65- North,Residential Permanent,Milestones Trust,3170.24, 24-Dec-2013
1267,Revenue,CCHD,Bed Purchasing - LD S28A- Over 65- South,Residential Permanent,Milestones Trust,3828.04, 24-Dec-2013
1268,Revenue,CCHD,Bed purchasing - S28A Under 65 - South,Residential Permanent,Milestones Trust,3019.64, 24-Dec-2013
1269,Revenue,CCHD,Bed Purchasing - LD S28A- Over 65- South,Residential Permanent,Milestones Trust,3289.86, 24-Dec-2013
1270,Revenue,CCHD,Bed purchasing - S28A Under 65 - South,Residential Permanent,Milestones Trust,5391.32, 24-Dec-2013
1271,Revenue,CCHD,Bed purchasing - S28A Under 65 - South,Residential Permanent,Milestones Trust,5724.72, 24-Dec-2013
1272,Revenue,CCHD,Bed Purchasing - LD S28A- Over 65- South,Residential Permanent,Milestones Trust,5591.04, 24-Dec-2013
1273,Revenue,CCHD,Bed Purchasing - LD S28A- Over 65- South,Residential Permanent,Milestones Trust,6890, 24-Dec-2013
1274,Revenue,CCHD,Bed Purchasing - LD S28A- Over 65- South,Residential Permanent,Milestones Trust,4735.4, 24-Dec-2013
1275,Revenue,CCHD,Bed Purchasing - LD S28A- Over 65- South,Residential Permanent,Milestones Trust,4461.32, 24-Dec-2013
1276,Revenue,CCHD,Bed Purchasing - LD S28A- Over 65- South,Residential Permanent,Milestones Trust,4535.32, 24-Dec-2013
1277,Revenue,CCHD,Bed purchasing - S28A Under 65 - South,Residential Permanent,Milestones Trust,1421.02, 24-Dec-2013
1278,Revenue,CCHD,Bed purchasing - S28A Under 65 - South,Residential Permanent,Milestones Trust,6976.83, 24-Dec-2013
1279,Revenue,CCHD,Bed Purchasing - LD S28A- Over 65- South,Residential Permanent,Milestones Trust,4241.68, 24-Dec-2013
1280,Revenue,CCHD,Bed Purchasing - S28A - Over 65- North,Residential Permanent,Milestones Trust,4683.8, 24-Dec-2013
1281,Revenue,CCHD,Bed Purchasing - Elderly S117- North,Nursing Permanent,Milestones Trust,1788, 24-Dec-2013
1282,Revenue,CCHD,Bed Purchasing - S28A - Over 65- North,Residential Permanent,Milestones Trust,4524.16, 24-Dec-2013
1283,Revenue,CCHD,Bed Purchasing - S28A - Over 65- North,Residential Permanent,Milestones Trust,4692.44, 24-Dec-2013
1284,Revenue,CCHD,Bed purchasing - S28A Under 65 - South,Residential Permanent,Milestones Trust,4686.44, 24-Dec-2013
1285,Revenue,CCHD,Bed Purchasing - S28A - Over 65- North,Residential Permanent,Milestones Trust,4440.04, 24-Dec-2013
1286,Revenue,CCHD,Bed purchasing - S28A Under 65 - South,Residential Permanent,Milestones Trust,4625.68, 24-Dec-2013
1287,Revenue,CCHD,Bed purchasing -S28A  Under 65 - North,Residential Permanent,Milestones Trust,6955.32, 24-Dec-2013
1288,Revenue,CCHD,Bed purchasing -S28A  Under 65 - North,Residential Permanent,Milestones Trust,2924.52, 24-Dec-2013
1289,Revenue,CCHD,Bed Purchasing - S28A - Over 65- North,Residential Permanent,Milestones Trust,3090.6, 24-Dec-2013
1290,Revenue,CCHD,Bed Purchasing - S28A - Over 65- North,Residential Permanent,Milestones Trust,3221.88, 24-Dec-2013
1291,Revenue,CCHD,Bed Purchasing - LD S28A- Over 65- South,Residential Permanent,Milestones Trust,3043.6, 24-Dec-2013
1292,Revenue,CCHD,Bed purchasing - Under 65s PWLD - North,Residential Permanent,Milestones Trust,6673.92, 24-Dec-2013
1293,Revenue,CCHD,Bed Purchasing - Elderly - South,Residential Permanent,Milestones Trust,1302, 24-Dec-2013
1294,Revenue,CCHD,MH Purchasing - Younger,Nursing Permanent,Milestones Trust,924, 24-Dec-2013
1295,Revenue,CCHD,MH Purchasing - Younger,Nursing Permanent,Milestones Trust,1112.8, 24-Dec-2013
1296,Revenue,CCHD,Bed purchasing - Elderly PWLD - South,Residential Permanent,Milestones Trust,3209.36, 24-Dec-2013
1297,Revenue,CCHD,Bed purchasing - S28A Under 65 - South,Residential Permanent,Milestones Trust,5832.32, 24-Dec-2013
1298,Revenue,CCHD,Bed purchasing - S28A Under 65 - South,Residential Permanent,Milestones Trust,19010.88, 24-Dec-2013
1299,Revenue,CCHD,Bed purchasing - S28A Under 65 - South,Residential Permanent,Milestones Trust,1155.82, 24-Dec-2013
1300,Revenue,CCHD,Bed Purchasing - LD S28A- Over 65- South,Residential Permanent,Milestones Trust,4292.36, 24-Dec-2013
1301,Revenue,CCHD,Bed Purchasing - Under 65s PWLD - South,Residential Permanent,Milestones Trust,20865, 24-Dec-2013
1302,Revenue,CCHD,Bed Purchasing - Under 65s PWLD - South,Residential Permanent,Milestones Trust,5832.72, 24-Dec-2013
1303,Revenue,CCHD,Bed Purchasing - Under 65s PWLD - South,Residential Permanent,Milestones Trust,1292.79, 24-Dec-2013
1304,Revenue,CCHD,Bed Purchasing - LD S28A- Over 65- South,Nursing Permanent,Milestones Trust,6019.38, 24-Dec-2013
1305,Revenue,CCHD,Bed Purchasing - LD S28A- Over 65- South,Residential Permanent,Milestones Trust,3397.25, 24-Dec-2013
1306,Revenue,CCHD,Bed purchasing - S28A Under 65 - South,Residential Permanent,Milestones Trust,1381.23, 24-Dec-2013
1307,Revenue,CCHD,Bed Purchasing - LD S28A- Over 65- South,Residential Permanent,Milestones Trust,5591.04, 24-Dec-2013
1308,Revenue,CCHD,Bed Purchasing - LD S28A- Over 65- South,Residential Permanent,Milestones Trust,3559.36, 24-Dec-2013
1309,Revenue,CCHD,Bed Purchasing - LD S28A- Over 65- South,Residential Permanent,Milestones Trust,4282.6, 24-Dec-2013
1310,Revenue,CCHD,Bed Purchasing - LD S28A- Over 65- South,Residential Permanent,Milestones Trust,14475.12, 24-Dec-2013
1311,Revenue,CCHD,Bed Purchasing - LD S28A- Over 65- South,Residential Permanent,Milestones Trust,797.08, 24-Dec-2013
1312,Revenue,CCHD,Bed Purchasing - Elderly S117- North,Nursing Respite,Milestones Trust,769.3, 24-Dec-2013
1313,Revenue,CCHD,Bed Purchasing - Elderly S117- North,Nursing Permanent,Milestones Trust,859.96, 24-Dec-2013
1314,Revenue,CCHD,Bed Purchasing - Elderly MH - South,Residential Permanent,Milestones Trust,1212.08, 24-Dec-2013
1315,Revenue,CCHD,Bed purchasing -S28A  Under 65 - North,Nursing Permanent,Milestones Trust,7563.52, 24-Dec-2013
1316,Revenue,CCHD,Bed Purchasing - Under 65s PWLD - South,Residential Permanent,Milestones Trust,5173.28, 24-Dec-2013
1317,Revenue,CCHD,Bed Purchasing - Elderly S117- North,Nursing Permanent,Milestones Trust,1964, 24-Dec-2013
1318,Revenue,CCHD,Bed Purchasing - Elderly MH - South,Nursing Permanent,Milestones Trust,1824.96, 24-Dec-2013
1319,Revenue,CCHD,Bed purchasing - Under 65s PWLD - North,Residential Permanent,Milestones Trust,15363, 24-Dec-2013
1320,Revenue,CCHD,Section 117 Placements MH Younger,Residential Permanent,Milestones Trust,1336, 24-Dec-2013
1321,Revenue,CCHD,Bed Purchasing - LD S28A- Over 65- South,Residential Permanent,Milestones Trust,2765.99, 24-Dec-2013
1322,Revenue,CCHD,Bed Purchasing - LD S28A- Over 65- South,Nursing Permanent,Milestones Trust,2940.76, 24-Dec-2013
1323,Revenue,CCHD,Bed Purchasing - LD S28A- Over 65- South,Nursing Permanent,Milestones Trust,2729.64, 24-Dec-2013
1324,Revenue,CCHD,Bed Purchasing - S28A - Over 65- North,Nursing Permanent,Milestones Trust,3649.32, 24-Dec-2013
1325,Revenue,CCHD,Bed Purchasing - S28A - Over 65- North,Nursing Permanent,Milestones Trust,3665.32, 24-Dec-2013
1326,Revenue,CCHD,MH Purchasing - Younger,Residential Respite,Milestones Trust,788.57, 24-Dec-2013
1327,Revenue,CCHD,Bed Purchasing - Elderly - South,Residential Permanent,Milestones Trust,1246, 24-Dec-2013
1328,Revenue,CCHD,MH Purchasing - Younger,Residential Permanent,Milestones Trust,2096.23, 24-Dec-2013
1329,Revenue,CCHD,Bed Purchasing - Frenchay Hospital,Residential Permanent,Mostyn Lodge Residential Home,2872.7, 24-Dec-2013
1330,Revenue,CCHD,Bed Purchasing - Frenchay Hospital,Residential Permanent,Mostyn Lodge Residential Home,1117.16, 24-Dec-2013
1331,Revenue,CCHD,Bed purchasing - Elderly S117 - South,Residential Permanent,Mostyn Lodge Residential Home,1900, 24-Dec-2013
1332,Revenue,CCHD,Bed Purchasing - Frenchay Hospital,Residential Permanent,Mostyn Lodge Residential Home,654.96, 24-Dec-2013
1333,Revenue,CCHD,Older People's Commissioned Se,Grants to Voluntary Bodies,Mothers for Mothers,2155.25, 30-Dec-2013
1334,Revenue,CCHD,Social Lettings Agency,Fees - General,Individual,10, 06-Dec-2013
1335,Revenue,CCHD,Social Lettings Agency,Other Supplies & Services,Individual,565, 06-Dec-2013
1336,Revenue,CCHD,Social Lettings Agency,Fees - General,Individual,10, 18-Dec-2013
1337,Revenue,CCHD,Social Lettings Agency,Other Supplies & Services,Individual,565, 18-Dec-2013
1338,Revenue,CCHD,Social Lettings Agency,Fees - General,Individual,10, 20-Dec-2013
1339,Revenue,CCHD,Social Lettings Agency,Other Supplies & Services,Individual,565, 20-Dec-2013
1340,Revenue,CCHD,Social Lettings Agency,Fees - General,Individual,8.6, 20-Dec-2013
1341,Revenue,CCHD,Social Lettings Agency,Other Supplies & Services,Individual,582, 20-Dec-2013
1342,Revenue,CCHD,Social Lettings Agency,Fees - General,Individual,11.6, 30-Dec-2013
1343,Revenue,CCHD,Social Lettings Agency,Other Supplies & Services,Individual,655.41, 30-Dec-2013
1344,Revenue,CCHD,Social Lettings Agency,Other Supplies & Services,Individual,850, 12-Dec-2013
1345,Revenue,CCHD,Homeless - Private Sector Leasing,Other Supplies & Services,Mr D G & Mrs L K Jenkins,565, 30-Dec-2013
1346,Revenue,CCHD,Social Lettings Agency,Fees - General,Individual,10, 06-Dec-2013
1347,Revenue,CCHD,Social Lettings Agency,Other Supplies & Services,Individual,565, 06-Dec-2013
1348,Revenue,CCHD,Tenancy Start Up Scheme,Other Supplies & Services,Individual,1250, 10-Dec-2013
1349,Revenue,CCHD,Tenancy Start Up Scheme,Other Supplies & Services,Individual,1250, 20-Dec-2013
1350,Revenue,CCHD,Social Lettings Agency,Fees - General,Individual,11.2, 20-Dec-2013
1351,Revenue,CCHD,Social Lettings Agency,Other Supplies & Services,Individual,632.81, 20-Dec-2013
1352,Revenue,CCHD,Social Lettings Agency,Fees - General,Individual,10, 06-Dec-2013
1353,Revenue,CCHD,Social Lettings Agency,Other Supplies & Services,Individual,565, 06-Dec-2013
1354,Revenue,CCHD,Social Lettings Agency,Fees - General,Individual,10, 30-Dec-2013
1355,Revenue,CCHD,Social Lettings Agency,Other Supplies & Services,Individual,565, 30-Dec-2013
1356,Revenue,CCHD,Social Lettings Agency,Fees - General,Individual,8.7, 16-Dec-2013
1357,Revenue,CCHD,Social Lettings Agency,Other Supplies & Services,Individual,672.8, 16-Dec-2013
1358,Revenue,CCHD,Social Lettings Agency,Fees - General,Individual,11.2, 13-Dec-2013
1359,Revenue,CCHD,Social Lettings Agency,Other Supplies & Services,Individual,632.81, 13-Dec-2013
1360,Revenue,CCHD,Social Lettings Agency,Fees - General,Individual,10, 06-Dec-2013
1361,Revenue,CCHD,Social Lettings Agency,Other Supplies & Services,Individual,565, 06-Dec-2013
1362,Revenue,CCHD,Social Lettings Agency,Fees - General,Individual,10, 30-Dec-2013
1363,Revenue,CCHD,Social Lettings Agency,Other Supplies & Services,Individual,565, 30-Dec-2013
1364,Revenue,CCHD,Social Lettings Agency,Fees - General,Individual,7.5, 10-Dec-2013
1365,Revenue,CCHD,Social Lettings Agency,Other Supplies & Services,Individual,587.25, 10-Dec-2013
1366,Revenue,CCHD,Day Care - North,Private & Voluntary Day Care,Mrs B Kimber,610.44, 03-Dec-2013
1367,Revenue,CCHD,Supported Living - South,Private & Voluntary Home Care,Mrs B Kimber,8767.25, 16-Dec-2013
1368,Revenue,CCHD,Supported Living - South,Private & Voluntary Home Care,Mrs B Kimber,10490.4, 16-Dec-2013
1369,Revenue,CCHD,Supported Living - South,Private & Voluntary Home Care,Mrs B Kimber,644.72, 23-Dec-2013
1370,Revenue,CCHD,Purchase of Non-Res Care - South,Private & Voluntary Day Care,Mrs B Kimber,827.28, 16-Dec-2013
1371,Revenue,CCHD,Purchase of Non-Res Care - North,Private & Voluntary Day Care,Mrs B Kimber,537, 20-Dec-2013
1372,Revenue,CCHD,Home Care - Elderly - South,Other Small Contracts,Mrs B Kimber -  CM2000,7682.85, 06-Dec-2013
1373,Revenue,CCHD,Home Care - Elderly - North,Other Small Contracts,Mrs B Kimber -  CM2000,3312.9, 06-Dec-2013
1374,Revenue,CCHD,Day Care - South,Private & Voluntary Day Care,Mrs B Kimber -  CM2000,522.45, 06-Dec-2013
1375,Revenue,CCHD,Day Care - North,Private & Voluntary Day Care,Mrs B Kimber -  CM2000,97.2, 06-Dec-2013
1376,Revenue,CCHD,Under 65s -MH  Home Care Purch,Other Small Contracts,Mrs B Kimber -  CM2000,64.8, 06-Dec-2013
1377,Revenue,CCHD,Elderly MH Day Care North,Private & Voluntary Day Care,Mrs B Kimber -  CM2000,97.2, 06-Dec-2013
1378,Revenue,CCHD,PWLD Home Care - Under 65 - KH,Private & Voluntary Home Care,Mrs B Kimber -  CM2000,97.2, 06-Dec-2013
1379,Revenue,CCHD,Home Care - Elderly - South,Other Small Contracts,Mrs B Kimber -  CM2000,7184.7, 06-Dec-2013
1380,Revenue,CCHD,Home Care - Elderly - North,Other Small Contracts,Mrs B Kimber -  CM2000,3341.25, 06-Dec-2013
1381,Revenue,CCHD,Day Care - South,Private & Voluntary Day Care,Mrs B Kimber -  CM2000,522.45, 06-Dec-2013
1382,Revenue,CCHD,Day Care - North,Private & Voluntary Day Care,Mrs B Kimber -  CM2000,32.4, 06-Dec-2013
1383,Revenue,CCHD,Elderly MH Day Care North,Private & Voluntary Day Care,Mrs B Kimber -  CM2000,97.2, 06-Dec-2013
1384,Revenue,CCHD,Home Care - Elderly - South,Other Small Contracts,Mrs B Kimber -  CM2000,7377.65, 06-Dec-2013
1385,Revenue,CCHD,Home Care - Elderly - North,Other Small Contracts,Mrs B Kimber -  CM2000,3941.5, 06-Dec-2013
1386,Revenue,CCHD,Day Care - South,Private & Voluntary Day Care,Mrs B Kimber -  CM2000,522.45, 06-Dec-2013
1387,Revenue,CCHD,Day Care - North,Private & Voluntary Day Care,Mrs B Kimber -  CM2000,81, 06-Dec-2013
1388,Revenue,CCHD,Under 65s -MH  Home Care Purch,Other Small Contracts,Mrs B Kimber -  CM2000,64.8, 06-Dec-2013
1389,Revenue,CCHD,Elderly MH Day Care North,Private & Voluntary Day Care,Mrs B Kimber -  CM2000,101.25, 06-Dec-2013
1390,Revenue,CCHD,Home Care - Elderly - South,Other Small Contracts,Mrs B Kimber -  CM2000,7312.85, 12-Dec-2013
1391,Revenue,CCHD,Home Care - Elderly - North,Other Small Contracts,Mrs B Kimber -  CM2000,4168.35, 12-Dec-2013
1392,Revenue,CCHD,Day Care - South,Private & Voluntary Day Care,Mrs B Kimber -  CM2000,481.95, 12-Dec-2013
1393,Revenue,CCHD,Day Care - North,Private & Voluntary Day Care,Mrs B Kimber -  CM2000,32.4, 12-Dec-2013
1394,Revenue,CCHD,Under 65s -MH  Home Care Purch,Other Small Contracts,Mrs B Kimber -  CM2000,64.8, 12-Dec-2013
1395,Revenue,CCHD,Elderly MH Day Care North,Private & Voluntary Day Care,Mrs B Kimber -  CM2000,97.2, 12-Dec-2013
1396,Revenue,CCHD,Home Care - Elderly - South,Other Small Contracts,Mrs B Kimber -  CM2000,7417.4, 30-Dec-2013
1397,Revenue,CCHD,Home Care - Elderly - North,Other Small Contracts,Mrs B Kimber -  CM2000,4090.95, 30-Dec-2013
1398,Revenue,CCHD,Day Care - South,Private & Voluntary Day Care,Mrs B Kimber -  CM2000,453.6, 30-Dec-2013
1399,Revenue,CCHD,Day Care - North,Private & Voluntary Day Care,Mrs B Kimber -  CM2000,97.2, 30-Dec-2013
1400,Revenue,CCHD,Under 65s -MH  Home Care Purch,Other Small Contracts,Mrs B Kimber -  CM2000,64.8, 30-Dec-2013
1401,Revenue,CCHD,Elderly MH Day Care North,Private & Voluntary Day Care,Mrs B Kimber -  CM2000,97.2, 30-Dec-2013
1402,Revenue,CCHD,Social Lettings Agency,Fees - General,Individual,10, 17-Dec-2013
1403,Revenue,CCHD,Social Lettings Agency,Other Supplies & Services,Individual,565, 17-Dec-2013
1404,Revenue,CCHD,Social Lettings Agency,Fees - General,Individual,10, 13-Dec-2013
1405,Revenue,CCHD,Social Lettings Agency,Other Supplies & Services,Individual,565, 13-Dec-2013
1406,Revenue,CCHD,Social Lettings Agency,Fees - General,Individual,10, 24-Dec-2013
1407,Revenue,CCHD,Social Lettings Agency,Other Supplies & Services,Individual,565, 24-Dec-2013
1408,Revenue,CCHD,Social Lettings Agency,Fees - General,Individual,10, 30-Dec-2013
1409,Revenue,CCHD,Social Lettings Agency,Other Supplies & Services,Individual,565, 30-Dec-2013
1410,Revenue,CCHD,Supported Living - North,Residential Permanent,Mrs I M Bowerman,1589.94, 16-Dec-2013
1411,Revenue,CCHD,Social Lettings Agency,Fees - General,Individual,10, 12-Dec-2013
1412,Revenue,CCHD,Social Lettings Agency,Other Supplies & Services,Individual,565, 12-Dec-2013
1413,Revenue,CCHD,Tenancy Start Up Scheme,Other Supplies & Services,Individual,1000, 05-Dec-2013
1414,Revenue,CCHD,Bed Purchasing - Elderly - South,Nursing Permanent,Mrs Joan Flook,627.29, 06-Dec-2013
1415,Revenue,CCHD,Supported Living - North,Residential Permanent,Mrs Julie Taylor,978.71, 18-Dec-2013
1416,Revenue,CCHD,Social Lettings Agency,Fees - General,Individual,11.6, 16-Dec-2013
1417,Revenue,CCHD,Social Lettings Agency,Other Supplies & Services,Individual,655.41, 16-Dec-2013
1418,Revenue,CCHD,Purchase of Non-Res Care - North,Private & Voluntary Day Care,Mrs W Thompson,1484.4, 18-Dec-2013
1419,Revenue,CCHD,Purchase of Non-Res Care - North,Private & Voluntary Day Care,Mrs W Thompson,563.28, 18-Dec-2013
1420,Revenue,CCHD,Purchase of Non-Res Care - North,Private & Voluntary Day Care,Mrs W Thompson,1484.4, 02-Dec-2013
1421,Revenue,CCHD,Purchase of Non-Res Care - North,Private & Voluntary Day Care,Mrs W Thompson,563.28, 02-Dec-2013
1422,Revenue,CCHD,Social Lettings Agency,Fees - General,Individual,10, 06-Dec-2013
1423,Revenue,CCHD,Social Lettings Agency,Other Supplies & Services,Individual,565, 06-Dec-2013
1424,Revenue,CCHD,Social Lettings Agency,Fees - General,Individual,15.2, 11-Dec-2013
1425,Revenue,CCHD,Social Lettings Agency,Other Supplies & Services,Individual,858.8, 11-Dec-2013
1426,Revenue,CCHD,Tenancy Start Up Scheme,Other Supplies & Services,Individual,1250, 18-Dec-2013
1427,Revenue,CCHD,Younger MH non-res purchasing,Private & Voluntary Day Care,NAS Services Limited,740.88, 11-Dec-2013
1428,Revenue,CCHD,Day Care - North,Private & Voluntary Day Care,NAS Services Limited,1031.4, 11-Dec-2013
1429,Revenue,CCHD,Day Care - South,Private & Voluntary Day Care,NAS Services Limited,982.8, 11-Dec-2013
1430,Revenue,CCHD,Younger MH non-res purchasing,Private & Voluntary Day Care,NAS Services Limited,520.56, 11-Dec-2013
1431,Revenue,CCHD,Day Care - South,Private & Voluntary Day Care,NAS Services Limited,849.3, 12-Dec-2013
1432,Revenue,CCHD,Younger MH non-res purchasing,Private & Voluntary Day Care,NAS Services Limited,725.8, 12-Dec-2013
1433,Revenue,CCHD,Bed Purchasing - Under 65s PWLD - South,Residential Permanent,National Star College,4547.72, 24-Dec-2013
1434,Revenue,CCHD,Home Care - Elderly - South,Other Small Contracts,Network Health & Social Care,1384.84, 05-Dec-2013
1435,Revenue,CCHD,Home Care - Elderly - North,Other Small Contracts,Network Health & Social Care,4461.83, 05-Dec-2013
1436,Revenue,CCHD,Home Care - Elderly - South,Other Small Contracts,Network Health & Social Care,1797.18, 05-Dec-2013
1437,Revenue,CCHD,Home Care - Elderly - North,Other Small Contracts,Network Health & Social Care,4049.49, 05-Dec-2013
1438,Revenue,CCHD,Social Lettings Agency,Fees - General,Individual,10, 04-Dec-2013
1439,Revenue,CCHD,Social Lettings Agency,Other Supplies & Services,Individual,565, 04-Dec-2013
1440,Revenue,CCHD,Access Team,"Holidays, Outings & Visits",Neville Williams,1008, 04-Dec-2013
1441,Revenue,CCHD,Access Team,"Holidays, Outings & Visits",Neville Williams,864, 27-Dec-2013
1442,Revenue,CCHD,Bed Purchasing - Under 65s PWLD - South,Residential Permanent,Nightingale Nursing Home,3105.36, 24-Dec-2013
1443,Revenue,CCHD,SLA Grants - Support Serv,Grants to Voluntary Bodies,North Bristol NHS Trust,4350, 30-Dec-2013
1444,Revenue,CCHD,Information Systems - Software,Software Support & Maintenance,Northgate Information Solutions UK Limited,949.06, 17-Dec-2013
1445,Revenue,CCHD,Public Health - Admin,Other Supplies & Services,Northville Family Practice,1040, 23-Dec-2013
1446,Revenue,CCHD,Bed Purchasing - Under 65s PWLD - South,Residential Permanent,Norwood   Broadway House,4899.44, 24-Dec-2013
1447,Revenue,CCHD,Bed Purchasing - Elderly MH - South,Residential Permanent,Notaro Homes Ltd  Queensmead Court,1857.32, 24-Dec-2013
1448,Revenue,CCHD,Bed Purchasing - Southmead Hospital,Residential Permanent,Notaro Homes Ltd  Queensmead Court,1371.32, 24-Dec-2013
1449,Revenue,CCHD,Bed Purchasing - Elderly - South,Residential Permanent,Nova House Care Home,938.4, 24-Dec-2013
1450,Revenue,CCHD,Woodleaze,Agency Staff (Admin/Support Staff) Pay,Nurse Plus and Carer Plus (UK) Limited,1141.64, 04-Dec-2013
1451,Revenue,CCHD,Home Care - Elderly - South,Other Small Contracts,Nursing Solutions Limited,2382.9, 13-Dec-2013
1452,Revenue,CCHD,Home Care - Elderly - North,Other Small Contracts,Nursing Solutions Limited,440.7, 13-Dec-2013
1453,Revenue,CCHD,Home Care - Elderly - South,Other Small Contracts,Nursing Solutions Limited,2269.8, 13-Dec-2013
1454,Revenue,CCHD,Home Care - Elderly - North,Other Small Contracts,Nursing Solutions Limited,405.6, 13-Dec-2013
1455,Revenue,CCHD,Home Care - Elderly - South,Other Small Contracts,Nursing Solutions Limited,2191.8, 13-Dec-2013
1456,Revenue,CCHD,Home Care - Elderly - North,Other Small Contracts,Nursing Solutions Limited,561.6, 13-Dec-2013
1457,Revenue,CCHD,Home Care - Elderly - South,Other Small Contracts,Nursing Solutions Limited,1953.9, 13-Dec-2013
1458,Revenue,CCHD,Home Care - Elderly - North,Other Small Contracts,Nursing Solutions Limited,444.6, 13-Dec-2013
1459,Revenue,CCHD,Home Care - Elderly - South,Other Small Contracts,Nursing Solutions Limited,1950, 13-Dec-2013
1460,Revenue,CCHD,Home Care - Elderly - North,Other Small Contracts,Nursing Solutions Limited,592.8, 13-Dec-2013
1461,Revenue,CCHD,Home Care - Elderly - South,Other Small Contracts,Nursing Solutions Limited,2932.8, 13-Dec-2013
1462,Revenue,CCHD,Home Care - Elderly - North,Other Small Contracts,Nursing Solutions Limited,705.9, 13-Dec-2013
1463,Revenue,CCHD,Section 117 Placements MH Younger,Nursing Permanent,Oaklands,6000, 24-Dec-2013
1464,Revenue,CCHD,Home Care - Elderly - South,Other Small Contracts,On the Up,799.02, 10-Dec-2013
1465,Revenue,CCHD,Home Care - Elderly - North,Other Small Contracts,On the Up,92.64, 10-Dec-2013
1466,Revenue,CCHD,Day Care - South,Private & Voluntary Day Care,On the Up,114, 10-Dec-2013
1467,Revenue,CCHD,Day Care - North,Private & Voluntary Day Care,On the Up,291.84, 10-Dec-2013
1468,Revenue,CCHD,Home care - Elderly MH - North,Other Small Contracts,On the Up,61.76, 10-Dec-2013
1469,Revenue,CCHD,Home Care - Elderly - South,Other Small Contracts,On the Up,849.2, 10-Dec-2013
1470,Revenue,CCHD,Home Care - Elderly - North,Other Small Contracts,On the Up,96.5, 10-Dec-2013
1471,Revenue,CCHD,Day Care - South,Private & Voluntary Day Care,On the Up,104.88, 10-Dec-2013
1472,Revenue,CCHD,Day Care - North,Private & Voluntary Day Care,On the Up,296.4, 10-Dec-2013
1473,Revenue,CCHD,Younger MH non-res purchasing,Private & Voluntary Day Care,On the Up,36.48, 10-Dec-2013
1474,Revenue,CCHD,Home care - Elderly MH - North,Other Small Contracts,On the Up,61.76, 10-Dec-2013
1475,Revenue,CCHD,Home Care - Elderly - South,Other Small Contracts,On the Up,910.96, 10-Dec-2013
1476,Revenue,CCHD,Home Care - Elderly - North,Other Small Contracts,On the Up,96.5, 10-Dec-2013
1477,Revenue,CCHD,Day Care - South,Private & Voluntary Day Care,On the Up,109.44, 10-Dec-2013
1478,Revenue,CCHD,Day Care - North,Private & Voluntary Day Care,On the Up,319.2, 10-Dec-2013
1479,Revenue,CCHD,Younger MH non-res purchasing,Private & Voluntary Day Care,On the Up,36.48, 10-Dec-2013
1480,Revenue,CCHD,Home care - Elderly MH - North,Other Small Contracts,On the Up,61.76, 10-Dec-2013
1481,Revenue,CCHD,Home Care - Elderly - South,Other Small Contracts,On the Up,922.54, 10-Dec-2013
1482,Revenue,CCHD,Home Care - Elderly - North,Other Small Contracts,On the Up,88.78, 10-Dec-2013
1483,Revenue,CCHD,Day Care - South,Private & Voluntary Day Care,On the Up,109.44, 10-Dec-2013
1484,Revenue,CCHD,Day Care - North,Private & Voluntary Day Care,On the Up,310.08, 10-Dec-2013
1485,Revenue,CCHD,Younger MH non-res purchasing,Private & Voluntary Day Care,On the Up,36.48, 10-Dec-2013
1486,Revenue,CCHD,Home care - Elderly MH - North,Other Small Contracts,On the Up,65.62, 10-Dec-2013
1487,Revenue,CCHD,Home Care - Elderly - South,Other Small Contracts,On the Up,883.94, 10-Dec-2013
1488,Revenue,CCHD,Home Care - Elderly - North,Other Small Contracts,On the Up,88.78, 10-Dec-2013
1489,Revenue,CCHD,Day Care - South,Private & Voluntary Day Care,On the Up,103.84, 10-Dec-2013
1490,Revenue,CCHD,Day Care - North,Private & Voluntary Day Care,On the Up,291.84, 10-Dec-2013
1491,Revenue,CCHD,Younger MH non-res purchasing,Private & Voluntary Day Care,On the Up,36.48, 10-Dec-2013
1492,Revenue,CCHD,Home care - Elderly MH - North,Other Small Contracts,On the Up,61.76, 10-Dec-2013
1493,Revenue,CCHD,Bed purchasing -S28A  Under 65 - North,Residential Permanent,Orchard End Limited,7452.12, 24-Dec-2013
1494,Revenue,CCHD,Turnberries,"Provisions (Food, etc)",Origin Cafe,528.2, 30-Dec-2013
1495,Revenue,CCHD,Bed Purchasing - Elderly S117- North,Residential Permanent,Osbourne Court,1900, 24-Dec-2013
1496,Revenue,CCHD,Bed purchasing - Elderly S117 - South,Residential Permanent,Osbourne Court,3060, 24-Dec-2013
1497,Revenue,CCHD,Swift Dump Code,Residential Permanent,Osbourne Court,1190.02, 24-Dec-2013
1498,Revenue,CCHD,Bed Purchasing - Elderly - North,Residential Permanent,Osbourne Court,1154.56, 24-Dec-2013
1499,Revenue,CCHD,Bed Purchasing - Elderly S117- North,Residential Permanent,Osbourne Court,1900, 24-Dec-2013
1500,Revenue,CCHD,Bed Purchasing - Elderly - North,Residential Permanent,Osbourne Court,2519.28, 24-Dec-2013
1501,Revenue,CCHD,Bed Purchasing - Southmead Hospital,Residential Permanent,Osbourne Court,859.4, 24-Dec-2013
1502,Revenue,CCHD,Bed Purchasing - Under 65s PWLD - South,Residential Permanent,Osprey Court,7636.76, 24-Dec-2013
1503,Revenue,CCHD,Bed purchasing - S28A Under 65 - South,Residential Permanent,Osprey Court,4259.36, 24-Dec-2013
1504,Revenue,CCHD,Bed purchasing - S28A Under 65 - South,Residential Permanent,Osprey Court,6305.32, 24-Dec-2013
1505,Revenue,CCHD,Bed Purchasing - PWLD S 117 Placements,Residential Permanent,Osprey Court,38984.63, 24-Dec-2013
1506,Revenue,CCHD,Bed Purchasing - Southmead Hospital,Nursing Permanent,Palm Court Nursing Home,1503.36, 24-Dec-2013
1507,Revenue,CCHD,Bed Purchasing - Elderly MH - South,Residential Permanent,Park Farm House,1333.44, 24-Dec-2013
1508,Revenue,CCHD,Bed Purchasing - Elderly MH - South,Residential Permanent,Park Farm House,1593.2, 24-Dec-2013
1509,Revenue,CCHD,Bed Purchasing - Under 65s PWLD - South,Residential Permanent,Park Hall,5552, 24-Dec-2013
1510,Revenue,CCHD,Bed purchasing - Under 65s PWLD - North,Residential Permanent,Park Hall,5131.28, 24-Dec-2013
1511,Revenue,CCHD,Bed Purchasing - Under 65s PWLD - South,Residential Permanent,Park Hall,4940.84, 24-Dec-2013
1512,Revenue,CCHD,Bed purchasing - Elderly PWLD - South,Residential Permanent,Park Hall,2520.96, 24-Dec-2013
1513,Revenue,CCHD,Bed Purchasing - Under 65s PWLD - South,Residential Permanent,Park Hall,8162.17, 24-Dec-2013
1514,Revenue,CCHD,Bed purchasing - Elderly PWLD - North,Residential Permanent,Park Hall,4897.8, 24-Dec-2013
1515,Revenue,CCHD,Bed purchasing - S28A Under 65 - South,Residential Permanent,Park Hall,4614.16, 24-Dec-2013
1516,Revenue,CCHD,Bed Purchasing - Under 65s PWLD - South,Residential Permanent,Park Hall,4917.16, 24-Dec-2013
1517,Revenue,CCHD,Bed purchasing - Under 65s PWLD - North,Residential Permanent,Park Hall,4278.84, 24-Dec-2013
1518,Revenue,CCHD,Bed Purchasing - S28A - Over 65- North,Residential Permanent,Park Hall,5286.8, 24-Dec-2013
1519,Revenue,CCHD,Bed Purchasing - Under 65s PWLD - South,Residential Permanent,Park Hall,10610.92, 24-Dec-2013
1520,Revenue,CCHD,Bed purchasing -S28A  Under 65 - North,Residential Permanent,Park Hall,5844.16, 24-Dec-2013
1521,Revenue,CCHD,Bed purchasing - S28A Under 65 - South,Residential Permanent,Park Hall,5565.72, 24-Dec-2013
1522,Revenue,CCHD,Bed Purchasing - Under 65s PWLD - South,Residential Permanent,Park Hall,7081.64, 24-Dec-2013
1523,Revenue,CCHD,Social Lettings Agency,Fees - General,Individual,10, 27-Dec-2013
1524,Revenue,CCHD,Social Lettings Agency,Other Supplies & Services,Individual,565, 27-Dec-2013
1525,Revenue,CCHD,Day Care - South,Private & Voluntary Day Care,Pauls Place,554.4, 24-Dec-2013
1526,Revenue,CCHD,Bed Purchasing - Under 65s PWLD - South,Residential Permanent,Penleigh House Care Home,4493.52, 24-Dec-2013
1527,Revenue,CCHD,Bed Purchasing - Under 65s PWLD - South,Residential Permanent,Penleigh House Care Home,12730.4, 24-Dec-2013
1528,Revenue,CCHD,Bed purchasing - Elderly PWLD - South,Residential Permanent,Penleigh House Care Home,4258.48, 24-Dec-2013
1529,Revenue,CCHD,Bed purchasing - S28A Under 65 - South,Residential Permanent,Penleigh House Care Home,5417.04, 24-Dec-2013
1530,Revenue,CCHD,Bed Purchasing - Under 65s PWLD - South,Residential Permanent,Penleigh House Care Home,4893.28, 24-Dec-2013
1531,Revenue,CCHD,Public Health - Admin,Other Supplies & Services,Pilning Surgery,1180, 23-Dec-2013
1532,Revenue,CCHD,Supporting People Programme,Grants to Voluntary Bodies,Places for People,1117.67, 30-Dec-2013
1533,Revenue,CCHD,Breakthrough and Inclusion Work,Other Supplies & Services,Platinum Fitness,1176.2, 13-Dec-2013
1534,Revenue,CCHD,Breakthrough and Inclusion Work,Other Supplies & Services,Platinum Fitness,1338.16, 13-Dec-2013
1535,Revenue,CCHD,Home Care - Elderly - South,Other Small Contracts,Premier Homecare Limited,296.4, 30-Dec-2013
1536,Revenue,CCHD,Home Care - Elderly - North,Other Small Contracts,Premier Homecare Limited,8604.72, 30-Dec-2013
1537,Revenue,CCHD,Home care - Elderly MH - North,Other Small Contracts,Premier Homecare Limited,127.68, 30-Dec-2013
1538,Revenue,CCHD,Elderly MH Day Care North,Private & Voluntary Day Care,Premier Homecare Limited,127.68, 30-Dec-2013
1539,Revenue,CCHD,Home Care - Elderly - South,Other Small Contracts,Premier Homecare Limited,1126.32, 06-Dec-2013
1540,Revenue,CCHD,Home Care - Elderly - North,Other Small Contracts,Premier Homecare Limited,7785.06, 06-Dec-2013
1541,Revenue,CCHD,Home care - Elderly MH - North,Other Small Contracts,Premier Homecare Limited,164.16, 06-Dec-2013
1542,Revenue,CCHD,Elderly MH Day Care North,Private & Voluntary Day Care,Premier Homecare Limited,132.24, 06-Dec-2013
1543,Revenue,CCHD,Home Care - Elderly - South,Other Small Contracts,Premier Homecare Limited,1126.32, 06-Dec-2013
1544,Revenue,CCHD,Home Care - Elderly - North,Other Small Contracts,Premier Homecare Limited,7866, 06-Dec-2013
1545,Revenue,CCHD,Home care - Elderly MH - North,Other Small Contracts,Premier Homecare Limited,164.16, 06-Dec-2013
1546,Revenue,CCHD,Elderly MH Day Care North,Private & Voluntary Day Care,Premier Homecare Limited,127.68, 06-Dec-2013
1547,Revenue,CCHD,Home Care - Elderly - South,Other Small Contracts,Premier Homecare Limited,296.4, 12-Dec-2013
1548,Revenue,CCHD,Home Care - Elderly - North,Other Small Contracts,Premier Homecare Limited,8805.36, 12-Dec-2013
1549,Revenue,CCHD,Home care - Elderly MH - North,Other Small Contracts,Premier Homecare Limited,168.72, 12-Dec-2013
1550,Revenue,CCHD,Elderly MH Day Care North,Private & Voluntary Day Care,Premier Homecare Limited,127.68, 12-Dec-2013
1551,Revenue,CCHD,Home Care - Elderly - South,Other Small Contracts,Premier Homecare Limited,291.84, 18-Dec-2013
1552,Revenue,CCHD,Home Care - Elderly - North,Other Small Contracts,Premier Homecare Limited,8898.27, 18-Dec-2013
1553,Revenue,CCHD,Home care - Elderly MH - North,Other Small Contracts,Premier Homecare Limited,127.68, 18-Dec-2013
1554,Revenue,CCHD,Elderly MH Day Care North,Private & Voluntary Day Care,Premier Homecare Limited,136.8, 18-Dec-2013
1555,Revenue,CCHD,Home Care - Elderly - South,Other Small Contracts,Prestige Nursing,952.51, 11-Dec-2013
1556,Revenue,CCHD,Home Care - Elderly - North,Other Small Contracts,Prestige Nursing,767.18, 11-Dec-2013
1557,Revenue,CCHD,Day Care - South,Private & Voluntary Day Care,Prestige Nursing,116.37, 11-Dec-2013
1558,Revenue,CCHD,Day Care - North,Private & Voluntary Day Care,Prestige Nursing,443.93, 11-Dec-2013
1559,Revenue,CCHD,Home Care - Elderly - South,Other Small Contracts,Prestige Nursing,1234.63, 12-Dec-2013
1560,Revenue,CCHD,Home Care - Elderly - North,Other Small Contracts,Prestige Nursing,1070.56, 12-Dec-2013
1561,Revenue,CCHD,Day Care - South,Private & Voluntary Day Care,Prestige Nursing,124.99, 12-Dec-2013
1562,Revenue,CCHD,Day Care - North,Private & Voluntary Day Care,Prestige Nursing,435.31, 12-Dec-2013
1563,Revenue,CCHD,Home Care - Elderly - South,Other Small Contracts,Prestige Nursing,883.55, 12-Dec-2013
1564,Revenue,CCHD,Home Care - Elderly - North,Other Small Contracts,Prestige Nursing,1109.35, 12-Dec-2013
1565,Revenue,CCHD,Day Care - South,Private & Voluntary Day Care,Prestige Nursing,120.68, 12-Dec-2013
1566,Revenue,CCHD,Day Care - North,Private & Voluntary Day Care,Prestige Nursing,422.38, 12-Dec-2013
1567,Revenue,CCHD,Home Care - Elderly - South,Other Small Contracts,Prestige Nursing,870.62, 12-Dec-2013
1568,Revenue,CCHD,Home Care - Elderly - North,Other Small Contracts,Prestige Nursing,3122.35, 12-Dec-2013
1569,Revenue,CCHD,Day Care - South,Private & Voluntary Day Care,Prestige Nursing,120.68, 12-Dec-2013
1570,Revenue,CCHD,Day Care - North,Private & Voluntary Day Care,Prestige Nursing,439.62, 12-Dec-2013
1571,Revenue,CCHD,Home Care - Elderly - South,Private & Voluntary Day Care,Prestige Nursing,134.4, 18-Dec-2013
1572,Revenue,CCHD,Home Care - Elderly - South,Other Small Contracts,Prestige Nursing,120, 18-Dec-2013
1573,Revenue,CCHD,Home Care - Elderly - North,Private & Voluntary Day Care,Prestige Nursing,204, 18-Dec-2013
1574,Revenue,CCHD,Home Care - Elderly - North,Other Small Contracts,Prestige Nursing,312, 18-Dec-2013
1575,Revenue,CCHD,Home care - Elderly MH - North,Private & Voluntary Day Care,Prestige Nursing,48, 18-Dec-2013
1576,Revenue,CCHD,Home Care - Elderly - South,Other Small Contracts,Prestige Nursing,965.44, 11-Dec-2013
1577,Revenue,CCHD,Home Care - Elderly - North,Other Small Contracts,Prestige Nursing,926.65, 11-Dec-2013
1578,Revenue,CCHD,Day Care - South,Private & Voluntary Day Care,Prestige Nursing,120.68, 11-Dec-2013
1579,Revenue,CCHD,Day Care - North,Private & Voluntary Day Care,Prestige Nursing,435.31, 11-Dec-2013
1580,Revenue,CCHD,Alexandra Way,Agency Staff (Admin/Support Staff) Pay,Prestige Nursing,449.13, 27-Dec-2013
1581,Revenue,CCHD,Home Care - Elderly - South,Other Small Contracts,Prestige Nursing,879.24, 11-Dec-2013
1582,Revenue,CCHD,Home Care - Elderly - North,Other Small Contracts,Prestige Nursing,833.51, 11-Dec-2013
1583,Revenue,CCHD,Day Care - South,Private & Voluntary Day Care,Prestige Nursing,120.68, 11-Dec-2013
1584,Revenue,CCHD,Day Care - North,Private & Voluntary Day Care,Prestige Nursing,435.31, 11-Dec-2013
1585,Revenue,CCHD,Older People's Commissioned Se,Grants to Voluntary Bodies,Princess Royal Trust Carers Centre,40415.25, 30-Dec-2013
1586,Revenue,CCHD,Older People's Commissioned Se,Grants to Voluntary Bodies,Princess Royal Trust Carers Centre,1930.75, 30-Dec-2013
1587,Revenue,CCHD,Training - Adult Services,Training Expenses,Qualsafe.com,718.8, 13-Dec-2013
1588,Revenue,CCHD,Bed purchasing - Elderly MH - North,Nursing Permanent,Ravenswood,1269.48, 24-Dec-2013
1589,Revenue,CCHD,Bed Purchasing - Elderly - South,Residential Permanent,Ravenswood,3804.6, 24-Dec-2013
1590,Revenue,CCHD,Bed Purchasing - PWLD S 117 Placements,Residential Permanent,Real Life Options,7979.92, 24-Dec-2013
1591,Revenue,CCHD,Bed Purchasing - Elderly S117- North,Nursing Permanent,Redholme Memory Care Limited,1962.8, 24-Dec-2013
1592,Revenue,CCHD,Supporting People Programme,Grants to Voluntary Bodies,Redland Housing Association Ltd,726.92, 30-Dec-2013
1593,Revenue,CCHD,Bed Purchasing - Elderly - South,Nursing Permanent,Regent House,2224.96, 24-Dec-2013
1594,Revenue,CCHD,Bed Purchasing - Elderly - South,Nursing Permanent,Regent House,1649.08, 24-Dec-2013
1595,Revenue,CCHD,Bed Purchasing - Elderly - South,Nursing Permanent,Regent House,1958.52, 24-Dec-2013
1596,Revenue,CCHD,Bed Purchasing - Elderly MH - South,Nursing Permanent,Regent House,1982.08, 24-Dec-2013
1597,Revenue,CCHD,Bed Purchasing - Elderly - South,Nursing Permanent,Regent House,1699.68, 24-Dec-2013
1598,Revenue,CCHD,Bed Purchasing - Elderly - South,Nursing Permanent,Regent House,1876.36, 24-Dec-2013
1599,Revenue,CCHD,Bed Purchasing - Elderly - South,Nursing Permanent,Regent House,1977.08, 24-Dec-2013
1600,Revenue,CCHD,Bed Purchasing - Elderly - North,Nursing Permanent,Regent House,1869.6, 24-Dec-2013
1601,Revenue,CCHD,Bed Purchasing - Elderly - South,Nursing Permanent,Regent House,1808, 24-Dec-2013
1602,Revenue,CCHD,Bed Purchasing - Elderly - South,Nursing Permanent,Regent House,1649.08, 24-Dec-2013
1603,Revenue,CCHD,Bed Purchasing - Elderly - South,Nursing Permanent,Regent House,1658.28, 24-Dec-2013
1604,Revenue,CCHD,Bed Purchasing - Southmead Hospital,Nursing Permanent,Regent House,1388.52, 24-Dec-2013
1605,Revenue,CCHD,Bed Purchasing - Elderly - South,Nursing Permanent,Regent House,1646.36, 24-Dec-2013
1606,Revenue,CCHD,Bed Purchasing - Elderly MH - South,Nursing Permanent,Regent House,1192.64, 24-Dec-2013
1607,Revenue,CCHD,Bed purchasing - Elderly MH - North,Nursing Permanent,Regent House,1275.76, 24-Dec-2013
1608,Revenue,CCHD,South Glos Users in South Glos Homes,Nursing Permanent,Regent House,1537.06, 24-Dec-2013
1609,Revenue,CCHD,Bed Purchasing - Under 65s PWLD - South,Residential Permanent,Ridgeway House,3450.56, 24-Dec-2013
1610,Revenue,CCHD,Bed Purchasing - Under 65s PWLD - South,Residential Permanent,Riverside House,3557.92, 24-Dec-2013
1611,Revenue,CCHD,Bed Purchasing - Frenchay Hospital,Nursing Permanent,Riversway Nursing Home,2645.64, 24-Dec-2013
1612,Revenue,CCHD,Bed purchasing - Elderly PWLD - South,Residential Permanent,Rockleaze,1408.56, 24-Dec-2013
1613,Revenue,CCHD,Bed Purchasing - LD S28A- Over 65- South,Residential Permanent,Rockleaze,2054.24, 24-Dec-2013
1614,Revenue,CCHD,Bed purchasing - Elderly PWLD - South,Residential Permanent,Rockleaze,2382.32, 24-Dec-2013
1615,Revenue,CCHD,Bed purchasing - Elderly PWLD - South,Residential Permanent,Rockleaze,1408.56, 24-Dec-2013
1616,Revenue,CCHD,Bed Purchasing - Under 65s PWLD - South,Residential Permanent,Rosewood Lodge & Brook House,9005.2, 24-Dec-2013
1617,Revenue,CCHD,Bed Purchasing - Elderly MH - South,Residential Permanent,Ross Healthcare,1292.56, 24-Dec-2013
1618,Revenue,CCHD,NTS Grant - Trainee Social Wor,Training Expenses,S R Orchard,1100, 16-Dec-2013
1619,Revenue,CCHD,South Glos Users in South Glos Homes,Nursing Permanent,Saffron Gardens,3952.44, 24-Dec-2013
1620,Revenue,CCHD,South Glos Users in South Glos Homes,Nursing Permanent,Saffron Gardens,947.24, 24-Dec-2013
1621,Revenue,CCHD,South Glos Users in South Glos Homes,Nursing Permanent,Saffron Gardens,643.06, 24-Dec-2013
1622,Revenue,CCHD,South Glos Users in South Glos Homes,Nursing Permanent,Saffron Gardens,3952.44, 24-Dec-2013
1623,Revenue,CCHD,South Glos Users in South Glos Homes,Nursing Permanent,Saffron Gardens,1242.29, 24-Dec-2013
1624,Revenue,CCHD,Bed Purchasing - Frenchay Hospital,Nursing Permanent,Saffron Gardens,1825.64, 24-Dec-2013
1625,Revenue,CCHD,Bed Purchasing - Southmead Hospital,Residential Permanent,Saffron Gardens,1248.32, 24-Dec-2013
1626,Revenue,CCHD,Bed Purchasing - Elderly MH - South,Nursing Permanent,Saffron Gardens,2044.68, 24-Dec-2013
1627,Revenue,CCHD,Bed Purchasing - Southmead Hospital,Nursing Permanent,Saffron Gardens,1478, 24-Dec-2013
1628,Revenue,CCHD,Bed Purchasing - Elderly - North,Nursing Permanent,Saffron Gardens,988.72, 24-Dec-2013
1629,Revenue,CCHD,Bed Purchasing - Elderly - South,Nursing Permanent,Saffron Gardens,1873.08, 24-Dec-2013
1630,Revenue,CCHD,South Glos Users in South Glos Homes,Nursing Permanent,Saffron Gardens,3450.54, 24-Dec-2013
1631,Revenue,CCHD,Bed Purchasing - Frenchay Hospital,Nursing Permanent,Saffron Gardens,602.04, 24-Dec-2013
1632,Revenue,CCHD,Bed Purchasing - Elderly - South,Residential Permanent,Saffron Gardens,1278.28, 24-Dec-2013
1633,Revenue,CCHD,Home Care - Elderly - South,Other Small Contracts,Saga Homecare,3511.2, 10-Dec-2013
1634,Revenue,CCHD,Home Care - Elderly - North,Other Small Contracts,Saga Homecare,8074.8, 10-Dec-2013
1635,Revenue,CCHD,Day Care - North,Private & Voluntary Day Care,Saga Homecare,263.34, 10-Dec-2013
1636,Revenue,CCHD,Home care - Elderly MH - North,Other Small Contracts,Saga Homecare,55.86, 10-Dec-2013
1637,Revenue,CCHD,PWLD Home Care - Under 65 - KH,Private & Voluntary Home Care,Saga Homecare,470.82, 10-Dec-2013
1638,Revenue,CCHD,Home Care - Elderly - South,Other Small Contracts,Saga Homecare,3431.4, 20-Dec-2013
1639,Revenue,CCHD,Home Care - Elderly - North,Other Small Contracts,Saga Homecare,8186.52, 20-Dec-2013
1640,Revenue,CCHD,Day Care - South,Private & Voluntary Day Care,Saga Homecare,47.88, 20-Dec-2013
1641,Revenue,CCHD,Day Care - North,Private & Voluntary Day Care,Saga Homecare,175.56, 20-Dec-2013
1642,Revenue,CCHD,Home care - Elderly MH - North,Other Small Contracts,Saga Homecare,55.86, 20-Dec-2013
1643,Revenue,CCHD,PWLD Home Care - Under 65 - KH,Private & Voluntary Home Care,Saga Homecare,454.86, 20-Dec-2013
1644,Revenue,CCHD,Bed Purchasing - Under 65s PWLD - South,Residential Permanent,Salters Hill Barn,2014.52, 24-Dec-2013
1645,Revenue,CCHD,Tenancy Start Up Scheme,Other Supplies & Services,Individual,1300, 06-Dec-2013
1646,Revenue,CCHD,Bed Purchasing - Southmead Hospital,Residential Permanent,Sanctuary Care Limited,1719.12, 24-Dec-2013
1647,Revenue,CCHD,Bed Purchasing - Southmead Hospital,Residential Permanent,Sanctuary Care Ltd,1270, 24-Dec-2013
1648,Revenue,CCHD,Learning Difficulties PSL,Rent,Individual,1650, 30-Dec-2013
1649,Revenue,CCHD,Woodleaze,"Provisions (Food, etc)",School Milk Services Limited,852.17, 30-Dec-2013
1650,Revenue,CCHD,Bed purchasing - Under 65s PWLD - North,Residential Permanent,Scope   Accounts Dept,4956.52, 24-Dec-2013
1651,Revenue,CCHD,Bed Purchasing - Under 65s PWLD - South,Residential Permanent,Scope   Accounts Dept,3027.88, 24-Dec-2013
1652,Revenue,CCHD,Purchase of Non-Res Care - North,Private & Voluntary Day Care,SeeAbility,616.29, 13-Dec-2013
1653,Revenue,CCHD,Supported Living - South,Private & Voluntary Home Care,Selborne Care Ltd,2670.26, 02-Dec-2013
1654,Revenue,CCHD,Supported Living - South,Private & Voluntary Home Care,Selborne Care Ltd,643.6, 02-Dec-2013
1655,Revenue,CCHD,Purchase of Non-Res Care - North,Private & Voluntary Day Care,Selborne Care Ltd,1579.65, 02-Dec-2013
1656,Revenue,CCHD,Purchase of Non-Res Care - North,Private & Voluntary Day Care,Selborne Care Ltd,901.04, 02-Dec-2013
1657,Revenue,CCHD,Supported Living - South,Private & Voluntary Home Care,Selborne Care Ltd,1146.7, 02-Dec-2013
1658,Revenue,CCHD,Purchase of Non-Res Care - North,Private & Voluntary Day Care,Selborne Care Ltd,850.72, 02-Dec-2013
1659,Revenue,CCHD,Supported Living - North,Private & Voluntary Home Care,Selborne Care Ltd,599.18, 03-Dec-2013
1660,Revenue,CCHD,Supported Living - South,Private & Voluntary Home Care,Selborne Care Ltd,514.88, 03-Dec-2013
1661,Revenue,CCHD,Supported Living - South,Private & Voluntary Home Care,Selborne Care Ltd,4615.48, 03-Dec-2013
1662,Revenue,CCHD,Purchase of Non-Res Care - North,Private & Voluntary Day Care,Selborne Care Ltd,826.88, 03-Dec-2013
1663,Revenue,CCHD,Supported Living - South,Private & Voluntary Home Care,Selborne Care Ltd,554.56, 03-Dec-2013
1664,Revenue,CCHD,Supported Living - South,Private & Voluntary Home Care,Selborne Care Ltd,1914.03, 03-Dec-2013
1665,Revenue,CCHD,Purchase of Non-Res Care - North,Private & Voluntary Day Care,Selborne Care Ltd,558.97, 03-Dec-2013
1666,Revenue,CCHD,Supported Living (S28a) South,Private & Voluntary Home Care,Selborne Care Ltd,3326.68, 12-Dec-2013
1667,Revenue,CCHD,Bed Purchasing - Under 65s PWLD - South,Residential Permanent,Shaldon House (Positive Care Ltd),2194, 24-Dec-2013
1668,Revenue,CCHD,SLA Grants - Support Serv,Grants to Voluntary Bodies,Share the Harmony,1000, 27-Dec-2013
1669,Revenue,CCHD,Bed Purchasing - Elderly - South,Nursing Permanent,Shaw Healthcare Ltd,4434.38, 24-Dec-2013
1670,Revenue,CCHD,Bed Purchasing - Elderly - South,Nursing Permanent,Shaw Healthcare Ltd,22995.61, 24-Dec-2013
1671,Revenue,CCHD,Bed Purchasing - Elderly S117- North,Nursing Permanent,Shaw Healthcare Ltd,2609.36, 24-Dec-2013
1672,Revenue,CCHD,Bed Purchasing - Elderly - South,Nursing Permanent,Shaw Healthcare Ltd,659.71, 24-Dec-2013
1673,Revenue,CCHD,Bed Purchasing - Elderly S117- North,Nursing Permanent,Shaw Healthcare Ltd,23089.85, 24-Dec-2013
1674,Revenue,CCHD,Bed purchasing - Elderly S117 - South,Nursing Permanent,Shaw Healthcare Ltd,1992.16, 24-Dec-2013
1675,Revenue,CCHD,Bed purchasing - Elderly MH - North,Nursing Permanent,Shaw Healthcare Ltd,2064.96, 24-Dec-2013
1676,Revenue,CCHD,Bed purchasing - S28A Under 65 - South,Residential Permanent,Shaw Healthcare Ltd,9822.56, 24-Dec-2013
1677,Revenue,CCHD,Bed purchasing - S28A Under 65 - South,Residential Permanent,Shaw Healthcare Ltd,9651.76, 24-Dec-2013
1678,Revenue,CCHD,Bed purchasing - S28A Under 65 - South,Residential Permanent,Shaw Healthcare Ltd,9651.76, 24-Dec-2013
1679,Revenue,CCHD,Bed Purchasing - Under 65s PWLD - South,Nursing Permanent,Shaw Healthcare Ltd,9754.04, 24-Dec-2013
1680,Revenue,CCHD,Bed Purchasing - Under 65s PWLD - South,Residential Permanent,Shaw Healthcare Ltd,9760.6, 24-Dec-2013
1681,Revenue,CCHD,Bed purchasing - Elderly PWLD - South,Residential Permanent,Shaw Healthcare Ltd,3907.68, 24-Dec-2013
1682,Revenue,CCHD,Bed purchasing - S28A Under 65 - South,Residential Permanent,Shaw Healthcare Ltd,10402.68, 24-Dec-2013
1683,Revenue,CCHD,Bed purchasing - S28A Under 65 - South,Residential Permanent,Shaw Healthcare Ltd,12174.6, 24-Dec-2013
1684,Revenue,CCHD,Bed Purchasing - S28A - Over 65- North,Residential Permanent,Shaw Healthcare Ltd,4238.92, 24-Dec-2013
1685,Revenue,CCHD,Bed Purchasing - S28A - Over 65- North,Residential Permanent,Shaw Healthcare Ltd,4246.2, 24-Dec-2013
1686,Revenue,CCHD,Bed Purchasing - LD S28A- Over 65- South,Residential Permanent,Shaw Healthcare Ltd,4763.2, 24-Dec-2013
1687,Revenue,CCHD,Bed Purchasing - Under 65s PWLD - South,Nursing Permanent,Shaw Healthcare Ltd,10091.08, 24-Dec-2013
1688,Revenue,CCHD,Bed Purchasing - LD S28A- Over 65- South,Residential Permanent,Shaw Healthcare Ltd,4321.32, 24-Dec-2013
1689,Revenue,CCHD,Bed purchasing -S28A  Under 65 - North,Residential Permanent,Shaw Healthcare Ltd,9174, 24-Dec-2013
1690,Revenue,CCHD,Bed Purchasing - S28A - Over 65- North,Residential Permanent,Shaw Healthcare Ltd,8580.2, 24-Dec-2013
1691,Revenue,CCHD,Bed Purchasing - Southmead Hospital,Residential Permanent,Shaw Healthcare Ltd,891.96, 24-Dec-2013
1692,Revenue,CCHD,Bed Purchasing - Elderly - North,Residential Permanent,Shaw Healthcare Ltd,1262, 24-Dec-2013
1693,Revenue,CCHD,Bed Purchasing - Frenchay Hospital,Residential Permanent,Shaw Healthcare Ltd,1119.32, 24-Dec-2013
1694,Revenue,CCHD,Purchase of Non-Res Care - North,Private & Voluntary Day Care,Shaw Healthcare Specialist Services Limited,573.99, 04-Dec-2013
1695,Revenue,CCHD,Supported Living - South,Private & Voluntary Home Care,Silva Care Limited,4415.44, 17-Dec-2013
1696,Revenue,CCHD,Day Care - North,Private & Voluntary Day Care,Silva Care Limited,894.86, 20-Dec-2013
1697,Revenue,CCHD,Community Support - South,Preventative Assistance,Sirona Care & Health CIC,2839, 23-Dec-2013
1698,Revenue,CCHD,Alexandra Way,Refuse Collection Charges,SITA UK LTD,711.52, 27-Dec-2013
1699,Revenue,CCHD,Downend Day Centre,Refuse Collection Charges,SITA UK LTD,793.1, 05-Dec-2013
1700,Revenue,CCHD,Bed purchasing - Under 65s PWLD - North,Residential Permanent,Small House Homes Limited,17754.92, 24-Dec-2013
1701,Revenue,CCHD,Purchase of Non-Res Care - North,Private & Voluntary Day Care,Smile Independent Living Support Limited,733.08, 13-Dec-2013
1702,Revenue,CCHD,Purchase of Non-Res Care - South,Private & Voluntary Day Care,Smile Independent Living Support Limited,694.07, 13-Dec-2013
1703,Revenue,CCHD,Purchase of Non-Res Care - South,Private & Voluntary Day Care,Smile Independent Living Support Limited,828, 13-Dec-2013
1704,Revenue,CCHD,Purchase of Non-Res Care - North,Private & Voluntary Day Care,Smile Independent Living Support Limited,1150.51, 13-Dec-2013
1705,Revenue,CCHD,Purchase of Non-Res Care - North,Private & Voluntary Day Care,Smile Independent Living Support Limited,604.14, 13-Dec-2013
1706,Revenue,CCHD,Purchase of Non-Res Care - North,Private & Voluntary Day Care,Smile Independent Living Support Limited,1168.11, 13-Dec-2013
1707,Revenue,CCHD,Purchase of Non-Res Care - North,Private & Voluntary Day Care,Smile Independent Living Support Limited,713.91, 13-Dec-2013
1708,Revenue,CCHD,Purchase of Non-Res Care - North,Private & Voluntary Day Care,Smile Independent Living Support Limited,1010.17, 13-Dec-2013
1709,Revenue,CCHD,Purchase of Non-Res Care - North,Private & Voluntary Day Care,Smile Independent Living Support Limited,812.14, 13-Dec-2013
1710,Revenue,CCHD,Supported Living - North,Private & Voluntary Home Care,Smile Independent Living Support Limited,3156.3, 13-Dec-2013
1711,Revenue,CCHD,Supported Living - North,Private & Voluntary Home Care,Smile Independent Living Support Limited,3253.8, 13-Dec-2013
1712,Revenue,CCHD,Supported Living - North,Private & Voluntary Home Care,Smile Independent Living Support Limited,2579.47, 13-Dec-2013
1713,Revenue,CCHD,User Involvement,Software Purchase,Snap Surveys Limited,111.06, 16-Dec-2013
1714,Revenue,CCHD,Bed Purchasing - Under 65s PWLD - South,Residential Permanent,St Brigas,2055.56, 24-Dec-2013
1715,Revenue,CCHD,Bed Purchasing - Under 65s PWLD - South,Residential Permanent,St Brigas,2972.08, 24-Dec-2013
1716,Revenue,CCHD,Bed Purchasing - Under 65s PWLD - South,Residential Permanent,St Brigas,2003.32, 24-Dec-2013
1717,Revenue,CCHD,Bed Purchasing - Frenchay Hospital,Nursing Permanent,St George Nursing Home,1302, 24-Dec-2013
1718,Revenue,CCHD,Bed Purchasing - Elderly - South,Nursing Permanent,St George Nursing Home,1302, 24-Dec-2013
1719,Revenue,CCHD,Bed Purchasing - Southmead Hospital,Nursing Permanent,St George Nursing Home,1314, 24-Dec-2013
1720,Revenue,CCHD,Bed Purchasing - Frenchay Hospital,Nursing Permanent,St George Nursing Home,1065.36, 24-Dec-2013
1721,Revenue,CCHD,Bed purchasing - Elderly MH - North,Residential Permanent,St Georges Nursing Home,4286.97, 24-Dec-2013
1722,Revenue,CCHD,Bed Purchasing - Frenchay Hospital,Nursing Permanent,St Georges Nursing Home (Wellburn Care Homes),1135.88, 24-Dec-2013
1723,Revenue,CCHD,Bed Purchasing - Southmead Hospital,Nursing Permanent,St Georges Nursing Home (Wellburn Care Homes),1212.64, 24-Dec-2013
1724,Revenue,CCHD,Bed Purchasing - Southmead Hospital,Nursing Permanent,St Georges Nursing Home (Wellburn Care Homes),822.86, 24-Dec-2013
1725,Revenue,CCHD,Bed Purchasing - Elderly - North,Nursing Permanent,St Monicas Trust,1016.68, 24-Dec-2013
1726,Revenue,CCHD,Bed Purchasing - Southmead Hospital,Nursing Permanent,St Monicas Trust,3259.66, 24-Dec-2013
1727,Revenue,CCHD,Bed Purchasing - Elderly - North,Nursing Permanent,St Monicas Trust,2790.36, 24-Dec-2013
1728,Revenue,CCHD,Training - Adult Services,Training Expenses,St Peter`s Hospice,607.83, 11-Dec-2013
1729,Revenue,CCHD,Bed Purchasing - Elderly - South,Nursing Permanent,St Roses School,3982.76, 20-Dec-2013
1730,Revenue,CCHD,MH Purchasing - Younger,Nursing Permanent,Stanley House,4311.36, 24-Dec-2013
1731,Revenue,CCHD,Bed Purchasing - Under 65s PWLD - South,Residential Permanent,Stepping Stones Re-Sett. Unit,7484.8, 24-Dec-2013
1732,Revenue,CCHD,Stop Smoking Services and Interventions,Other Supplies & Services,Stoke Gifford Medical Centre,1290, 11-Dec-2013
1733,Revenue,CCHD,Drug Misuse - Adults,Other Supplies & Services,Stoke Gifford Medical Centre,1015, 12-Dec-2013
1734,Revenue,CCHD,Stop Smoking Services and Interventions,Other Supplies & Services,Stoke Gifford Medical Centre,580, 24-Dec-2013
1735,Revenue,CCHD,Day Care - North,Private & Voluntary Day Care,Supported Independence Ltd,4900.12, 03-Dec-2013
1736,Revenue,CCHD,Day Care - North,Private & Voluntary Day Care,Supported Independence Ltd,520.52, 03-Dec-2013
1737,Revenue,CCHD,Day Care - South,Private & Voluntary Day Care,Supported Independence Ltd,1185.74, 13-Dec-2013
1738,Revenue,CCHD,Section 117 Placements MH Younger,Private & Voluntary Day Care,Supported Independence Ltd,2440.19, 27-Dec-2013
1739,Revenue,CCHD,Section 117 Placements MH Younger,Private & Voluntary Day Care,Supported Independence Ltd,1215.9, 30-Dec-2013
1740,Revenue,CCHD,Section 117 Placements MH Younger,Private & Voluntary Day Care,Supported Independence Ltd,3660.08, 27-Dec-2013
1741,Revenue,CCHD,Supported Living - South,Private & Voluntary Home Care,Supported Independence Ltd,3568.2, 27-Dec-2013
1742,Revenue,CCHD,Section 117 Placements MH Younger,Private & Voluntary Day Care,Supported Independence Ltd,2062.8, 27-Dec-2013
1743,Revenue,CCHD,Younger MH non-res purchasing,Private & Voluntary Day Care,Supported Independence Ltd,960.96, 30-Dec-2013
1744,Revenue,CCHD,Younger MH non-res purchasing,Private & Voluntary Day Care,Supported Independence Ltd,559.26, 30-Dec-2013
1745,Revenue,CCHD,Younger MH non-res purchasing,Private & Voluntary Day Care,Supported Independence Ltd,510.34, 30-Dec-2013
1746,Revenue,CCHD,Supporting People Programme,Grants to Voluntary Bodies,Supported Independence Ltd,6176.25, 30-Dec-2013
1747,Revenue,CCHD,Supporting People Programme,Grants to Voluntary Bodies,Supported Independence Ltd,2986.92, 30-Dec-2013
1748,Revenue,CCHD,Supporting People Programme,Grants to Voluntary Bodies,Supported Independent Living Schemes,4638.08, 30-Dec-2013
1749,Revenue,CCHD,Supporting People Programme,Grants to Voluntary Bodies,Supported Independent Living Schemes,6008.83, 30-Dec-2013
1750,Revenue,CCHD,Supported Living - South,Private & Voluntary Home Care,Supported Independent Living Schemes,642.96, 13-Dec-2013
1751,Revenue,CCHD,Day Care - South,Private & Voluntary Day Care,Supporting Options,2196.45, 20-Dec-2013
1752,Revenue,CCHD,Day Care - South,Private & Voluntary Day Care,Supporting Options,578.5, 24-Dec-2013
1753,Revenue,CCHD,Supported Living - South,Private & Voluntary Home Care,Supporting Options,1252.76, 20-Dec-2013
1754,Revenue,CCHD,Public Health - Admin,Grants to Voluntary Bodies,Survive,780, 03-Dec-2013
1755,Revenue,CCHD,Bed Purchasing - Southmead Hospital,Nursing Permanent,T/As The Gables Nursing Home,7796.02, 24-Dec-2013
1756,Revenue,CCHD,Breakthrough and Inclusion Work,Other Supplies & Services,Tackle IT LTD,1941.5, 30-Dec-2013
1757,Revenue,CCHD,Bed Purchasing - Elderly S117- North,Residential Permanent,Templemore Care Home,3850, 24-Dec-2013
1758,Revenue,CCHD,Bed Purchasing - Under 65s PWLD - South,Residential Permanent,The Ann Coleman Centre,5968.36, 24-Dec-2013
1759,Revenue,CCHD,Bed Purchasing - Southmead Hospital,Residential Permanent,The Beeches,3471.63, 24-Dec-2013
1760,Revenue,CCHD,Bed Purchasing - Southmead Hospital,Residential Permanent,The Beeches,990.64, 24-Dec-2013
1761,Revenue,CCHD,Bed Purchasing - Southmead Hospital,Residential Permanent,The Beeches,1246, 24-Dec-2013
1762,Revenue,CCHD,Supported Living - North,Private & Voluntary Day Care,The Brandon Trust,8563.2, 02-Dec-2013
1763,Revenue,CCHD,Day Care - North,Private & Voluntary Day Care,The Brandon Trust,757.44, 20-Dec-2013
1764,Revenue,CCHD,Purchase of Non-Res Care - North,Private & Voluntary Day Care,The Brandon Trust,420.89, 17-Dec-2013
1765,Revenue,CCHD,Purchase of Non-Res Care - North,Private & Voluntary Day Care,The Brandon Trust,5892.46, 17-Dec-2013
1766,Revenue,CCHD,Purchase of Non-Res Care - North,Private & Voluntary Day Care,The Brandon Trust,1199.54, 17-Dec-2013
1767,Revenue,CCHD,Purchase of Non-Res Care - North,Private & Voluntary Day Care,The Brandon Trust,1173.23, 17-Dec-2013
1768,Revenue,CCHD,Purchase of Non-Res Care - North,Private & Voluntary Day Care,The Brandon Trust,515.59, 17-Dec-2013
1769,Revenue,CCHD,Purchase of Non-Res Care - North,Private & Voluntary Day Care,The Brandon Trust,399.85, 17-Dec-2013
1770,Revenue,CCHD,Purchase of Non-Res Care - North,Private & Voluntary Day Care,The Brandon Trust,378.8, 17-Dec-2013
1771,Revenue,CCHD,Purchase of Non-Res Care - South,Private & Voluntary Day Care,The Brandon Trust,312.48, 17-Dec-2013
1772,Revenue,CCHD,Purchase of Non-Res Care - South,Private & Voluntary Day Care,The Brandon Trust,5892.46, 17-Dec-2013
1773,Revenue,CCHD,Purchase of Non-Res Care - South,Private & Voluntary Day Care,The Brandon Trust,1104.84, 17-Dec-2013
1774,Revenue,CCHD,Purchase of Non-Res Care - South,Private & Voluntary Day Care,The Brandon Trust,778.65, 17-Dec-2013
1775,Revenue,CCHD,Purchase of Non-Res Care - South,Private & Voluntary Day Care,The Brandon Trust,3924.8, 17-Dec-2013
1776,Revenue,CCHD,Purchase of Non-Res Care - South,Private & Voluntary Day Care,The Brandon Trust,3030.41, 17-Dec-2013
1777,Revenue,CCHD,Purchase of Non-Res Care - South,Private & Voluntary Day Care,The Brandon Trust,194.66, 17-Dec-2013
1778,Revenue,CCHD,Purchase of Non-Res Care - South,Private & Voluntary Day Care,The Brandon Trust,594.51, 17-Dec-2013
1779,Revenue,CCHD,User Involvement,Other Supplies & Services,The Carers Support Centre,699.6, 02-Dec-2013
1780,Revenue,CCHD,Bed purchasing - Elderly MH - North,Residential Permanent,The Cidermill,1414, 24-Dec-2013
1781,Revenue,CCHD,Bed Purchasing - Elderly - North,Nursing Permanent,The Cidermill,1478, 24-Dec-2013
1782,Revenue,CCHD,Bed purchasing - Elderly MH - North,Residential Permanent,The Cidermill,991.36, 24-Dec-2013
1783,Revenue,CCHD,Bed Purchasing - Southmead Hospital,Residential Permanent,The Cidermill,2136, 24-Dec-2013
1784,Revenue,CCHD,Bed Purchasing - Southmead Hospital,Residential Permanent,The Cidermill,1246, 24-Dec-2013
1785,Revenue,CCHD,Bed purchasing - Elderly MH - North,Nursing Permanent,The Cidermill,1208.28, 24-Dec-2013
1786,Revenue,CCHD,Bed Purchasing - Southmead Hospital,Residential Permanent,The Cidermill,932.24, 24-Dec-2013
1787,Revenue,CCHD,Bed purchasing - Under 65s PWLD - North,Residential Permanent,The David Lewis Centre,5809, 24-Dec-2013
1788,Revenue,CCHD,Bed Purchasing - Southmead Hospital,Residential Permanent,The Gables Residential Home,1366.68, 24-Dec-2013
1789,Revenue,CCHD,Bed purchasing - Elderly S117 - South,Residential Permanent,The Gables Residential Home,2214.12, 24-Dec-2013
1790,Revenue,CCHD,Bed Purchasing - Southmead Hospital,Residential Permanent,The Gables Residential Home,976.08, 24-Dec-2013
1791,Revenue,CCHD,Bed Purchasing - Elderly - South,Residential Permanent,The Gables Residential Home,1286.4, 24-Dec-2013
1792,Revenue,CCHD,Bed Purchasing - Elderly - South,Residential Permanent,The Gables Residential Home,995.04, 24-Dec-2013
1793,Revenue,CCHD,Bed Purchasing - Elderly - South,Residential Permanent,The Garden House,752.96, 24-Dec-2013
1794,Revenue,CCHD,Bed Purchasing - Elderly - North,Residential Permanent,The Garden House,697.04, 24-Dec-2013
